Body Name,Transaction Number,Account Code Description,Expenses Type,Service Code,Service Area Categorisation,Supplier Name,Date,Amount
Bath and North East Somerset Council,10860400,LM6,Nursing Care,P11,"Adult Care, Health & Wellbeing",LAUDCARE LTD RE LADYMEAD CARE HOME,23/02/2015,420
Bath and North East Somerset Council,10860400,LM6,Nursing Care,P11,"Adult Care, Health & Wellbeing",LAUDCARE LTD RE LADYMEAD CARE HOME,23/02/2015,588
Bath and North East Somerset Council,10860400,LM6,Nursing Care,P11,"Adult Care, Health & Wellbeing",LAUDCARE LTD RE LADYMEAD CARE HOME,23/02/2015,588
Bath and North East Somerset Council,10860400,LM6,Nursing Care,P11,"Adult Care, Health & Wellbeing",LAUDCARE LTD RE LADYMEAD CARE HOME,23/02/2015,588
Bath and North East Somerset Council,10856958,LL1,Services to/for Clients,P12,Children & Young People,S.W.A.L.L.O.W. LTD,26/02/2017,681.28
Bath and North East Somerset Council,10857724,HN1,Electricity,P01,Transport & Highways,BES COMMERCIAL ELECTRICITY LTD,20/03/2017,717.44
Bath and North East Somerset Council,10841539,3F7,External Fees,P13,Economic Development,CREST NICHOLSON REGENERATION LTD,24/03/2017,130257
Bath and North East Somerset Council,10859348,3F7,External Fees,P13,Economic Development,CREST NICHOLSON REGENERATION LTD,19/04/2017,152860
Bath and North East Somerset Council,10844362,LM3,Residential Care,P12,Children & Young People,S.W.A.L.L.O.W. LTD,30/04/2017,681.28
Bath and North East Somerset Council,10857941,LM9,Day Care,P11,"Adult Care, Health & Wellbeing",S.W.A.L.L.O.W. LTD,25/05/2017,1902.86
Bath and North East Somerset Council,10857941,LM9,Day Care,P11,"Adult Care, Health & Wellbeing",S.W.A.L.L.O.W. LTD,25/05/2017,6283.2
Bath and North East Somerset Council,10857941,LM9,Day Care,P11,"Adult Care, Health & Wellbeing",S.W.A.L.L.O.W. LTD,25/05/2017,10724.8
Bath and North East Somerset Council,10857941,LM9,Day Care,P11,"Adult Care, Health & Wellbeing",S.W.A.L.L.O.W. LTD,25/05/2017,12027.6
Bath and North East Somerset Council,10856986,LL1,Services to/for Clients,P12,Children & Young People,S.W.A.L.L.O.W. LTD,28/05/2017,766.44
Bath and North East Somerset Council,10858974,LM1,Volunt Homes Placements Top/Up,P12,Children & Young People,HEXAGON CARE SERVICES LTD,31/05/2017,2750
Bath and North East Somerset Council,10855805,HP2,Ground Rent,P01,Transport & Highways,REDACTED,06/06/2017,525
Bath and North East Somerset Council,80695361,LM9,Day Care,P11,"Adult Care, Health & Wellbeing",S.W.A.L.L.O.W. LTD,12/06/2017,469.38
Bath and North East Somerset Council,80695361,LM9,Day Care,P11,"Adult Care, Health & Wellbeing",S.W.A.L.L.O.W. LTD,12/06/2017,754.86
Bath and North East Somerset Council,80695361,LM9,Day Care,P11,"Adult Care, Health & Wellbeing",S.W.A.L.L.O.W. LTD,12/06/2017,836.84
Bath and North East Somerset Council,80695361,LM9,Day Care,P11,"Adult Care, Health & Wellbeing",S.W.A.L.L.O.W. LTD,12/06/2017,943.32
Bath and North East Somerset Council,80695361,LM9,Day Care,P11,"Adult Care, Health & Wellbeing",S.W.A.L.L.O.W. LTD,12/06/2017,1846.8
Bath and North East Somerset Council,10856349,LM3,Residential Care,P11,"Adult Care, Health & Wellbeing",HOME FARM TRUST,12/06/2017,46464
Bath and North East Somerset Council,10857943,LM9,Day Care,P11,"Adult Care, Health & Wellbeing",S.W.A.L.L.O.W. LTD,23/06/2017,4529.16
Bath and North East Somerset Council,10857943,LM9,Day Care,P11,"Adult Care, Health & Wellbeing",S.W.A.L.L.O.W. LTD,23/06/2017,11080.8
Bath and North East Somerset Council,10849237,LL1,Services to/for Clients,P12,Children & Young People,S.W.A.L.L.O.W. LTD,25/06/2017,510.96
Bath and North East Somerset Council,80700541,LM8,Home Care,P11,"Adult Care, Health & Wellbeing",S.W.A.L.L.O.W. LTD,30/06/2017,535.5
Bath and North East Somerset Council,80700541,LM8,Home Care,P11,"Adult Care, Health & Wellbeing",S.W.A.L.L.O.W. LTD,30/06/2017,535.5
Bath and North East Somerset Council,80701785,LM9,Day Care,P11,"Adult Care, Health & Wellbeing",S.W.A.L.L.O.W. LTD,10/07/2017,469.38
Bath and North East Somerset Council,80701785,LM9,Day Care,P11,"Adult Care, Health & Wellbeing",S.W.A.L.L.O.W. LTD,10/07/2017,836.84
Bath and North East Somerset Council,80701785,LM9,Day Care,P11,"Adult Care, Health & Wellbeing",S.W.A.L.L.O.W. LTD,10/07/2017,943.32
Bath and North East Somerset Council,80705746,LM9,Day Care,P11,"Adult Care, Health & Wellbeing",S.W.A.L.L.O.W. LTD,24/07/2017,469.38
Bath and North East Somerset Council,80705746,LM9,Day Care,P11,"Adult Care, Health & Wellbeing",S.W.A.L.L.O.W. LTD,24/07/2017,836.84
Bath and North East Somerset Council,80705746,LM9,Day Care,P11,"Adult Care, Health & Wellbeing",S.W.A.L.L.O.W. LTD,24/07/2017,943.32
Bath and North East Somerset Council,80708707,LM9,Day Care,P11,"Adult Care, Health & Wellbeing",S.W.A.L.L.O.W. LTD,07/08/2017,469.38
Bath and North East Somerset Council,80708707,LM9,Day Care,P11,"Adult Care, Health & Wellbeing",S.W.A.L.L.O.W. LTD,07/08/2017,836.84
Bath and North East Somerset Council,80708707,LM9,Day Care,P11,"Adult Care, Health & Wellbeing",S.W.A.L.L.O.W. LTD,07/08/2017,943.32
Bath and North East Somerset Council,80711772,LM9,Day Care,P11,"Adult Care, Health & Wellbeing",S.W.A.L.L.O.W. LTD,21/08/2017,594.18
Bath and North East Somerset Council,80711772,LM9,Day Care,P11,"Adult Care, Health & Wellbeing",S.W.A.L.L.O.W. LTD,21/08/2017,1059.44
Bath and North East Somerset Council,80711772,LM9,Day Care,P11,"Adult Care, Health & Wellbeing",S.W.A.L.L.O.W. LTD,21/08/2017,1194.32
Bath and North East Somerset Council,10854775,LL1,Services to/for Clients,P12,Children & Young People,S.W.A.L.L.O.W. LTD,27/08/2017,881.4
Bath and North East Somerset Council,80715008,LM9,Day Care,P11,"Adult Care, Health & Wellbeing",S.W.A.L.L.O.W. LTD,04/09/2017,481.86
Bath and North East Somerset Council,80715008,LM9,Day Care,P11,"Adult Care, Health & Wellbeing",S.W.A.L.L.O.W. LTD,04/09/2017,859.1
Bath and North East Somerset Council,80715008,LM9,Day Care,P11,"Adult Care, Health & Wellbeing",S.W.A.L.L.O.W. LTD,04/09/2017,968.42
Bath and North East Somerset Council,80717210,LM8,Home Care,P11,"Adult Care, Health & Wellbeing",S.W.A.L.L.O.W. LTD,15/09/2017,1362.9
Bath and North East Somerset Council,80717864,LM9,Day Care,P11,"Adult Care, Health & Wellbeing",S.W.A.L.L.O.W. LTD,18/09/2017,481.86
Bath and North East Somerset Council,80717864,LM9,Day Care,P11,"Adult Care, Health & Wellbeing",S.W.A.L.L.O.W. LTD,18/09/2017,968.42
Bath and North East Somerset Council,10856577,LL1,Services to/for Clients,P12,Children & Young People,S.W.A.L.L.O.W. LTD,24/09/2017,528.84
Bath and North East Somerset Council,80721143,LM3,Residential Care,P11,"Adult Care, Health & Wellbeing",BCVS HOMES,02/10/2017,0.01
Bath and North East Somerset Council,80721149,LM3,Residential Care,P11,"Adult Care, Health & Wellbeing",CEDAR CARE HOMES LTD,02/10/2017,0.01
Bath and North East Somerset Council,80720715,LL8,Individualised Budget,P11,"Adult Care, Health & Wellbeing",DEVELOPING HEALTH AND INDEPENDENCE,02/10/2017,6
Bath and North East Somerset Council,80720715,LL8,Individualised Budget,P11,"Adult Care, Health & Wellbeing",DEVELOPING HEALTH AND INDEPENDENCE,02/10/2017,16
Bath and North East Somerset Council,80720988,LM6,Nursing Care,P11,"Adult Care, Health & Wellbeing",CHOLWELL HOUSE NURSING HOME,02/10/2017,22.15
Bath and North East Somerset Council,80721102,XD2,Contributions,P11,"Adult Care, Health & Wellbeing",GROVE CARE LTD,02/10/2017,22.15
Bath and North East Somerset Council,80720715,LL8,Individualised Budget,P11,"Adult Care, Health & Wellbeing",DEVELOPING HEALTH AND INDEPENDENCE,02/10/2017,23.08
Bath and North East Somerset Council,80721177,LM9,Day Care,P11,"Adult Care, Health & Wellbeing",DIMENSIONS (UK) LTD,02/10/2017,32
Bath and North East Somerset Council,80720715,LL8,Individualised Budget,P11,"Adult Care, Health & Wellbeing",DEVELOPING HEALTH AND INDEPENDENCE,02/10/2017,32.5
Bath and North East Somerset Council,80720715,LL8,Individualised Budget,P11,"Adult Care, Health & Wellbeing",DEVELOPING HEALTH AND INDEPENDENCE,02/10/2017,34.66
Bath and North East Somerset Council,80720715,LL8,Individualised Budget,P11,"Adult Care, Health & Wellbeing",DEVELOPING HEALTH AND INDEPENDENCE,02/10/2017,52
Bath and North East Somerset Council,80720715,LL8,Individualised Budget,P11,"Adult Care, Health & Wellbeing",DEVELOPING HEALTH AND INDEPENDENCE,02/10/2017,56.48
Bath and North East Somerset Council,80721006,LM6,Nursing Care,P11,"Adult Care, Health & Wellbeing",CEDAR CARE HOMES LTD,02/10/2017,66.45
Bath and North East Somerset Council,80720715,LL8,Individualised Budget,P11,"Adult Care, Health & Wellbeing",DEVELOPING HEALTH AND INDEPENDENCE,02/10/2017,70.5
Bath and North East Somerset Council,80721183,LL3,Supported Living,P11,"Adult Care, Health & Wellbeing",ARCH CARE SERVICES,02/10/2017,72.72
Bath and North East Somerset Council,80721183,LL3,Supported Living,P11,"Adult Care, Health & Wellbeing",ARCH CARE SERVICES,02/10/2017,72.72
Bath and North East Somerset Council,80721183,LL3,Supported Living,P11,"Adult Care, Health & Wellbeing",ARCH CARE SERVICES,02/10/2017,72.72
Bath and North East Somerset Council,80720715,LL8,Individualised Budget,P11,"Adult Care, Health & Wellbeing",DEVELOPING HEALTH AND INDEPENDENCE,02/10/2017,75.08
Bath and North East Somerset Council,80720715,LL8,Individualised Budget,P11,"Adult Care, Health & Wellbeing",DEVELOPING HEALTH AND INDEPENDENCE,02/10/2017,81.02
Bath and North East Somerset Council,80720900,LL8,Individualised Budget,P11,"Adult Care, Health & Wellbeing",PHOENIX (SW) LTD,02/10/2017,84.8
Bath and North East Somerset Council,80720715,LL8,Individualised Budget,P11,"Adult Care, Health & Wellbeing",DEVELOPING HEALTH AND INDEPENDENCE,02/10/2017,88
Bath and North East Somerset Council,80721183,LL3,Supported Living,P11,"Adult Care, Health & Wellbeing",ARCH CARE SERVICES,02/10/2017,90.9
Bath and North East Somerset Council,80721035,LM3,Residential Care,P11,"Adult Care, Health & Wellbeing",ASPECTS & MILESTONES TRUST,02/10/2017,95.27
Bath and North East Somerset Council,80720715,LL8,Individualised Budget,P11,"Adult Care, Health & Wellbeing",DEVELOPING HEALTH AND INDEPENDENCE,02/10/2017,96.04
Bath and North East Somerset Council,80720900,LL8,Individualised Budget,P11,"Adult Care, Health & Wellbeing",PHOENIX (SW) LTD,02/10/2017,98.4
Bath and North East Somerset Council,80720715,LL8,Individualised Budget,P11,"Adult Care, Health & Wellbeing",DEVELOPING HEALTH AND INDEPENDENCE,02/10/2017,106
Bath and North East Somerset Council,80720715,LL8,Individualised Budget,P11,"Adult Care, Health & Wellbeing",DEVELOPING HEALTH AND INDEPENDENCE,02/10/2017,106.7
Bath and North East Somerset Council,80720715,LL8,Individualised Budget,P11,"Adult Care, Health & Wellbeing",DEVELOPING HEALTH AND INDEPENDENCE,02/10/2017,108
Bath and North East Somerset Council,80720715,LL8,Individualised Budget,P11,"Adult Care, Health & Wellbeing",DEVELOPING HEALTH AND INDEPENDENCE,02/10/2017,115.54
Bath and North East Somerset Council,80720715,LL8,Individualised Budget,P11,"Adult Care, Health & Wellbeing",DEVELOPING HEALTH AND INDEPENDENCE,02/10/2017,117.88
Bath and North East Somerset Council,80720715,LL8,Individualised Budget,P11,"Adult Care, Health & Wellbeing",DEVELOPING HEALTH AND INDEPENDENCE,02/10/2017,118
Bath and North East Somerset Council,80720715,LL8,Individualised Budget,P11,"Adult Care, Health & Wellbeing",DEVELOPING HEALTH AND INDEPENDENCE,02/10/2017,120
Bath and North East Somerset Council,80720715,LL8,Individualised Budget,P11,"Adult Care, Health & Wellbeing",DEVELOPING HEALTH AND INDEPENDENCE,02/10/2017,122.42
Bath and North East Somerset Council,10854822,EA1,Training,P01,Transport & Highways,DH PEOPLE PLUS LTD,02/10/2017,122.45
Bath and North East Somerset Council,80720715,LL8,Individualised Budget,P11,"Adult Care, Health & Wellbeing",DEVELOPING HEALTH AND INDEPENDENCE,02/10/2017,124.4
Bath and North East Somerset Council,80721149,XD3,Client Contributions,P11,"Adult Care, Health & Wellbeing",CEDAR CARE HOMES LTD,02/10/2017,126
Bath and North East Somerset Council,80720715,LL8,Individualised Budget,P11,"Adult Care, Health & Wellbeing",DEVELOPING HEALTH AND INDEPENDENCE,02/10/2017,129.2
Bath and North East Somerset Council,80720715,LL8,Individualised Budget,P11,"Adult Care, Health & Wellbeing",DEVELOPING HEALTH AND INDEPENDENCE,02/10/2017,131.14
Bath and North East Somerset Council,80720715,LL8,Individualised Budget,P11,"Adult Care, Health & Wellbeing",DEVELOPING HEALTH AND INDEPENDENCE,02/10/2017,133.92
Bath and North East Somerset Council,80720900,LL8,Individualised Budget,P11,"Adult Care, Health & Wellbeing",PHOENIX (SW) LTD,02/10/2017,133.96
Bath and North East Somerset Council,80720715,LL8,Individualised Budget,P11,"Adult Care, Health & Wellbeing",DEVELOPING HEALTH AND INDEPENDENCE,02/10/2017,134.4
Bath and North East Somerset Council,80720715,LL8,Individualised Budget,P11,"Adult Care, Health & Wellbeing",DEVELOPING HEALTH AND INDEPENDENCE,02/10/2017,135.26
Bath and North East Somerset Council,80720715,LL8,Individualised Budget,P11,"Adult Care, Health & Wellbeing",DEVELOPING HEALTH AND INDEPENDENCE,02/10/2017,140.4
Bath and North East Somerset Council,80720715,LL8,Individualised Budget,P11,"Adult Care, Health & Wellbeing",DEVELOPING HEALTH AND INDEPENDENCE,02/10/2017,142.3
Bath and North East Somerset Council,80720715,LL8,Individualised Budget,P11,"Adult Care, Health & Wellbeing",DEVELOPING HEALTH AND INDEPENDENCE,02/10/2017,143.26
Bath and North East Somerset Council,80721184,LL3,Supported Living,P11,"Adult Care, Health & Wellbeing",OPTIONS FOR LIVING LTD,02/10/2017,145.38
Bath and North East Somerset Council,80721183,LM8,Home Care,P11,"Adult Care, Health & Wellbeing",ARCH CARE SERVICES,02/10/2017,145.44
Bath and North East Somerset Council,80720715,LL8,Individualised Budget,P11,"Adult Care, Health & Wellbeing",DEVELOPING HEALTH AND INDEPENDENCE,02/10/2017,147.76
Bath and North East Somerset Council,80720715,LL8,Individualised Budget,P11,"Adult Care, Health & Wellbeing",DEVELOPING HEALTH AND INDEPENDENCE,02/10/2017,148.64
Bath and North East Somerset Council,80721124,LM3,Residential Care,P11,"Adult Care, Health & Wellbeing",PONDSMEAD (SHEPTON MALLET) LTD,02/10/2017,154
Bath and North East Somerset Council,80721177,LM9,Day Care,P11,"Adult Care, Health & Wellbeing",DIMENSIONS (UK) LTD,02/10/2017,155
Bath and North East Somerset Council,80720900,LL8,Individualised Budget,P11,"Adult Care, Health & Wellbeing",PHOENIX (SW) LTD,02/10/2017,155.44
Bath and North East Somerset Council,80720900,LL8,Individualised Budget,P11,"Adult Care, Health & Wellbeing",PHOENIX (SW) LTD,02/10/2017,157.32
Bath and North East Somerset Council,80720715,LL8,Individualised Budget,P11,"Adult Care, Health & Wellbeing",DEVELOPING HEALTH AND INDEPENDENCE,02/10/2017,157.68
Bath and North East Somerset Council,80721177,LL3,Supported Living,P11,"Adult Care, Health & Wellbeing",DIMENSIONS (UK) LTD,02/10/2017,158.26
Bath and North East Somerset Council,80720715,LL8,Individualised Budget,P11,"Adult Care, Health & Wellbeing",DEVELOPING HEALTH AND INDEPENDENCE,02/10/2017,158.4
Bath and North East Somerset Council,80721184,LL3,Supported Living,P11,"Adult Care, Health & Wellbeing",OPTIONS FOR LIVING LTD,02/10/2017,159.6
Bath and North East Somerset Council,80721184,LL3,Supported Living,P11,"Adult Care, Health & Wellbeing",OPTIONS FOR LIVING LTD,02/10/2017,159.6
Bath and North East Somerset Council,80721184,LL3,Supported Living,P11,"Adult Care, Health & Wellbeing",OPTIONS FOR LIVING LTD,02/10/2017,159.6
Bath and North East Somerset Council,80721184,LL3,Supported Living,P11,"Adult Care, Health & Wellbeing",OPTIONS FOR LIVING LTD,02/10/2017,159.6
Bath and North East Somerset Council,80721184,LL3,Supported Living,P11,"Adult Care, Health & Wellbeing",OPTIONS FOR LIVING LTD,02/10/2017,159.6
Bath and North East Somerset Council,80721184,LL3,Supported Living,P11,"Adult Care, Health & Wellbeing",OPTIONS FOR LIVING LTD,02/10/2017,159.6
Bath and North East Somerset Council,80721184,LL3,Supported Living,P11,"Adult Care, Health & Wellbeing",OPTIONS FOR LIVING LTD,02/10/2017,159.6
Bath and North East Somerset Council,80721184,LL3,Supported Living,P11,"Adult Care, Health & Wellbeing",OPTIONS FOR LIVING LTD,02/10/2017,159.6
Bath and North East Somerset Council,80721184,LL3,Supported Living,P11,"Adult Care, Health & Wellbeing",OPTIONS FOR LIVING LTD,02/10/2017,159.6
Bath and North East Somerset Council,80721184,LL3,Supported Living,P11,"Adult Care, Health & Wellbeing",OPTIONS FOR LIVING LTD,02/10/2017,159.6
Bath and North East Somerset Council,80721184,LL3,Supported Living,P11,"Adult Care, Health & Wellbeing",OPTIONS FOR LIVING LTD,02/10/2017,159.6
Bath and North East Somerset Council,80721184,LL3,Supported Living,P11,"Adult Care, Health & Wellbeing",OPTIONS FOR LIVING LTD,02/10/2017,159.6
Bath and North East Somerset Council,80721184,LL3,Supported Living,P11,"Adult Care, Health & Wellbeing",OPTIONS FOR LIVING LTD,02/10/2017,159.6
Bath and North East Somerset Council,80721184,LM8,Home Care,P11,"Adult Care, Health & Wellbeing",OPTIONS FOR LIVING LTD,02/10/2017,159.6
Bath and North East Somerset Council,80721184,LL3,Supported Living,P11,"Adult Care, Health & Wellbeing",OPTIONS FOR LIVING LTD,02/10/2017,159.6
Bath and North East Somerset Council,80721184,LM8,Home Care,P11,"Adult Care, Health & Wellbeing",OPTIONS FOR LIVING LTD,02/10/2017,159.6
Bath and North East Somerset Council,80721184,LM8,Home Care,P11,"Adult Care, Health & Wellbeing",OPTIONS FOR LIVING LTD,02/10/2017,159.6
Bath and North East Somerset Council,80720715,LL8,Individualised Budget,P11,"Adult Care, Health & Wellbeing",DEVELOPING HEALTH AND INDEPENDENCE,02/10/2017,160
Bath and North East Somerset Council,80720900,LL8,Individualised Budget,P11,"Adult Care, Health & Wellbeing",PHOENIX (SW) LTD,02/10/2017,160.2
Bath and North East Somerset Council,80720715,LL8,Individualised Budget,P11,"Adult Care, Health & Wellbeing",DEVELOPING HEALTH AND INDEPENDENCE,02/10/2017,161.6
Bath and North East Somerset Council,80720900,LL8,Individualised Budget,P11,"Adult Care, Health & Wellbeing",PHOENIX (SW) LTD,02/10/2017,162.4
Bath and North East Somerset Council,80720715,LL8,Individualised Budget,P11,"Adult Care, Health & Wellbeing",DEVELOPING HEALTH AND INDEPENDENCE,02/10/2017,162.8
Bath and North East Somerset Council,80720715,LL8,Individualised Budget,P11,"Adult Care, Health & Wellbeing",DEVELOPING HEALTH AND INDEPENDENCE,02/10/2017,163.8
Bath and North East Somerset Council,80720715,LL8,Individualised Budget,P11,"Adult Care, Health & Wellbeing",DEVELOPING HEALTH AND INDEPENDENCE,02/10/2017,168.06
Bath and North East Somerset Council,80720715,LL8,Individualised Budget,P11,"Adult Care, Health & Wellbeing",DEVELOPING HEALTH AND INDEPENDENCE,02/10/2017,178
Bath and North East Somerset Council,80720715,LL8,Individualised Budget,P11,"Adult Care, Health & Wellbeing",DEVELOPING HEALTH AND INDEPENDENCE,02/10/2017,178.48
Bath and North East Somerset Council,80721184,LL3,Supported Living,P11,"Adult Care, Health & Wellbeing",OPTIONS FOR LIVING LTD,02/10/2017,179.55
Bath and North East Somerset Council,80721183,LM8,Home Care,P11,"Adult Care, Health & Wellbeing",ARCH CARE SERVICES,02/10/2017,180
Bath and North East Somerset Council,80721183,LM8,Home Care,P11,"Adult Care, Health & Wellbeing",ARCH CARE SERVICES,02/10/2017,181.8
Bath and North East Somerset Council,80721183,LM8,Home Care,P11,"Adult Care, Health & Wellbeing",ARCH CARE SERVICES,02/10/2017,181.8
Bath and North East Somerset Council,80720715,LL8,Individualised Budget,P11,"Adult Care, Health & Wellbeing",DEVELOPING HEALTH AND INDEPENDENCE,02/10/2017,182
Bath and North East Somerset Council,80720715,LL8,Individualised Budget,P11,"Adult Care, Health & Wellbeing",DEVELOPING HEALTH AND INDEPENDENCE,02/10/2017,183.82
Bath and North East Somerset Council,80720715,LL8,Individualised Budget,P11,"Adult Care, Health & Wellbeing",DEVELOPING HEALTH AND INDEPENDENCE,02/10/2017,188
Bath and North East Somerset Council,80720715,LL8,Individualised Budget,P11,"Adult Care, Health & Wellbeing",DEVELOPING HEALTH AND INDEPENDENCE,02/10/2017,188.32
Bath and North East Somerset Council,80720715,LL8,Individualised Budget,P11,"Adult Care, Health & Wellbeing",DEVELOPING HEALTH AND INDEPENDENCE,02/10/2017,189
Bath and North East Somerset Council,80720715,LL8,Individualised Budget,P11,"Adult Care, Health & Wellbeing",DEVELOPING HEALTH AND INDEPENDENCE,02/10/2017,193.38
Bath and North East Somerset Council,80721184,LM9,Day Care,P11,"Adult Care, Health & Wellbeing",OPTIONS FOR LIVING LTD,02/10/2017,197.5
Bath and North East Somerset Council,80721184,LL3,Supported Living,P11,"Adult Care, Health & Wellbeing",OPTIONS FOR LIVING LTD,02/10/2017,199.5
Bath and North East Somerset Council,80721184,LL3,Supported Living,P11,"Adult Care, Health & Wellbeing",OPTIONS FOR LIVING LTD,02/10/2017,199.5
Bath and North East Somerset Council,80721184,LM9,Day Care,P11,"Adult Care, Health & Wellbeing",OPTIONS FOR LIVING LTD,02/10/2017,204.8
Bath and North East Somerset Council,80721184,LM8,Home Care,P11,"Adult Care, Health & Wellbeing",OPTIONS FOR LIVING LTD,02/10/2017,204.8
Bath and North East Somerset Council,80720900,LL8,Individualised Budget,P11,"Adult Care, Health & Wellbeing",PHOENIX (SW) LTD,02/10/2017,206
Bath and North East Somerset Council,80720715,LL8,Individualised Budget,P11,"Adult Care, Health & Wellbeing",DEVELOPING HEALTH AND INDEPENDENCE,02/10/2017,208
Bath and North East Somerset Council,80720715,LL8,Individualised Budget,P11,"Adult Care, Health & Wellbeing",DEVELOPING HEALTH AND INDEPENDENCE,02/10/2017,208
Bath and North East Somerset Council,80720715,LL8,Individualised Budget,P11,"Adult Care, Health & Wellbeing",DEVELOPING HEALTH AND INDEPENDENCE,02/10/2017,210.46
Bath and North East Somerset Council,80720715,LL8,Individualised Budget,P11,"Adult Care, Health & Wellbeing",DEVELOPING HEALTH AND INDEPENDENCE,02/10/2017,211.86
Bath and North East Somerset Council,80720900,LL8,Individualised Budget,P11,"Adult Care, Health & Wellbeing",PHOENIX (SW) LTD,02/10/2017,212
Bath and North East Somerset Council,80720900,LL8,Individualised Budget,P11,"Adult Care, Health & Wellbeing",PHOENIX (SW) LTD,02/10/2017,212.2
Bath and North East Somerset Council,80720715,LL8,Individualised Budget,P11,"Adult Care, Health & Wellbeing",DEVELOPING HEALTH AND INDEPENDENCE,02/10/2017,213.66
Bath and North East Somerset Council,80720900,LL8,Individualised Budget,P11,"Adult Care, Health & Wellbeing",PHOENIX (SW) LTD,02/10/2017,214
Bath and North East Somerset Council,80720715,LL8,Individualised Budget,P11,"Adult Care, Health & Wellbeing",DEVELOPING HEALTH AND INDEPENDENCE,02/10/2017,214.56
Bath and North East Somerset Council,80720715,LL8,Individualised Budget,P11,"Adult Care, Health & Wellbeing",DEVELOPING HEALTH AND INDEPENDENCE,02/10/2017,216
Bath and North East Somerset Council,80720715,LL8,Individualised Budget,P11,"Adult Care, Health & Wellbeing",DEVELOPING HEALTH AND INDEPENDENCE,02/10/2017,216.44
Bath and North East Somerset Council,80720715,LL8,Individualised Budget,P11,"Adult Care, Health & Wellbeing",DEVELOPING HEALTH AND INDEPENDENCE,02/10/2017,218
Bath and North East Somerset Council,80720715,LL8,Individualised Budget,P11,"Adult Care, Health & Wellbeing",DEVELOPING HEALTH AND INDEPENDENCE,02/10/2017,218
Bath and North East Somerset Council,80721183,LL3,Supported Living,P11,"Adult Care, Health & Wellbeing",ARCH CARE SERVICES,02/10/2017,218.16
Bath and North East Somerset Council,80721154,XD3,Client Contributions,P11,"Adult Care, Health & Wellbeing",CEDAR CARE HOMES LTD,02/10/2017,220.11
Bath and North East Somerset Council,80720715,LL8,Individualised Budget,P11,"Adult Care, Health & Wellbeing",DEVELOPING HEALTH AND INDEPENDENCE,02/10/2017,226
Bath and North East Somerset Council,80720715,LL8,Individualised Budget,P11,"Adult Care, Health & Wellbeing",DEVELOPING HEALTH AND INDEPENDENCE,02/10/2017,229.5
Bath and North East Somerset Council,80720900,LL8,Individualised Budget,P11,"Adult Care, Health & Wellbeing",PHOENIX (SW) LTD,02/10/2017,230.4
Bath and North East Somerset Council,80720715,LL8,Individualised Budget,P11,"Adult Care, Health & Wellbeing",DEVELOPING HEALTH AND INDEPENDENCE,02/10/2017,232
Bath and North East Somerset Council,80720715,LL8,Individualised Budget,P11,"Adult Care, Health & Wellbeing",DEVELOPING HEALTH AND INDEPENDENCE,02/10/2017,232
Bath and North East Somerset Council,80721184,LM8,Home Care,P11,"Adult Care, Health & Wellbeing",OPTIONS FOR LIVING LTD,02/10/2017,234.64
Bath and North East Somerset Council,80721184,LM8,Home Care,P11,"Adult Care, Health & Wellbeing",OPTIONS FOR LIVING LTD,02/10/2017,234.64
Bath and North East Somerset Council,80721177,LM9,Day Care,P11,"Adult Care, Health & Wellbeing",DIMENSIONS (UK) LTD,02/10/2017,235.86
Bath and North East Somerset Council,80720715,LL8,Individualised Budget,P11,"Adult Care, Health & Wellbeing",DEVELOPING HEALTH AND INDEPENDENCE,02/10/2017,236
Bath and North East Somerset Council,80721184,LL3,Supported Living,P11,"Adult Care, Health & Wellbeing",OPTIONS FOR LIVING LTD,02/10/2017,239.4
Bath and North East Somerset Council,80721184,LL3,Supported Living,P11,"Adult Care, Health & Wellbeing",OPTIONS FOR LIVING LTD,02/10/2017,239.4
Bath and North East Somerset Council,80721184,LL3,Supported Living,P11,"Adult Care, Health & Wellbeing",OPTIONS FOR LIVING LTD,02/10/2017,239.4
Bath and North East Somerset Council,80721184,LL3,Supported Living,P11,"Adult Care, Health & Wellbeing",OPTIONS FOR LIVING LTD,02/10/2017,239.4
Bath and North East Somerset Council,80721184,LL3,Supported Living,P11,"Adult Care, Health & Wellbeing",OPTIONS FOR LIVING LTD,02/10/2017,239.4
Bath and North East Somerset Council,80721184,LL3,Supported Living,P11,"Adult Care, Health & Wellbeing",OPTIONS FOR LIVING LTD,02/10/2017,239.4
Bath and North East Somerset Council,80721184,LL3,Supported Living,P11,"Adult Care, Health & Wellbeing",OPTIONS FOR LIVING LTD,02/10/2017,239.4
Bath and North East Somerset Council,80721184,LL3,Supported Living,P11,"Adult Care, Health & Wellbeing",OPTIONS FOR LIVING LTD,02/10/2017,239.4
Bath and North East Somerset Council,80721184,LL3,Supported Living,P11,"Adult Care, Health & Wellbeing",OPTIONS FOR LIVING LTD,02/10/2017,239.4
Bath and North East Somerset Council,80721184,LL3,Supported Living,P11,"Adult Care, Health & Wellbeing",OPTIONS FOR LIVING LTD,02/10/2017,239.4
Bath and North East Somerset Council,80721184,LL3,Supported Living,P11,"Adult Care, Health & Wellbeing",OPTIONS FOR LIVING LTD,02/10/2017,239.4
Bath and North East Somerset Council,80721184,LL3,Supported Living,P11,"Adult Care, Health & Wellbeing",OPTIONS FOR LIVING LTD,02/10/2017,239.4
Bath and North East Somerset Council,80721184,LM8,Home Care,P11,"Adult Care, Health & Wellbeing",OPTIONS FOR LIVING LTD,02/10/2017,239.4
Bath and North East Somerset Council,80721184,LM8,Home Care,P11,"Adult Care, Health & Wellbeing",OPTIONS FOR LIVING LTD,02/10/2017,239.4
Bath and North East Somerset Council,80721154,LM6,Nursing Care,P11,"Adult Care, Health & Wellbeing",CEDAR CARE HOMES LTD,02/10/2017,243
Bath and North East Somerset Council,80721184,LM9,Day Care,P11,"Adult Care, Health & Wellbeing",OPTIONS FOR LIVING LTD,02/10/2017,245.76
Bath and North East Somerset Council,80721184,LM9,Day Care,P11,"Adult Care, Health & Wellbeing",OPTIONS FOR LIVING LTD,02/10/2017,245.76
Bath and North East Somerset Council,80721184,LM9,Day Care,P11,"Adult Care, Health & Wellbeing",OPTIONS FOR LIVING LTD,02/10/2017,245.76
Bath and North East Somerset Council,80721184,LM9,Day Care,P11,"Adult Care, Health & Wellbeing",OPTIONS FOR LIVING LTD,02/10/2017,245.76
Bath and North East Somerset Council,80721184,LL3,Supported Living,P11,"Adult Care, Health & Wellbeing",OPTIONS FOR LIVING LTD,02/10/2017,245.76
Bath and North East Somerset Council,80720715,LL8,Individualised Budget,P11,"Adult Care, Health & Wellbeing",DEVELOPING HEALTH AND INDEPENDENCE,02/10/2017,246
Bath and North East Somerset Council,80720900,LL8,Individualised Budget,P11,"Adult Care, Health & Wellbeing",PHOENIX (SW) LTD,02/10/2017,246
Bath and North East Somerset Council,80720900,LL8,Individualised Budget,P11,"Adult Care, Health & Wellbeing",PHOENIX (SW) LTD,02/10/2017,252
Bath and North East Somerset Council,80721157,XD3,Client Contributions,P11,"Adult Care, Health & Wellbeing",T C CAREHOME LTD,02/10/2017,253.82
Bath and North East Somerset Council,80720900,LL8,Individualised Budget,P11,"Adult Care, Health & Wellbeing",PHOENIX (SW) LTD,02/10/2017,253.86
Bath and North East Somerset Council,80720715,LL8,Individualised Budget,P11,"Adult Care, Health & Wellbeing",DEVELOPING HEALTH AND INDEPENDENCE,02/10/2017,258
Bath and North East Somerset Council,80720900,LL8,Individualised Budget,P11,"Adult Care, Health & Wellbeing",PHOENIX (SW) LTD,02/10/2017,261
Bath and North East Somerset Council,80720715,LL8,Individualised Budget,P11,"Adult Care, Health & Wellbeing",DEVELOPING HEALTH AND INDEPENDENCE,02/10/2017,263.14
Bath and North East Somerset Council,80720900,LL8,Individualised Budget,P11,"Adult Care, Health & Wellbeing",PHOENIX (SW) LTD,02/10/2017,265.04
Bath and North East Somerset Council,80720900,LL8,Individualised Budget,P11,"Adult Care, Health & Wellbeing",PHOENIX (SW) LTD,02/10/2017,268.16
Bath and North East Somerset Council,80721183,LM8,Home Care,P11,"Adult Care, Health & Wellbeing",ARCH CARE SERVICES,02/10/2017,272.7
Bath and North East Somerset Council,80720900,LL8,Individualised Budget,P11,"Adult Care, Health & Wellbeing",PHOENIX (SW) LTD,02/10/2017,278.3
Bath and North East Somerset Council,80721184,LL3,Supported Living,P11,"Adult Care, Health & Wellbeing",OPTIONS FOR LIVING LTD,02/10/2017,279.3
Bath and North East Somerset Council,80721147,LM3,Residential Care,P11,"Adult Care, Health & Wellbeing",METHODIST HOMES FOR THE AGED,02/10/2017,280.22
Bath and North East Somerset Council,80720715,LL8,Individualised Budget,P11,"Adult Care, Health & Wellbeing",DEVELOPING HEALTH AND INDEPENDENCE,02/10/2017,284.02
Bath and North East Somerset Council,80720988,LM6,Nursing Care,P11,"Adult Care, Health & Wellbeing",CHOLWELL HOUSE NURSING HOME,02/10/2017,287.95
Bath and North East Somerset Council,80720715,LL8,Individualised Budget,P11,"Adult Care, Health & Wellbeing",DEVELOPING HEALTH AND INDEPENDENCE,02/10/2017,288
Bath and North East Somerset Council,80720715,LL8,Individualised Budget,P11,"Adult Care, Health & Wellbeing",DEVELOPING HEALTH AND INDEPENDENCE,02/10/2017,289.72
Bath and North East Somerset Council,80720715,LL8,Individualised Budget,P11,"Adult Care, Health & Wellbeing",DEVELOPING HEALTH AND INDEPENDENCE,02/10/2017,289.84
Bath and North East Somerset Council,80721183,LL3,Supported Living,P11,"Adult Care, Health & Wellbeing",ARCH CARE SERVICES,02/10/2017,290.88
Bath and North East Somerset Council,80721184,LM9,Day Care,P11,"Adult Care, Health & Wellbeing",OPTIONS FOR LIVING LTD,02/10/2017,294.74
Bath and North East Somerset Council,80720715,LL8,Individualised Budget,P11,"Adult Care, Health & Wellbeing",DEVELOPING HEALTH AND INDEPENDENCE,02/10/2017,298
Bath and North East Somerset Council,80720900,LL8,Individualised Budget,P11,"Adult Care, Health & Wellbeing",PHOENIX (SW) LTD,02/10/2017,298
Bath and North East Somerset Council,80720715,LL8,Individualised Budget,P11,"Adult Care, Health & Wellbeing",DEVELOPING HEALTH AND INDEPENDENCE,02/10/2017,304.2
Bath and North East Somerset Council,80720715,LL8,Individualised Budget,P11,"Adult Care, Health & Wellbeing",DEVELOPING HEALTH AND INDEPENDENCE,02/10/2017,305.2
Bath and North East Somerset Council,80720715,LL8,Individualised Budget,P11,"Adult Care, Health & Wellbeing",DEVELOPING HEALTH AND INDEPENDENCE,02/10/2017,306.6
Bath and North East Somerset Council,80721008,LM6,Nursing Care,P11,"Adult Care, Health & Wellbeing",BARCHESTER HEALTH CARE,02/10/2017,310.1
Bath and North East Somerset Council,80721008,LM6,Nursing Care,P11,"Adult Care, Health & Wellbeing",BARCHESTER HEALTH CARE,02/10/2017,310.1
Bath and North East Somerset Council,80721008,LM6,Nursing Care,P11,"Adult Care, Health & Wellbeing",BARCHESTER HEALTH CARE,02/10/2017,310.1
Bath and North East Somerset Council,80721008,LM6,Nursing Care,P11,"Adult Care, Health & Wellbeing",BARCHESTER HEALTH CARE,02/10/2017,310.1
Bath and North East Somerset Council,80721008,LM6,Nursing Care,P11,"Adult Care, Health & Wellbeing",BARCHESTER HEALTH CARE,02/10/2017,310.1
Bath and North East Somerset Council,80721008,LM6,Nursing Care,P11,"Adult Care, Health & Wellbeing",BARCHESTER HEALTH CARE,02/10/2017,310.1
Bath and North East Somerset Council,80721008,LM6,Nursing Care,P11,"Adult Care, Health & Wellbeing",BARCHESTER HEALTH CARE,02/10/2017,310.1
Bath and North East Somerset Council,80721008,LM6,Nursing Care,P11,"Adult Care, Health & Wellbeing",BARCHESTER HEALTH CARE,02/10/2017,310.1
Bath and North East Somerset Council,80721008,LM6,Nursing Care,P11,"Adult Care, Health & Wellbeing",BARCHESTER HEALTH CARE,02/10/2017,310.1
Bath and North East Somerset Council,80721008,LM6,Nursing Care,P11,"Adult Care, Health & Wellbeing",BARCHESTER HEALTH CARE,02/10/2017,310.1
Bath and North East Somerset Council,80721008,LM6,Nursing Care,P11,"Adult Care, Health & Wellbeing",BARCHESTER HEALTH CARE,02/10/2017,310.1
Bath and North East Somerset Council,80721008,LM6,Nursing Care,P11,"Adult Care, Health & Wellbeing",BARCHESTER HEALTH CARE,02/10/2017,310.1
Bath and North East Somerset Council,80721008,LM6,Nursing Care,P11,"Adult Care, Health & Wellbeing",BARCHESTER HEALTH CARE,02/10/2017,310.1
Bath and North East Somerset Council,80721008,LM6,Nursing Care,P11,"Adult Care, Health & Wellbeing",BARCHESTER HEALTH CARE,02/10/2017,310.1
Bath and North East Somerset Council,80721008,LM6,Nursing Care,P11,"Adult Care, Health & Wellbeing",BARCHESTER HEALTH CARE,02/10/2017,310.1
Bath and North East Somerset Council,80721008,LM6,Nursing Care,P11,"Adult Care, Health & Wellbeing",BARCHESTER HEALTH CARE,02/10/2017,310.1
Bath and North East Somerset Council,80720996,LM6,Nursing Care,P11,"Adult Care, Health & Wellbeing",BARCHESTER HEALTHCARE HOMES LTD,02/10/2017,310.1
Bath and North East Somerset Council,80720996,LM6,Nursing Care,P11,"Adult Care, Health & Wellbeing",BARCHESTER HEALTHCARE HOMES LTD,02/10/2017,310.1
Bath and North East Somerset Council,80720996,LM6,Nursing Care,P11,"Adult Care, Health & Wellbeing",BARCHESTER HEALTHCARE HOMES LTD,02/10/2017,310.1
Bath and North East Somerset Council,80720996,LM6,Nursing Care,P11,"Adult Care, Health & Wellbeing",BARCHESTER HEALTHCARE HOMES LTD,02/10/2017,310.1
Bath and North East Somerset Council,80720996,LM6,Nursing Care,P11,"Adult Care, Health & Wellbeing",BARCHESTER HEALTHCARE HOMES LTD,02/10/2017,310.1
Bath and North East Somerset Council,80720996,LM6,Nursing Care,P11,"Adult Care, Health & Wellbeing",BARCHESTER HEALTHCARE HOMES LTD,02/10/2017,310.1
Bath and North East Somerset Council,80720996,LM6,Nursing Care,P11,"Adult Care, Health & Wellbeing",BARCHESTER HEALTHCARE HOMES LTD,02/10/2017,310.1
Bath and North East Somerset Council,80720996,LM6,Nursing Care,P11,"Adult Care, Health & Wellbeing",BARCHESTER HEALTHCARE HOMES LTD,02/10/2017,310.1
Bath and North East Somerset Council,80720996,LM6,Nursing Care,P11,"Adult Care, Health & Wellbeing",BARCHESTER HEALTHCARE HOMES LTD,02/10/2017,310.1
Bath and North East Somerset Council,80720996,LM6,Nursing Care,P11,"Adult Care, Health & Wellbeing",BARCHESTER HEALTHCARE HOMES LTD,02/10/2017,310.1
Bath and North East Somerset Council,80720996,LM6,Nursing Care,P11,"Adult Care, Health & Wellbeing",BARCHESTER HEALTHCARE HOMES LTD,02/10/2017,310.1
Bath and North East Somerset Council,80720996,LM6,Nursing Care,P11,"Adult Care, Health & Wellbeing",BARCHESTER HEALTHCARE HOMES LTD,02/10/2017,310.1
Bath and North East Somerset Council,80720996,LM6,Nursing Care,P11,"Adult Care, Health & Wellbeing",BARCHESTER HEALTHCARE HOMES LTD,02/10/2017,310.1
Bath and North East Somerset Council,80720996,LM6,Nursing Care,P11,"Adult Care, Health & Wellbeing",BARCHESTER HEALTHCARE HOMES LTD,02/10/2017,310.1
Bath and North East Somerset Council,80720996,LM6,Nursing Care,P11,"Adult Care, Health & Wellbeing",BARCHESTER HEALTHCARE HOMES LTD,02/10/2017,310.1
Bath and North East Somerset Council,80720996,LM6,Nursing Care,P11,"Adult Care, Health & Wellbeing",BARCHESTER HEALTHCARE HOMES LTD,02/10/2017,310.1
Bath and North East Somerset Council,80720996,LM6,Nursing Care,P11,"Adult Care, Health & Wellbeing",BARCHESTER HEALTHCARE HOMES LTD,02/10/2017,310.1
Bath and North East Somerset Council,80720996,LM6,Nursing Care,P11,"Adult Care, Health & Wellbeing",BARCHESTER HEALTHCARE HOMES LTD,02/10/2017,310.1
Bath and North East Somerset Council,80720996,LM6,Nursing Care,P11,"Adult Care, Health & Wellbeing",BARCHESTER HEALTHCARE HOMES LTD,02/10/2017,310.1
Bath and North East Somerset Council,80720996,LM6,Nursing Care,P11,"Adult Care, Health & Wellbeing",BARCHESTER HEALTHCARE HOMES LTD,02/10/2017,310.1
Bath and North East Somerset Council,80720996,LM6,Nursing Care,P11,"Adult Care, Health & Wellbeing",BARCHESTER HEALTHCARE HOMES LTD,02/10/2017,310.1
Bath and North East Somerset Council,80720996,LM6,Nursing Care,P11,"Adult Care, Health & Wellbeing",BARCHESTER HEALTHCARE HOMES LTD,02/10/2017,310.1
Bath and North East Somerset Council,80720996,LM6,Nursing Care,P11,"Adult Care, Health & Wellbeing",BARCHESTER HEALTHCARE HOMES LTD,02/10/2017,310.1
Bath and North East Somerset Council,80720996,LM6,Nursing Care,P11,"Adult Care, Health & Wellbeing",BARCHESTER HEALTHCARE HOMES LTD,02/10/2017,310.1
Bath and North East Somerset Council,80720996,LM6,Nursing Care,P11,"Adult Care, Health & Wellbeing",BARCHESTER HEALTHCARE HOMES LTD,02/10/2017,310.1
Bath and North East Somerset Council,80720996,LM6,Nursing Care,P11,"Adult Care, Health & Wellbeing",BARCHESTER HEALTHCARE HOMES LTD,02/10/2017,310.1
Bath and North East Somerset Council,80720996,LM6,Nursing Care,P11,"Adult Care, Health & Wellbeing",BARCHESTER HEALTHCARE HOMES LTD,02/10/2017,310.1
Bath and North East Somerset Council,80720996,LM6,Nursing Care,P11,"Adult Care, Health & Wellbeing",BARCHESTER HEALTHCARE HOMES LTD,02/10/2017,310.1
Bath and North East Somerset Council,80720996,LM6,Nursing Care,P11,"Adult Care, Health & Wellbeing",BARCHESTER HEALTHCARE HOMES LTD,02/10/2017,310.1
Bath and North East Somerset Council,80720996,LM6,Nursing Care,P11,"Adult Care, Health & Wellbeing",BARCHESTER HEALTHCARE HOMES LTD,02/10/2017,310.1
Bath and North East Somerset Council,80720996,LM6,Nursing Care,P11,"Adult Care, Health & Wellbeing",BARCHESTER HEALTHCARE HOMES LTD,02/10/2017,310.1
Bath and North East Somerset Council,80720996,LM6,Nursing Care,P11,"Adult Care, Health & Wellbeing",BARCHESTER HEALTHCARE HOMES LTD,02/10/2017,310.1
Bath and North East Somerset Council,80720996,LM6,Nursing Care,P11,"Adult Care, Health & Wellbeing",BARCHESTER HEALTHCARE HOMES LTD,02/10/2017,310.1
Bath and North East Somerset Council,80720996,LM6,Nursing Care,P11,"Adult Care, Health & Wellbeing",BARCHESTER HEALTHCARE HOMES LTD,02/10/2017,310.1
Bath and North East Somerset Council,80720996,LM6,Nursing Care,P11,"Adult Care, Health & Wellbeing",BARCHESTER HEALTHCARE HOMES LTD,02/10/2017,310.1
Bath and North East Somerset Council,80720996,LM6,Nursing Care,P11,"Adult Care, Health & Wellbeing",BARCHESTER HEALTHCARE HOMES LTD,02/10/2017,310.1
Bath and North East Somerset Council,80720996,LM6,Nursing Care,P11,"Adult Care, Health & Wellbeing",BARCHESTER HEALTHCARE HOMES LTD,02/10/2017,310.1
Bath and North East Somerset Council,80720996,LM6,Nursing Care,P11,"Adult Care, Health & Wellbeing",BARCHESTER HEALTHCARE HOMES LTD,02/10/2017,310.1
Bath and North East Somerset Council,80720996,LM6,Nursing Care,P11,"Adult Care, Health & Wellbeing",BARCHESTER HEALTHCARE HOMES LTD,02/10/2017,310.1
Bath and North East Somerset Council,80720996,LM6,Nursing Care,P11,"Adult Care, Health & Wellbeing",BARCHESTER HEALTHCARE HOMES LTD,02/10/2017,310.1
Bath and North East Somerset Council,80720996,LM6,Nursing Care,P11,"Adult Care, Health & Wellbeing",BARCHESTER HEALTHCARE HOMES LTD,02/10/2017,310.1
Bath and North East Somerset Council,80720996,LM6,Nursing Care,P11,"Adult Care, Health & Wellbeing",BARCHESTER HEALTHCARE HOMES LTD,02/10/2017,310.1
Bath and North East Somerset Council,80720996,LM6,Nursing Care,P11,"Adult Care, Health & Wellbeing",BARCHESTER HEALTHCARE HOMES LTD,02/10/2017,310.1
Bath and North East Somerset Council,80720996,LM6,Nursing Care,P11,"Adult Care, Health & Wellbeing",BARCHESTER HEALTHCARE HOMES LTD,02/10/2017,310.1
Bath and North East Somerset Council,80720996,LM6,Nursing Care,P11,"Adult Care, Health & Wellbeing",BARCHESTER HEALTHCARE HOMES LTD,02/10/2017,310.1
Bath and North East Somerset Council,80720996,LM6,Nursing Care,P11,"Adult Care, Health & Wellbeing",BARCHESTER HEALTHCARE HOMES LTD,02/10/2017,310.1
Bath and North East Somerset Council,80720996,LM6,Nursing Care,P11,"Adult Care, Health & Wellbeing",BARCHESTER HEALTHCARE HOMES LTD,02/10/2017,310.1
Bath and North East Somerset Council,80720996,LM6,Nursing Care,P11,"Adult Care, Health & Wellbeing",BARCHESTER HEALTHCARE HOMES LTD,02/10/2017,310.1
Bath and North East Somerset Council,80720996,LM6,Nursing Care,P11,"Adult Care, Health & Wellbeing",BARCHESTER HEALTHCARE HOMES LTD,02/10/2017,310.1
Bath and North East Somerset Council,80720996,LM6,Nursing Care,P11,"Adult Care, Health & Wellbeing",BARCHESTER HEALTHCARE HOMES LTD,02/10/2017,310.1
Bath and North East Somerset Council,80720996,LM6,Nursing Care,P11,"Adult Care, Health & Wellbeing",BARCHESTER HEALTHCARE HOMES LTD,02/10/2017,310.1
Bath and North East Somerset Council,80720996,LM6,Nursing Care,P11,"Adult Care, Health & Wellbeing",BARCHESTER HEALTHCARE HOMES LTD,02/10/2017,310.1
Bath and North East Somerset Council,80720996,LM6,Nursing Care,P11,"Adult Care, Health & Wellbeing",BARCHESTER HEALTHCARE HOMES LTD,02/10/2017,310.1
Bath and North East Somerset Council,80721004,LM6,Nursing Care,P11,"Adult Care, Health & Wellbeing",BARKER CHEMICALS LTD T/A ST TERESA'S NH,02/10/2017,310.1
Bath and North East Somerset Council,80721004,LM6,Nursing Care,P11,"Adult Care, Health & Wellbeing",BARKER CHEMICALS LTD T/A ST TERESA'S NH,02/10/2017,310.1
Bath and North East Somerset Council,80721004,LM6,Nursing Care,P11,"Adult Care, Health & Wellbeing",BARKER CHEMICALS LTD T/A ST TERESA'S NH,02/10/2017,310.1
Bath and North East Somerset Council,80721004,LM6,Nursing Care,P11,"Adult Care, Health & Wellbeing",BARKER CHEMICALS LTD T/A ST TERESA'S NH,02/10/2017,310.1
Bath and North East Somerset Council,80721004,LM6,Nursing Care,P11,"Adult Care, Health & Wellbeing",BARKER CHEMICALS LTD T/A ST TERESA'S NH,02/10/2017,310.1
Bath and North East Somerset Council,80721004,LM6,Nursing Care,P11,"Adult Care, Health & Wellbeing",BARKER CHEMICALS LTD T/A ST TERESA'S NH,02/10/2017,310.1
Bath and North East Somerset Council,80721004,LM6,Nursing Care,P11,"Adult Care, Health & Wellbeing",BARKER CHEMICALS LTD T/A ST TERESA'S NH,02/10/2017,310.1
Bath and North East Somerset Council,80721004,LM6,Nursing Care,P11,"Adult Care, Health & Wellbeing",BARKER CHEMICALS LTD T/A ST TERESA'S NH,02/10/2017,310.1
Bath and North East Somerset Council,80721004,LM6,Nursing Care,P11,"Adult Care, Health & Wellbeing",BARKER CHEMICALS LTD T/A ST TERESA'S NH,02/10/2017,310.1
Bath and North East Somerset Council,80721004,LM6,Nursing Care,P11,"Adult Care, Health & Wellbeing",BARKER CHEMICALS LTD T/A ST TERESA'S NH,02/10/2017,310.1
Bath and North East Somerset Council,80721004,LM6,Nursing Care,P11,"Adult Care, Health & Wellbeing",BARKER CHEMICALS LTD T/A ST TERESA'S NH,02/10/2017,310.1
Bath and North East Somerset Council,80721004,LM6,Nursing Care,P11,"Adult Care, Health & Wellbeing",BARKER CHEMICALS LTD T/A ST TERESA'S NH,02/10/2017,310.1
Bath and North East Somerset Council,80721004,LM6,Nursing Care,P11,"Adult Care, Health & Wellbeing",BARKER CHEMICALS LTD T/A ST TERESA'S NH,02/10/2017,310.1
Bath and North East Somerset Council,80721004,LM6,Nursing Care,P11,"Adult Care, Health & Wellbeing",BARKER CHEMICALS LTD T/A ST TERESA'S NH,02/10/2017,310.1
Bath and North East Somerset Council,80721004,LM6,Nursing Care,P11,"Adult Care, Health & Wellbeing",BARKER CHEMICALS LTD T/A ST TERESA'S NH,02/10/2017,310.1
Bath and North East Somerset Council,80721004,LM6,Nursing Care,P11,"Adult Care, Health & Wellbeing",BARKER CHEMICALS LTD T/A ST TERESA'S NH,02/10/2017,310.1
Bath and North East Somerset Council,80721004,LM6,Nursing Care,P11,"Adult Care, Health & Wellbeing",BARKER CHEMICALS LTD T/A ST TERESA'S NH,02/10/2017,310.1
Bath and North East Somerset Council,80721004,LM6,Nursing Care,P11,"Adult Care, Health & Wellbeing",BARKER CHEMICALS LTD T/A ST TERESA'S NH,02/10/2017,310.1
Bath and North East Somerset Council,80721004,LM6,Nursing Care,P11,"Adult Care, Health & Wellbeing",BARKER CHEMICALS LTD T/A ST TERESA'S NH,02/10/2017,310.1
Bath and North East Somerset Council,80721004,LM6,Nursing Care,P11,"Adult Care, Health & Wellbeing",BARKER CHEMICALS LTD T/A ST TERESA'S NH,02/10/2017,310.1
Bath and North East Somerset Council,80721004,LM6,Nursing Care,P11,"Adult Care, Health & Wellbeing",BARKER CHEMICALS LTD T/A ST TERESA'S NH,02/10/2017,310.1
Bath and North East Somerset Council,80721004,LM6,Nursing Care,P11,"Adult Care, Health & Wellbeing",BARKER CHEMICALS LTD T/A ST TERESA'S NH,02/10/2017,310.1
Bath and North East Somerset Council,80721004,LM6,Nursing Care,P11,"Adult Care, Health & Wellbeing",BARKER CHEMICALS LTD T/A ST TERESA'S NH,02/10/2017,310.1
Bath and North East Somerset Council,80721004,LM6,Nursing Care,P11,"Adult Care, Health & Wellbeing",BARKER CHEMICALS LTD T/A ST TERESA'S NH,02/10/2017,310.1
Bath and North East Somerset Council,80721004,LM6,Nursing Care,P11,"Adult Care, Health & Wellbeing",BARKER CHEMICALS LTD T/A ST TERESA'S NH,02/10/2017,310.1
Bath and North East Somerset Council,80721004,LM6,Nursing Care,P11,"Adult Care, Health & Wellbeing",BARKER CHEMICALS LTD T/A ST TERESA'S NH,02/10/2017,310.1
Bath and North East Somerset Council,80721004,LM6,Nursing Care,P11,"Adult Care, Health & Wellbeing",BARKER CHEMICALS LTD T/A ST TERESA'S NH,02/10/2017,310.1
Bath and North East Somerset Council,80721004,LM6,Nursing Care,P11,"Adult Care, Health & Wellbeing",BARKER CHEMICALS LTD T/A ST TERESA'S NH,02/10/2017,310.1
Bath and North East Somerset Council,80721004,LM6,Nursing Care,P11,"Adult Care, Health & Wellbeing",BARKER CHEMICALS LTD T/A ST TERESA'S NH,02/10/2017,310.1
Bath and North East Somerset Council,80721004,LM6,Nursing Care,P11,"Adult Care, Health & Wellbeing",BARKER CHEMICALS LTD T/A ST TERESA'S NH,02/10/2017,310.1
Bath and North East Somerset Council,80721004,LM6,Nursing Care,P11,"Adult Care, Health & Wellbeing",BARKER CHEMICALS LTD T/A ST TERESA'S NH,02/10/2017,310.1
Bath and North East Somerset Council,80721004,LM6,Nursing Care,P11,"Adult Care, Health & Wellbeing",BARKER CHEMICALS LTD T/A ST TERESA'S NH,02/10/2017,310.1
Bath and North East Somerset Council,80721004,LM6,Nursing Care,P11,"Adult Care, Health & Wellbeing",BARKER CHEMICALS LTD T/A ST TERESA'S NH,02/10/2017,310.1
Bath and North East Somerset Council,80721004,LM6,Nursing Care,P11,"Adult Care, Health & Wellbeing",BARKER CHEMICALS LTD T/A ST TERESA'S NH,02/10/2017,310.1
Bath and North East Somerset Council,80721004,LM6,Nursing Care,P11,"Adult Care, Health & Wellbeing",BARKER CHEMICALS LTD T/A ST TERESA'S NH,02/10/2017,310.1
Bath and North East Somerset Council,80721004,LM6,Nursing Care,P11,"Adult Care, Health & Wellbeing",BARKER CHEMICALS LTD T/A ST TERESA'S NH,02/10/2017,310.1
Bath and North East Somerset Council,80721004,LM6,Nursing Care,P11,"Adult Care, Health & Wellbeing",BARKER CHEMICALS LTD T/A ST TERESA'S NH,02/10/2017,310.1
Bath and North East Somerset Council,80721004,LM6,Nursing Care,P11,"Adult Care, Health & Wellbeing",BARKER CHEMICALS LTD T/A ST TERESA'S NH,02/10/2017,310.1
Bath and North East Somerset Council,80721004,LM6,Nursing Care,P11,"Adult Care, Health & Wellbeing",BARKER CHEMICALS LTD T/A ST TERESA'S NH,02/10/2017,310.1
Bath and North East Somerset Council,80721004,LM6,Nursing Care,P11,"Adult Care, Health & Wellbeing",BARKER CHEMICALS LTD T/A ST TERESA'S NH,02/10/2017,310.1
Bath and North East Somerset Council,80721004,LM6,Nursing Care,P11,"Adult Care, Health & Wellbeing",BARKER CHEMICALS LTD T/A ST TERESA'S NH,02/10/2017,310.1
Bath and North East Somerset Council,80721004,LM6,Nursing Care,P11,"Adult Care, Health & Wellbeing",BARKER CHEMICALS LTD T/A ST TERESA'S NH,02/10/2017,310.1
Bath and North East Somerset Council,80721004,LM6,Nursing Care,P11,"Adult Care, Health & Wellbeing",BARKER CHEMICALS LTD T/A ST TERESA'S NH,02/10/2017,310.1
Bath and North East Somerset Council,80721004,LM6,Nursing Care,P11,"Adult Care, Health & Wellbeing",BARKER CHEMICALS LTD T/A ST TERESA'S NH,02/10/2017,310.1
Bath and North East Somerset Council,80721004,LM6,Nursing Care,P11,"Adult Care, Health & Wellbeing",BARKER CHEMICALS LTD T/A ST TERESA'S NH,02/10/2017,310.1
Bath and North East Somerset Council,80721004,LM6,Nursing Care,P11,"Adult Care, Health & Wellbeing",BARKER CHEMICALS LTD T/A ST TERESA'S NH,02/10/2017,310.1
Bath and North East Somerset Council,80721004,LM6,Nursing Care,P11,"Adult Care, Health & Wellbeing",BARKER CHEMICALS LTD T/A ST TERESA'S NH,02/10/2017,310.1
Bath and North East Somerset Council,80721004,LM6,Nursing Care,P11,"Adult Care, Health & Wellbeing",BARKER CHEMICALS LTD T/A ST TERESA'S NH,02/10/2017,310.1
Bath and North East Somerset Council,80721004,LM6,Nursing Care,P11,"Adult Care, Health & Wellbeing",BARKER CHEMICALS LTD T/A ST TERESA'S NH,02/10/2017,310.1
Bath and North East Somerset Council,80721004,LM6,Nursing Care,P11,"Adult Care, Health & Wellbeing",BARKER CHEMICALS LTD T/A ST TERESA'S NH,02/10/2017,310.1
Bath and North East Somerset Council,80721004,LM6,Nursing Care,P11,"Adult Care, Health & Wellbeing",BARKER CHEMICALS LTD T/A ST TERESA'S NH,02/10/2017,310.1
Bath and North East Somerset Council,80721004,LM6,Nursing Care,P11,"Adult Care, Health & Wellbeing",BARKER CHEMICALS LTD T/A ST TERESA'S NH,02/10/2017,310.1
Bath and North East Somerset Council,80720989,LM6,Nursing Care,P11,"Adult Care, Health & Wellbeing",BRIDGE CARE LTD,02/10/2017,310.1
Bath and North East Somerset Council,80720989,LM6,Nursing Care,P11,"Adult Care, Health & Wellbeing",BRIDGE CARE LTD,02/10/2017,310.1
Bath and North East Somerset Council,80720989,LM6,Nursing Care,P11,"Adult Care, Health & Wellbeing",BRIDGE CARE LTD,02/10/2017,310.1
Bath and North East Somerset Council,80720989,LM6,Nursing Care,P11,"Adult Care, Health & Wellbeing",BRIDGE CARE LTD,02/10/2017,310.1
Bath and North East Somerset Council,80720989,LM6,Nursing Care,P11,"Adult Care, Health & Wellbeing",BRIDGE CARE LTD,02/10/2017,310.1
Bath and North East Somerset Council,80720989,LM6,Nursing Care,P11,"Adult Care, Health & Wellbeing",BRIDGE CARE LTD,02/10/2017,310.1
Bath and North East Somerset Council,80720989,LM6,Nursing Care,P11,"Adult Care, Health & Wellbeing",BRIDGE CARE LTD,02/10/2017,310.1
Bath and North East Somerset Council,80720989,LM6,Nursing Care,P11,"Adult Care, Health & Wellbeing",BRIDGE CARE LTD,02/10/2017,310.1
Bath and North East Somerset Council,80720989,LM6,Nursing Care,P11,"Adult Care, Health & Wellbeing",BRIDGE CARE LTD,02/10/2017,310.1
Bath and North East Somerset Council,80720989,LM6,Nursing Care,P11,"Adult Care, Health & Wellbeing",BRIDGE CARE LTD,02/10/2017,310.1
Bath and North East Somerset Council,80720989,LM6,Nursing Care,P11,"Adult Care, Health & Wellbeing",BRIDGE CARE LTD,02/10/2017,310.1
Bath and North East Somerset Council,80720989,LM6,Nursing Care,P11,"Adult Care, Health & Wellbeing",BRIDGE CARE LTD,02/10/2017,310.1
Bath and North East Somerset Council,80720989,LM6,Nursing Care,P11,"Adult Care, Health & Wellbeing",BRIDGE CARE LTD,02/10/2017,310.1
Bath and North East Somerset Council,80720989,LM6,Nursing Care,P11,"Adult Care, Health & Wellbeing",BRIDGE CARE LTD,02/10/2017,310.1
Bath and North East Somerset Council,80720993,LM6,Nursing Care,P11,"Adult Care, Health & Wellbeing",BYBROOK HOUSE,02/10/2017,310.1
Bath and North East Somerset Council,80720993,LM6,Nursing Care,P11,"Adult Care, Health & Wellbeing",BYBROOK HOUSE,02/10/2017,310.1
Bath and North East Somerset Council,80720993,LM6,Nursing Care,P11,"Adult Care, Health & Wellbeing",BYBROOK HOUSE,02/10/2017,310.1
Bath and North East Somerset Council,80720993,LM6,Nursing Care,P11,"Adult Care, Health & Wellbeing",BYBROOK HOUSE,02/10/2017,310.1
Bath and North East Somerset Council,80721005,LM6,Nursing Care,P11,"Adult Care, Health & Wellbeing",CARE FIRST CARE HOMES LTD,02/10/2017,310.1
Bath and North East Somerset Council,80721005,LM6,Nursing Care,P11,"Adult Care, Health & Wellbeing",CARE FIRST CARE HOMES LTD,02/10/2017,310.1
Bath and North East Somerset Council,80721005,LM6,Nursing Care,P11,"Adult Care, Health & Wellbeing",CARE FIRST CARE HOMES LTD,02/10/2017,310.1
Bath and North East Somerset Council,80721005,LM6,Nursing Care,P11,"Adult Care, Health & Wellbeing",CARE FIRST CARE HOMES LTD,02/10/2017,310.1
Bath and North East Somerset Council,80721005,LM6,Nursing Care,P11,"Adult Care, Health & Wellbeing",CARE FIRST CARE HOMES LTD,02/10/2017,310.1
Bath and North East Somerset Council,80721005,LM6,Nursing Care,P11,"Adult Care, Health & Wellbeing",CARE FIRST CARE HOMES LTD,02/10/2017,310.1
Bath and North East Somerset Council,80721005,LM6,Nursing Care,P11,"Adult Care, Health & Wellbeing",CARE FIRST CARE HOMES LTD,02/10/2017,310.1
Bath and North East Somerset Council,80721005,LM6,Nursing Care,P11,"Adult Care, Health & Wellbeing",CARE FIRST CARE HOMES LTD,02/10/2017,310.1
Bath and North East Somerset Council,80721005,LM6,Nursing Care,P11,"Adult Care, Health & Wellbeing",CARE FIRST CARE HOMES LTD,02/10/2017,310.1
Bath and North East Somerset Council,80721002,LM6,Nursing Care,P11,"Adult Care, Health & Wellbeing",CEDAR CARE HOMES LTD,02/10/2017,310.1
Bath and North East Somerset Council,80721002,LM6,Nursing Care,P11,"Adult Care, Health & Wellbeing",CEDAR CARE HOMES LTD,02/10/2017,310.1
Bath and North East Somerset Council,80721002,LM6,Nursing Care,P11,"Adult Care, Health & Wellbeing",CEDAR CARE HOMES LTD,02/10/2017,310.1
Bath and North East Somerset Council,80721002,LM6,Nursing Care,P11,"Adult Care, Health & Wellbeing",CEDAR CARE HOMES LTD,02/10/2017,310.1
Bath and North East Somerset Council,80721002,LM6,Nursing Care,P11,"Adult Care, Health & Wellbeing",CEDAR CARE HOMES LTD,02/10/2017,310.1
Bath and North East Somerset Council,80721002,LM6,Nursing Care,P11,"Adult Care, Health & Wellbeing",CEDAR CARE HOMES LTD,02/10/2017,310.1
Bath and North East Somerset Council,80721002,LM6,Nursing Care,P11,"Adult Care, Health & Wellbeing",CEDAR CARE HOMES LTD,02/10/2017,310.1
Bath and North East Somerset Council,80721002,LM6,Nursing Care,P11,"Adult Care, Health & Wellbeing",CEDAR CARE HOMES LTD,02/10/2017,310.1
Bath and North East Somerset Council,80721002,LM6,Nursing Care,P11,"Adult Care, Health & Wellbeing",CEDAR CARE HOMES LTD,02/10/2017,310.1
Bath and North East Somerset Council,80721002,LM6,Nursing Care,P11,"Adult Care, Health & Wellbeing",CEDAR CARE HOMES LTD,02/10/2017,310.1
Bath and North East Somerset Council,80721002,LM6,Nursing Care,P11,"Adult Care, Health & Wellbeing",CEDAR CARE HOMES LTD,02/10/2017,310.1
Bath and North East Somerset Council,80721002,LM6,Nursing Care,P11,"Adult Care, Health & Wellbeing",CEDAR CARE HOMES LTD,02/10/2017,310.1
Bath and North East Somerset Council,80721002,LM6,Nursing Care,P11,"Adult Care, Health & Wellbeing",CEDAR CARE HOMES LTD,02/10/2017,310.1
Bath and North East Somerset Council,80721002,LM6,Nursing Care,P11,"Adult Care, Health & Wellbeing",CEDAR CARE HOMES LTD,02/10/2017,310.1
Bath and North East Somerset Council,80721002,LM6,Nursing Care,P11,"Adult Care, Health & Wellbeing",CEDAR CARE HOMES LTD,02/10/2017,310.1
Bath and North East Somerset Council,80721002,LM6,Nursing Care,P11,"Adult Care, Health & Wellbeing",CEDAR CARE HOMES LTD,02/10/2017,310.1
Bath and North East Somerset Council,80721002,LM6,Nursing Care,P11,"Adult Care, Health & Wellbeing",CEDAR CARE HOMES LTD,02/10/2017,310.1
Bath and North East Somerset Council,80721002,LM6,Nursing Care,P11,"Adult Care, Health & Wellbeing",CEDAR CARE HOMES LTD,02/10/2017,310.1
Bath and North East Somerset Council,80721002,LM6,Nursing Care,P11,"Adult Care, Health & Wellbeing",CEDAR CARE HOMES LTD,02/10/2017,310.1
Bath and North East Somerset Council,80721002,LM6,Nursing Care,P11,"Adult Care, Health & Wellbeing",CEDAR CARE HOMES LTD,02/10/2017,310.1
Bath and North East Somerset Council,80721002,LM6,Nursing Care,P11,"Adult Care, Health & Wellbeing",CEDAR CARE HOMES LTD,02/10/2017,310.1
Bath and North East Somerset Council,80721002,LM6,Nursing Care,P11,"Adult Care, Health & Wellbeing",CEDAR CARE HOMES LTD,02/10/2017,310.1
Bath and North East Somerset Council,80721002,LM6,Nursing Care,P11,"Adult Care, Health & Wellbeing",CEDAR CARE HOMES LTD,02/10/2017,310.1
Bath and North East Somerset Council,80721002,LM6,Nursing Care,P11,"Adult Care, Health & Wellbeing",CEDAR CARE HOMES LTD,02/10/2017,310.1
Bath and North East Somerset Council,80721002,LM6,Nursing Care,P11,"Adult Care, Health & Wellbeing",CEDAR CARE HOMES LTD,02/10/2017,310.1
Bath and North East Somerset Council,80721002,LM6,Nursing Care,P11,"Adult Care, Health & Wellbeing",CEDAR CARE HOMES LTD,02/10/2017,310.1
Bath and North East Somerset Council,80721002,LM6,Nursing Care,P11,"Adult Care, Health & Wellbeing",CEDAR CARE HOMES LTD,02/10/2017,310.1
Bath and North East Somerset Council,80721002,LM6,Nursing Care,P11,"Adult Care, Health & Wellbeing",CEDAR CARE HOMES LTD,02/10/2017,310.1
Bath and North East Somerset Council,80721002,LM6,Nursing Care,P11,"Adult Care, Health & Wellbeing",CEDAR CARE HOMES LTD,02/10/2017,310.1
Bath and North East Somerset Council,80721006,LM6,Nursing Care,P11,"Adult Care, Health & Wellbeing",CEDAR CARE HOMES LTD,02/10/2017,310.1
Bath and North East Somerset Council,80721006,LM6,Nursing Care,P11,"Adult Care, Health & Wellbeing",CEDAR CARE HOMES LTD,02/10/2017,310.1
Bath and North East Somerset Council,80721006,LM6,Nursing Care,P11,"Adult Care, Health & Wellbeing",CEDAR CARE HOMES LTD,02/10/2017,310.1
Bath and North East Somerset Council,80721006,LM6,Nursing Care,P11,"Adult Care, Health & Wellbeing",CEDAR CARE HOMES LTD,02/10/2017,310.1
Bath and North East Somerset Council,80721006,LM6,Nursing Care,P11,"Adult Care, Health & Wellbeing",CEDAR CARE HOMES LTD,02/10/2017,310.1
Bath and North East Somerset Council,80721006,LM6,Nursing Care,P11,"Adult Care, Health & Wellbeing",CEDAR CARE HOMES LTD,02/10/2017,310.1
Bath and North East Somerset Council,80721006,LM6,Nursing Care,P11,"Adult Care, Health & Wellbeing",CEDAR CARE HOMES LTD,02/10/2017,310.1
Bath and North East Somerset Council,80721006,LM6,Nursing Care,P11,"Adult Care, Health & Wellbeing",CEDAR CARE HOMES LTD,02/10/2017,310.1
Bath and North East Somerset Council,80721006,LM6,Nursing Care,P11,"Adult Care, Health & Wellbeing",CEDAR CARE HOMES LTD,02/10/2017,310.1
Bath and North East Somerset Council,80721006,LM6,Nursing Care,P11,"Adult Care, Health & Wellbeing",CEDAR CARE HOMES LTD,02/10/2017,310.1
Bath and North East Somerset Council,80721006,LM6,Nursing Care,P11,"Adult Care, Health & Wellbeing",CEDAR CARE HOMES LTD,02/10/2017,310.1
Bath and North East Somerset Council,80721006,LM6,Nursing Care,P11,"Adult Care, Health & Wellbeing",CEDAR CARE HOMES LTD,02/10/2017,310.1
Bath and North East Somerset Council,80721006,LM6,Nursing Care,P11,"Adult Care, Health & Wellbeing",CEDAR CARE HOMES LTD,02/10/2017,310.1
Bath and North East Somerset Council,80721006,LM6,Nursing Care,P11,"Adult Care, Health & Wellbeing",CEDAR CARE HOMES LTD,02/10/2017,310.1
Bath and North East Somerset Council,80721006,LM6,Nursing Care,P11,"Adult Care, Health & Wellbeing",CEDAR CARE HOMES LTD,02/10/2017,310.1
Bath and North East Somerset Council,80721006,LM6,Nursing Care,P11,"Adult Care, Health & Wellbeing",CEDAR CARE HOMES LTD,02/10/2017,310.1
Bath and North East Somerset Council,80721006,LM6,Nursing Care,P11,"Adult Care, Health & Wellbeing",CEDAR CARE HOMES LTD,02/10/2017,310.1
Bath and North East Somerset Council,80721006,LM6,Nursing Care,P11,"Adult Care, Health & Wellbeing",CEDAR CARE HOMES LTD,02/10/2017,310.1
Bath and North East Somerset Council,80721006,LM6,Nursing Care,P11,"Adult Care, Health & Wellbeing",CEDAR CARE HOMES LTD,02/10/2017,310.1
Bath and North East Somerset Council,80721006,LM6,Nursing Care,P11,"Adult Care, Health & Wellbeing",CEDAR CARE HOMES LTD,02/10/2017,310.1
Bath and North East Somerset Council,80721006,LM6,Nursing Care,P11,"Adult Care, Health & Wellbeing",CEDAR CARE HOMES LTD,02/10/2017,310.1
Bath and North East Somerset Council,80721006,LM6,Nursing Care,P11,"Adult Care, Health & Wellbeing",CEDAR CARE HOMES LTD,02/10/2017,310.1
Bath and North East Somerset Council,80721006,LM6,Nursing Care,P11,"Adult Care, Health & Wellbeing",CEDAR CARE HOMES LTD,02/10/2017,310.1
Bath and North East Somerset Council,80721006,LM6,Nursing Care,P11,"Adult Care, Health & Wellbeing",CEDAR CARE HOMES LTD,02/10/2017,310.1
Bath and North East Somerset Council,80721006,LM6,Nursing Care,P11,"Adult Care, Health & Wellbeing",CEDAR CARE HOMES LTD,02/10/2017,310.1
Bath and North East Somerset Council,80721006,LM6,Nursing Care,P11,"Adult Care, Health & Wellbeing",CEDAR CARE HOMES LTD,02/10/2017,310.1
Bath and North East Somerset Council,80721006,LM6,Nursing Care,P11,"Adult Care, Health & Wellbeing",CEDAR CARE HOMES LTD,02/10/2017,310.1
Bath and North East Somerset Council,80721006,LM6,Nursing Care,P11,"Adult Care, Health & Wellbeing",CEDAR CARE HOMES LTD,02/10/2017,310.1
Bath and North East Somerset Council,80721006,LM6,Nursing Care,P11,"Adult Care, Health & Wellbeing",CEDAR CARE HOMES LTD,02/10/2017,310.1
Bath and North East Somerset Council,80721006,LM6,Nursing Care,P11,"Adult Care, Health & Wellbeing",CEDAR CARE HOMES LTD,02/10/2017,310.1
Bath and North East Somerset Council,80721006,LM6,Nursing Care,P11,"Adult Care, Health & Wellbeing",CEDAR CARE HOMES LTD,02/10/2017,310.1
Bath and North East Somerset Council,80721006,LM6,Nursing Care,P11,"Adult Care, Health & Wellbeing",CEDAR CARE HOMES LTD,02/10/2017,310.1
Bath and North East Somerset Council,80721006,LM6,Nursing Care,P11,"Adult Care, Health & Wellbeing",CEDAR CARE HOMES LTD,02/10/2017,310.1
Bath and North East Somerset Council,80721006,LM6,Nursing Care,P11,"Adult Care, Health & Wellbeing",CEDAR CARE HOMES LTD,02/10/2017,310.1
Bath and North East Somerset Council,80721006,LM6,Nursing Care,P11,"Adult Care, Health & Wellbeing",CEDAR CARE HOMES LTD,02/10/2017,310.1
Bath and North East Somerset Council,80721006,LM6,Nursing Care,P11,"Adult Care, Health & Wellbeing",CEDAR CARE HOMES LTD,02/10/2017,310.1
Bath and North East Somerset Council,80721006,LM6,Nursing Care,P11,"Adult Care, Health & Wellbeing",CEDAR CARE HOMES LTD,02/10/2017,310.1
Bath and North East Somerset Council,80721006,LM6,Nursing Care,P11,"Adult Care, Health & Wellbeing",CEDAR CARE HOMES LTD,02/10/2017,310.1
Bath and North East Somerset Council,80721006,LM6,Nursing Care,P11,"Adult Care, Health & Wellbeing",CEDAR CARE HOMES LTD,02/10/2017,310.1
Bath and North East Somerset Council,80720992,LM6,Nursing Care,P11,"Adult Care, Health & Wellbeing",CEDAR PARK NURSING HOME,02/10/2017,310.1
Bath and North East Somerset Council,80720992,LM6,Nursing Care,P11,"Adult Care, Health & Wellbeing",CEDAR PARK NURSING HOME,02/10/2017,310.1
Bath and North East Somerset Council,80720992,LM6,Nursing Care,P11,"Adult Care, Health & Wellbeing",CEDAR PARK NURSING HOME,02/10/2017,310.1
Bath and North East Somerset Council,80720992,LM6,Nursing Care,P11,"Adult Care, Health & Wellbeing",CEDAR PARK NURSING HOME,02/10/2017,310.1
Bath and North East Somerset Council,80720992,LM6,Nursing Care,P11,"Adult Care, Health & Wellbeing",CEDAR PARK NURSING HOME,02/10/2017,310.1
Bath and North East Somerset Council,80720992,LM6,Nursing Care,P11,"Adult Care, Health & Wellbeing",CEDAR PARK NURSING HOME,02/10/2017,310.1
Bath and North East Somerset Council,80720992,LM6,Nursing Care,P11,"Adult Care, Health & Wellbeing",CEDAR PARK NURSING HOME,02/10/2017,310.1
Bath and North East Somerset Council,80720992,LM6,Nursing Care,P11,"Adult Care, Health & Wellbeing",CEDAR PARK NURSING HOME,02/10/2017,310.1
Bath and North East Somerset Council,80720992,LM6,Nursing Care,P11,"Adult Care, Health & Wellbeing",CEDAR PARK NURSING HOME,02/10/2017,310.1
Bath and North East Somerset Council,80720992,LM6,Nursing Care,P11,"Adult Care, Health & Wellbeing",CEDAR PARK NURSING HOME,02/10/2017,310.1
Bath and North East Somerset Council,80720992,LM6,Nursing Care,P11,"Adult Care, Health & Wellbeing",CEDAR PARK NURSING HOME,02/10/2017,310.1
Bath and North East Somerset Council,80720992,LM6,Nursing Care,P11,"Adult Care, Health & Wellbeing",CEDAR PARK NURSING HOME,02/10/2017,310.1
Bath and North East Somerset Council,80720992,LM6,Nursing Care,P11,"Adult Care, Health & Wellbeing",CEDAR PARK NURSING HOME,02/10/2017,310.1
Bath and North East Somerset Council,80720992,LM6,Nursing Care,P11,"Adult Care, Health & Wellbeing",CEDAR PARK NURSING HOME,02/10/2017,310.1
Bath and North East Somerset Council,80720992,LM6,Nursing Care,P11,"Adult Care, Health & Wellbeing",CEDAR PARK NURSING HOME,02/10/2017,310.1
Bath and North East Somerset Council,80720992,LM6,Nursing Care,P11,"Adult Care, Health & Wellbeing",CEDAR PARK NURSING HOME,02/10/2017,310.1
Bath and North East Somerset Council,80720992,LM6,Nursing Care,P11,"Adult Care, Health & Wellbeing",CEDAR PARK NURSING HOME,02/10/2017,310.1
Bath and North East Somerset Council,80720992,LM6,Nursing Care,P11,"Adult Care, Health & Wellbeing",CEDAR PARK NURSING HOME,02/10/2017,310.1
Bath and North East Somerset Council,80720992,LM6,Nursing Care,P11,"Adult Care, Health & Wellbeing",CEDAR PARK NURSING HOME,02/10/2017,310.1
Bath and North East Somerset Council,80720992,LM6,Nursing Care,P11,"Adult Care, Health & Wellbeing",CEDAR PARK NURSING HOME,02/10/2017,310.1
Bath and North East Somerset Council,80720992,LM6,Nursing Care,P11,"Adult Care, Health & Wellbeing",CEDAR PARK NURSING HOME,02/10/2017,310.1
Bath and North East Somerset Council,80720992,LM6,Nursing Care,P11,"Adult Care, Health & Wellbeing",CEDAR PARK NURSING HOME,02/10/2017,310.1
Bath and North East Somerset Council,80720992,LM6,Nursing Care,P11,"Adult Care, Health & Wellbeing",CEDAR PARK NURSING HOME,02/10/2017,310.1
Bath and North East Somerset Council,80720992,LM6,Nursing Care,P11,"Adult Care, Health & Wellbeing",CEDAR PARK NURSING HOME,02/10/2017,310.1
Bath and North East Somerset Council,80720992,LM6,Nursing Care,P11,"Adult Care, Health & Wellbeing",CEDAR PARK NURSING HOME,02/10/2017,310.1
Bath and North East Somerset Council,80720992,LM6,Nursing Care,P11,"Adult Care, Health & Wellbeing",CEDAR PARK NURSING HOME,02/10/2017,310.1
Bath and North East Somerset Council,80720992,LM6,Nursing Care,P11,"Adult Care, Health & Wellbeing",CEDAR PARK NURSING HOME,02/10/2017,310.1
Bath and North East Somerset Council,80720992,LM6,Nursing Care,P11,"Adult Care, Health & Wellbeing",CEDAR PARK NURSING HOME,02/10/2017,310.1
Bath and North East Somerset Council,80720992,LM6,Nursing Care,P11,"Adult Care, Health & Wellbeing",CEDAR PARK NURSING HOME,02/10/2017,310.1
Bath and North East Somerset Council,80720992,LM6,Nursing Care,P11,"Adult Care, Health & Wellbeing",CEDAR PARK NURSING HOME,02/10/2017,310.1
Bath and North East Somerset Council,80720992,LM6,Nursing Care,P11,"Adult Care, Health & Wellbeing",CEDAR PARK NURSING HOME,02/10/2017,310.1
Bath and North East Somerset Council,80720992,LM6,Nursing Care,P11,"Adult Care, Health & Wellbeing",CEDAR PARK NURSING HOME,02/10/2017,310.1
Bath and North East Somerset Council,80720992,LM6,Nursing Care,P11,"Adult Care, Health & Wellbeing",CEDAR PARK NURSING HOME,02/10/2017,310.1
Bath and North East Somerset Council,80721007,LM6,Nursing Care,P11,"Adult Care, Health & Wellbeing",CHERRY GARDEN PROPERTIES LTD,02/10/2017,310.1
Bath and North East Somerset Council,80721007,LM6,Nursing Care,P11,"Adult Care, Health & Wellbeing",CHERRY GARDEN PROPERTIES LTD,02/10/2017,310.1
Bath and North East Somerset Council,80721007,LM6,Nursing Care,P11,"Adult Care, Health & Wellbeing",CHERRY GARDEN PROPERTIES LTD,02/10/2017,310.1
Bath and North East Somerset Council,80721007,LM6,Nursing Care,P11,"Adult Care, Health & Wellbeing",CHERRY GARDEN PROPERTIES LTD,02/10/2017,310.1
Bath and North East Somerset Council,80721007,LM6,Nursing Care,P11,"Adult Care, Health & Wellbeing",CHERRY GARDEN PROPERTIES LTD,02/10/2017,310.1
Bath and North East Somerset Council,80721007,LM6,Nursing Care,P11,"Adult Care, Health & Wellbeing",CHERRY GARDEN PROPERTIES LTD,02/10/2017,310.1
Bath and North East Somerset Council,80721007,LM6,Nursing Care,P11,"Adult Care, Health & Wellbeing",CHERRY GARDEN PROPERTIES LTD,02/10/2017,310.1
Bath and North East Somerset Council,80721007,LM6,Nursing Care,P11,"Adult Care, Health & Wellbeing",CHERRY GARDEN PROPERTIES LTD,02/10/2017,310.1
Bath and North East Somerset Council,80721007,LM6,Nursing Care,P11,"Adult Care, Health & Wellbeing",CHERRY GARDEN PROPERTIES LTD,02/10/2017,310.1
Bath and North East Somerset Council,80721007,LM6,Nursing Care,P11,"Adult Care, Health & Wellbeing",CHERRY GARDEN PROPERTIES LTD,02/10/2017,310.1
Bath and North East Somerset Council,80721007,LM6,Nursing Care,P11,"Adult Care, Health & Wellbeing",CHERRY GARDEN PROPERTIES LTD,02/10/2017,310.1
Bath and North East Somerset Council,80721007,LM6,Nursing Care,P11,"Adult Care, Health & Wellbeing",CHERRY GARDEN PROPERTIES LTD,02/10/2017,310.1
Bath and North East Somerset Council,80721007,LM6,Nursing Care,P11,"Adult Care, Health & Wellbeing",CHERRY GARDEN PROPERTIES LTD,02/10/2017,310.1
Bath and North East Somerset Council,80721007,LM6,Nursing Care,P11,"Adult Care, Health & Wellbeing",CHERRY GARDEN PROPERTIES LTD,02/10/2017,310.1
Bath and North East Somerset Council,80721007,LM6,Nursing Care,P11,"Adult Care, Health & Wellbeing",CHERRY GARDEN PROPERTIES LTD,02/10/2017,310.1
Bath and North East Somerset Council,80721007,LM6,Nursing Care,P11,"Adult Care, Health & Wellbeing",CHERRY GARDEN PROPERTIES LTD,02/10/2017,310.1
Bath and North East Somerset Council,80721007,LM6,Nursing Care,P11,"Adult Care, Health & Wellbeing",CHERRY GARDEN PROPERTIES LTD,02/10/2017,310.1
Bath and North East Somerset Council,80721007,LM6,Nursing Care,P11,"Adult Care, Health & Wellbeing",CHERRY GARDEN PROPERTIES LTD,02/10/2017,310.1
Bath and North East Somerset Council,80721007,LM6,Nursing Care,P11,"Adult Care, Health & Wellbeing",CHERRY GARDEN PROPERTIES LTD,02/10/2017,310.1
Bath and North East Somerset Council,80721007,LM6,Nursing Care,P11,"Adult Care, Health & Wellbeing",CHERRY GARDEN PROPERTIES LTD,02/10/2017,310.1
Bath and North East Somerset Council,80721007,LM6,Nursing Care,P11,"Adult Care, Health & Wellbeing",CHERRY GARDEN PROPERTIES LTD,02/10/2017,310.1
Bath and North East Somerset Council,80721007,LM6,Nursing Care,P11,"Adult Care, Health & Wellbeing",CHERRY GARDEN PROPERTIES LTD,02/10/2017,310.1
Bath and North East Somerset Council,80721007,LM6,Nursing Care,P11,"Adult Care, Health & Wellbeing",CHERRY GARDEN PROPERTIES LTD,02/10/2017,310.1
Bath and North East Somerset Council,80721007,LM6,Nursing Care,P11,"Adult Care, Health & Wellbeing",CHERRY GARDEN PROPERTIES LTD,02/10/2017,310.1
Bath and North East Somerset Council,80721007,LM6,Nursing Care,P11,"Adult Care, Health & Wellbeing",CHERRY GARDEN PROPERTIES LTD,02/10/2017,310.1
Bath and North East Somerset Council,80720988,LM6,Nursing Care,P11,"Adult Care, Health & Wellbeing",CHOLWELL HOUSE NURSING HOME,02/10/2017,310.1
Bath and North East Somerset Council,80720988,LM6,Nursing Care,P11,"Adult Care, Health & Wellbeing",CHOLWELL HOUSE NURSING HOME,02/10/2017,310.1
Bath and North East Somerset Council,80720988,LM6,Nursing Care,P11,"Adult Care, Health & Wellbeing",CHOLWELL HOUSE NURSING HOME,02/10/2017,310.1
Bath and North East Somerset Council,80720988,LM6,Nursing Care,P11,"Adult Care, Health & Wellbeing",CHOLWELL HOUSE NURSING HOME,02/10/2017,310.1
Bath and North East Somerset Council,80720988,LM6,Nursing Care,P11,"Adult Care, Health & Wellbeing",CHOLWELL HOUSE NURSING HOME,02/10/2017,310.1
Bath and North East Somerset Council,80720988,LM6,Nursing Care,P11,"Adult Care, Health & Wellbeing",CHOLWELL HOUSE NURSING HOME,02/10/2017,310.1
Bath and North East Somerset Council,80720988,LM6,Nursing Care,P11,"Adult Care, Health & Wellbeing",CHOLWELL HOUSE NURSING HOME,02/10/2017,310.1
Bath and North East Somerset Council,80720988,LM6,Nursing Care,P11,"Adult Care, Health & Wellbeing",CHOLWELL HOUSE NURSING HOME,02/10/2017,310.1
Bath and North East Somerset Council,80720988,LM6,Nursing Care,P11,"Adult Care, Health & Wellbeing",CHOLWELL HOUSE NURSING HOME,02/10/2017,310.1
Bath and North East Somerset Council,80720988,LM6,Nursing Care,P11,"Adult Care, Health & Wellbeing",CHOLWELL HOUSE NURSING HOME,02/10/2017,310.1
Bath and North East Somerset Council,80720988,LM6,Nursing Care,P11,"Adult Care, Health & Wellbeing",CHOLWELL HOUSE NURSING HOME,02/10/2017,310.1
Bath and North East Somerset Council,80720988,LM6,Nursing Care,P11,"Adult Care, Health & Wellbeing",CHOLWELL HOUSE NURSING HOME,02/10/2017,310.1
Bath and North East Somerset Council,80720988,LM6,Nursing Care,P11,"Adult Care, Health & Wellbeing",CHOLWELL HOUSE NURSING HOME,02/10/2017,310.1
Bath and North East Somerset Council,80720988,LM6,Nursing Care,P11,"Adult Care, Health & Wellbeing",CHOLWELL HOUSE NURSING HOME,02/10/2017,310.1
Bath and North East Somerset Council,80720988,LM6,Nursing Care,P11,"Adult Care, Health & Wellbeing",CHOLWELL HOUSE NURSING HOME,02/10/2017,310.1
Bath and North East Somerset Council,80720988,LM6,Nursing Care,P11,"Adult Care, Health & Wellbeing",CHOLWELL HOUSE NURSING HOME,02/10/2017,310.1
Bath and North East Somerset Council,80720988,LM6,Nursing Care,P11,"Adult Care, Health & Wellbeing",CHOLWELL HOUSE NURSING HOME,02/10/2017,310.1
Bath and North East Somerset Council,80720988,LM6,Nursing Care,P11,"Adult Care, Health & Wellbeing",CHOLWELL HOUSE NURSING HOME,02/10/2017,310.1
Bath and North East Somerset Council,80720988,LM6,Nursing Care,P11,"Adult Care, Health & Wellbeing",CHOLWELL HOUSE NURSING HOME,02/10/2017,310.1
Bath and North East Somerset Council,80720988,LM6,Nursing Care,P11,"Adult Care, Health & Wellbeing",CHOLWELL HOUSE NURSING HOME,02/10/2017,310.1
Bath and North East Somerset Council,80720988,LM6,Nursing Care,P11,"Adult Care, Health & Wellbeing",CHOLWELL HOUSE NURSING HOME,02/10/2017,310.1
Bath and North East Somerset Council,80720988,LM6,Nursing Care,P11,"Adult Care, Health & Wellbeing",CHOLWELL HOUSE NURSING HOME,02/10/2017,310.1
Bath and North East Somerset Council,80720988,LM6,Nursing Care,P11,"Adult Care, Health & Wellbeing",CHOLWELL HOUSE NURSING HOME,02/10/2017,310.1
Bath and North East Somerset Council,80720988,LM6,Nursing Care,P11,"Adult Care, Health & Wellbeing",CHOLWELL HOUSE NURSING HOME,02/10/2017,310.1
Bath and North East Somerset Council,80720988,LM6,Nursing Care,P11,"Adult Care, Health & Wellbeing",CHOLWELL HOUSE NURSING HOME,02/10/2017,310.1
Bath and North East Somerset Council,80720988,LM6,Nursing Care,P11,"Adult Care, Health & Wellbeing",CHOLWELL HOUSE NURSING HOME,02/10/2017,310.1
Bath and North East Somerset Council,80720991,LM6,Nursing Care,P11,"Adult Care, Health & Wellbeing",CRANHILL NURSING HOME LTD,02/10/2017,310.1
Bath and North East Somerset Council,80720991,LM6,Nursing Care,P11,"Adult Care, Health & Wellbeing",CRANHILL NURSING HOME LTD,02/10/2017,310.1
Bath and North East Somerset Council,80720991,LM6,Nursing Care,P11,"Adult Care, Health & Wellbeing",CRANHILL NURSING HOME LTD,02/10/2017,310.1
Bath and North East Somerset Council,80720991,LM6,Nursing Care,P11,"Adult Care, Health & Wellbeing",CRANHILL NURSING HOME LTD,02/10/2017,310.1
Bath and North East Somerset Council,80720991,LM6,Nursing Care,P11,"Adult Care, Health & Wellbeing",CRANHILL NURSING HOME LTD,02/10/2017,310.1
Bath and North East Somerset Council,80720991,LM6,Nursing Care,P11,"Adult Care, Health & Wellbeing",CRANHILL NURSING HOME LTD,02/10/2017,310.1
Bath and North East Somerset Council,80720991,LM6,Nursing Care,P11,"Adult Care, Health & Wellbeing",CRANHILL NURSING HOME LTD,02/10/2017,310.1
Bath and North East Somerset Council,80720991,LM6,Nursing Care,P11,"Adult Care, Health & Wellbeing",CRANHILL NURSING HOME LTD,02/10/2017,310.1
Bath and North East Somerset Council,80720991,LM6,Nursing Care,P11,"Adult Care, Health & Wellbeing",CRANHILL NURSING HOME LTD,02/10/2017,310.1
Bath and North East Somerset Council,80720991,LM6,Nursing Care,P11,"Adult Care, Health & Wellbeing",CRANHILL NURSING HOME LTD,02/10/2017,310.1
Bath and North East Somerset Council,80720991,LM6,Nursing Care,P11,"Adult Care, Health & Wellbeing",CRANHILL NURSING HOME LTD,02/10/2017,310.1
Bath and North East Somerset Council,80720991,LM6,Nursing Care,P11,"Adult Care, Health & Wellbeing",CRANHILL NURSING HOME LTD,02/10/2017,310.1
Bath and North East Somerset Council,80720991,LM6,Nursing Care,P11,"Adult Care, Health & Wellbeing",CRANHILL NURSING HOME LTD,02/10/2017,310.1
Bath and North East Somerset Council,80720991,LM6,Nursing Care,P11,"Adult Care, Health & Wellbeing",CRANHILL NURSING HOME LTD,02/10/2017,310.1
Bath and North East Somerset Council,80720991,LM6,Nursing Care,P11,"Adult Care, Health & Wellbeing",CRANHILL NURSING HOME LTD,02/10/2017,310.1
Bath and North East Somerset Council,80720991,LM6,Nursing Care,P11,"Adult Care, Health & Wellbeing",CRANHILL NURSING HOME LTD,02/10/2017,310.1
Bath and North East Somerset Council,80720994,LM6,Nursing Care,P11,"Adult Care, Health & Wellbeing",CULVERHAY NURSING HOME,02/10/2017,310.1
Bath and North East Somerset Council,80720994,LM6,Nursing Care,P11,"Adult Care, Health & Wellbeing",CULVERHAY NURSING HOME,02/10/2017,310.1
Bath and North East Somerset Council,80720994,LM6,Nursing Care,P11,"Adult Care, Health & Wellbeing",CULVERHAY NURSING HOME,02/10/2017,310.1
Bath and North East Somerset Council,80720994,LM6,Nursing Care,P11,"Adult Care, Health & Wellbeing",CULVERHAY NURSING HOME,02/10/2017,310.1
Bath and North East Somerset Council,80720994,LM6,Nursing Care,P11,"Adult Care, Health & Wellbeing",CULVERHAY NURSING HOME,02/10/2017,310.1
Bath and North East Somerset Council,80720994,LM6,Nursing Care,P11,"Adult Care, Health & Wellbeing",CULVERHAY NURSING HOME,02/10/2017,310.1
Bath and North East Somerset Council,80720994,LM6,Nursing Care,P11,"Adult Care, Health & Wellbeing",CULVERHAY NURSING HOME,02/10/2017,310.1
Bath and North East Somerset Council,80720994,LM6,Nursing Care,P11,"Adult Care, Health & Wellbeing",CULVERHAY NURSING HOME,02/10/2017,310.1
Bath and North East Somerset Council,80720994,LM6,Nursing Care,P11,"Adult Care, Health & Wellbeing",CULVERHAY NURSING HOME,02/10/2017,310.1
Bath and North East Somerset Council,80720994,LM6,Nursing Care,P11,"Adult Care, Health & Wellbeing",CULVERHAY NURSING HOME,02/10/2017,310.1
Bath and North East Somerset Council,80720994,LM6,Nursing Care,P11,"Adult Care, Health & Wellbeing",CULVERHAY NURSING HOME,02/10/2017,310.1
Bath and North East Somerset Council,80720994,LM6,Nursing Care,P11,"Adult Care, Health & Wellbeing",CULVERHAY NURSING HOME,02/10/2017,310.1
Bath and North East Somerset Council,80720994,LM6,Nursing Care,P11,"Adult Care, Health & Wellbeing",CULVERHAY NURSING HOME,02/10/2017,310.1
Bath and North East Somerset Council,80720994,LM6,Nursing Care,P11,"Adult Care, Health & Wellbeing",CULVERHAY NURSING HOME,02/10/2017,310.1
Bath and North East Somerset Council,80720994,LM6,Nursing Care,P11,"Adult Care, Health & Wellbeing",CULVERHAY NURSING HOME,02/10/2017,310.1
Bath and North East Somerset Council,80720994,LM6,Nursing Care,P11,"Adult Care, Health & Wellbeing",CULVERHAY NURSING HOME,02/10/2017,310.1
Bath and North East Somerset Council,80720994,LM6,Nursing Care,P11,"Adult Care, Health & Wellbeing",CULVERHAY NURSING HOME,02/10/2017,310.1
Bath and North East Somerset Council,80720994,LM6,Nursing Care,P11,"Adult Care, Health & Wellbeing",CULVERHAY NURSING HOME,02/10/2017,310.1
Bath and North East Somerset Council,80720994,LM6,Nursing Care,P11,"Adult Care, Health & Wellbeing",CULVERHAY NURSING HOME,02/10/2017,310.1
Bath and North East Somerset Council,80720994,LM6,Nursing Care,P11,"Adult Care, Health & Wellbeing",CULVERHAY NURSING HOME,02/10/2017,310.1
Bath and North East Somerset Council,80720994,LM6,Nursing Care,P11,"Adult Care, Health & Wellbeing",CULVERHAY NURSING HOME,02/10/2017,310.1
Bath and North East Somerset Council,80720994,LM6,Nursing Care,P11,"Adult Care, Health & Wellbeing",CULVERHAY NURSING HOME,02/10/2017,310.1
Bath and North East Somerset Council,80720994,LM6,Nursing Care,P11,"Adult Care, Health & Wellbeing",CULVERHAY NURSING HOME,02/10/2017,310.1
Bath and North East Somerset Council,80720994,LM6,Nursing Care,P11,"Adult Care, Health & Wellbeing",CULVERHAY NURSING HOME,02/10/2017,310.1
Bath and North East Somerset Council,80720994,LM6,Nursing Care,P11,"Adult Care, Health & Wellbeing",CULVERHAY NURSING HOME,02/10/2017,310.1
Bath and North East Somerset Council,80720994,LM6,Nursing Care,P11,"Adult Care, Health & Wellbeing",CULVERHAY NURSING HOME,02/10/2017,310.1
Bath and North East Somerset Council,80720994,LM6,Nursing Care,P11,"Adult Care, Health & Wellbeing",CULVERHAY NURSING HOME,02/10/2017,310.1
Bath and North East Somerset Council,80720994,LM6,Nursing Care,P11,"Adult Care, Health & Wellbeing",CULVERHAY NURSING HOME,02/10/2017,310.1
Bath and North East Somerset Council,80720994,LM6,Nursing Care,P11,"Adult Care, Health & Wellbeing",CULVERHAY NURSING HOME,02/10/2017,310.1
Bath and North East Somerset Council,80720994,LM6,Nursing Care,P11,"Adult Care, Health & Wellbeing",CULVERHAY NURSING HOME,02/10/2017,310.1
Bath and North East Somerset Council,80720994,LM6,Nursing Care,P11,"Adult Care, Health & Wellbeing",CULVERHAY NURSING HOME,02/10/2017,310.1
Bath and North East Somerset Council,80720994,LM6,Nursing Care,P11,"Adult Care, Health & Wellbeing",CULVERHAY NURSING HOME,02/10/2017,310.1
Bath and North East Somerset Council,80720994,LM6,Nursing Care,P11,"Adult Care, Health & Wellbeing",CULVERHAY NURSING HOME,02/10/2017,310.1
Bath and North East Somerset Council,80720994,LM6,Nursing Care,P11,"Adult Care, Health & Wellbeing",CULVERHAY NURSING HOME,02/10/2017,310.1
Bath and North East Somerset Council,80720994,LM6,Nursing Care,P11,"Adult Care, Health & Wellbeing",CULVERHAY NURSING HOME,02/10/2017,310.1
Bath and North East Somerset Council,80720994,LM6,Nursing Care,P11,"Adult Care, Health & Wellbeing",CULVERHAY NURSING HOME,02/10/2017,310.1
Bath and North East Somerset Council,80720994,LM6,Nursing Care,P11,"Adult Care, Health & Wellbeing",CULVERHAY NURSING HOME,02/10/2017,310.1
Bath and North East Somerset Council,80720994,LM6,Nursing Care,P11,"Adult Care, Health & Wellbeing",CULVERHAY NURSING HOME,02/10/2017,310.1
Bath and North East Somerset Council,80720994,LM6,Nursing Care,P11,"Adult Care, Health & Wellbeing",CULVERHAY NURSING HOME,02/10/2017,310.1
Bath and North East Somerset Council,80720994,LM6,Nursing Care,P11,"Adult Care, Health & Wellbeing",CULVERHAY NURSING HOME,02/10/2017,310.1
Bath and North East Somerset Council,80720994,LM6,Nursing Care,P11,"Adult Care, Health & Wellbeing",CULVERHAY NURSING HOME,02/10/2017,310.1
Bath and North East Somerset Council,80720994,LM6,Nursing Care,P11,"Adult Care, Health & Wellbeing",CULVERHAY NURSING HOME,02/10/2017,310.1
Bath and North East Somerset Council,80720994,LM6,Nursing Care,P11,"Adult Care, Health & Wellbeing",CULVERHAY NURSING HOME,02/10/2017,310.1
Bath and North East Somerset Council,80720994,LM6,Nursing Care,P11,"Adult Care, Health & Wellbeing",CULVERHAY NURSING HOME,02/10/2017,310.1
Bath and North East Somerset Council,80720994,LM6,Nursing Care,P11,"Adult Care, Health & Wellbeing",CULVERHAY NURSING HOME,02/10/2017,310.1
Bath and North East Somerset Council,80720994,LM6,Nursing Care,P11,"Adult Care, Health & Wellbeing",CULVERHAY NURSING HOME,02/10/2017,310.1
Bath and North East Somerset Council,80720994,LM6,Nursing Care,P11,"Adult Care, Health & Wellbeing",CULVERHAY NURSING HOME,02/10/2017,310.1
Bath and North East Somerset Council,80720997,LM6,Nursing Care,P11,"Adult Care, Health & Wellbeing",LARKHALL SPRINGS NURSING HOME,02/10/2017,310.1
Bath and North East Somerset Council,80720997,LM6,Nursing Care,P11,"Adult Care, Health & Wellbeing",LARKHALL SPRINGS NURSING HOME,02/10/2017,310.1
Bath and North East Somerset Council,80720997,LM6,Nursing Care,P11,"Adult Care, Health & Wellbeing",LARKHALL SPRINGS NURSING HOME,02/10/2017,310.1
Bath and North East Somerset Council,80720997,LM6,Nursing Care,P11,"Adult Care, Health & Wellbeing",LARKHALL SPRINGS NURSING HOME,02/10/2017,310.1
Bath and North East Somerset Council,80720997,LM6,Nursing Care,P11,"Adult Care, Health & Wellbeing",LARKHALL SPRINGS NURSING HOME,02/10/2017,310.1
Bath and North East Somerset Council,80720997,LM6,Nursing Care,P11,"Adult Care, Health & Wellbeing",LARKHALL SPRINGS NURSING HOME,02/10/2017,310.1
Bath and North East Somerset Council,80720997,LM6,Nursing Care,P11,"Adult Care, Health & Wellbeing",LARKHALL SPRINGS NURSING HOME,02/10/2017,310.1
Bath and North East Somerset Council,80720997,LM6,Nursing Care,P11,"Adult Care, Health & Wellbeing",LARKHALL SPRINGS NURSING HOME,02/10/2017,310.1
Bath and North East Somerset Council,80720997,LM6,Nursing Care,P11,"Adult Care, Health & Wellbeing",LARKHALL SPRINGS NURSING HOME,02/10/2017,310.1
Bath and North East Somerset Council,80720997,LM6,Nursing Care,P11,"Adult Care, Health & Wellbeing",LARKHALL SPRINGS NURSING HOME,02/10/2017,310.1
Bath and North East Somerset Council,80720997,LM6,Nursing Care,P11,"Adult Care, Health & Wellbeing",LARKHALL SPRINGS NURSING HOME,02/10/2017,310.1
Bath and North East Somerset Council,80720997,LM6,Nursing Care,P11,"Adult Care, Health & Wellbeing",LARKHALL SPRINGS NURSING HOME,02/10/2017,310.1
Bath and North East Somerset Council,80720997,LM6,Nursing Care,P11,"Adult Care, Health & Wellbeing",LARKHALL SPRINGS NURSING HOME,02/10/2017,310.1
Bath and North East Somerset Council,80720997,LM6,Nursing Care,P11,"Adult Care, Health & Wellbeing",LARKHALL SPRINGS NURSING HOME,02/10/2017,310.1
Bath and North East Somerset Council,80720997,LM6,Nursing Care,P11,"Adult Care, Health & Wellbeing",LARKHALL SPRINGS NURSING HOME,02/10/2017,310.1
Bath and North East Somerset Council,80720997,LM6,Nursing Care,P11,"Adult Care, Health & Wellbeing",LARKHALL SPRINGS NURSING HOME,02/10/2017,310.1
Bath and North East Somerset Council,80720997,LM6,Nursing Care,P11,"Adult Care, Health & Wellbeing",LARKHALL SPRINGS NURSING HOME,02/10/2017,310.1
Bath and North East Somerset Council,80720997,LM6,Nursing Care,P11,"Adult Care, Health & Wellbeing",LARKHALL SPRINGS NURSING HOME,02/10/2017,310.1
Bath and North East Somerset Council,80720997,LM6,Nursing Care,P11,"Adult Care, Health & Wellbeing",LARKHALL SPRINGS NURSING HOME,02/10/2017,310.1
Bath and North East Somerset Council,80720997,LM6,Nursing Care,P11,"Adult Care, Health & Wellbeing",LARKHALL SPRINGS NURSING HOME,02/10/2017,310.1
Bath and North East Somerset Council,80720997,LM6,Nursing Care,P11,"Adult Care, Health & Wellbeing",LARKHALL SPRINGS NURSING HOME,02/10/2017,310.1
Bath and North East Somerset Council,80720997,LM6,Nursing Care,P11,"Adult Care, Health & Wellbeing",LARKHALL SPRINGS NURSING HOME,02/10/2017,310.1
Bath and North East Somerset Council,80720997,LM6,Nursing Care,P11,"Adult Care, Health & Wellbeing",LARKHALL SPRINGS NURSING HOME,02/10/2017,310.1
Bath and North East Somerset Council,80720997,LM6,Nursing Care,P11,"Adult Care, Health & Wellbeing",LARKHALL SPRINGS NURSING HOME,02/10/2017,310.1
Bath and North East Somerset Council,80720997,LM6,Nursing Care,P11,"Adult Care, Health & Wellbeing",LARKHALL SPRINGS NURSING HOME,02/10/2017,310.1
Bath and North East Somerset Council,80720997,LM6,Nursing Care,P11,"Adult Care, Health & Wellbeing",LARKHALL SPRINGS NURSING HOME,02/10/2017,310.1
Bath and North East Somerset Council,80720997,LM6,Nursing Care,P11,"Adult Care, Health & Wellbeing",LARKHALL SPRINGS NURSING HOME,02/10/2017,310.1
Bath and North East Somerset Council,80720997,LM6,Nursing Care,P11,"Adult Care, Health & Wellbeing",LARKHALL SPRINGS NURSING HOME,02/10/2017,310.1
Bath and North East Somerset Council,80721001,LM6,Nursing Care,P11,"Adult Care, Health & Wellbeing",LEONARD CHESHIRE FOUNDATION,02/10/2017,310.1
Bath and North East Somerset Council,80721001,LM6,Nursing Care,P11,"Adult Care, Health & Wellbeing",LEONARD CHESHIRE FOUNDATION,02/10/2017,310.1
Bath and North East Somerset Council,80721001,LM6,Nursing Care,P11,"Adult Care, Health & Wellbeing",LEONARD CHESHIRE FOUNDATION,02/10/2017,310.1
Bath and North East Somerset Council,80721001,LM6,Nursing Care,P11,"Adult Care, Health & Wellbeing",LEONARD CHESHIRE FOUNDATION,02/10/2017,310.1
Bath and North East Somerset Council,80721001,LM6,Nursing Care,P11,"Adult Care, Health & Wellbeing",LEONARD CHESHIRE FOUNDATION,02/10/2017,310.1
Bath and North East Somerset Council,80721001,LM6,Nursing Care,P11,"Adult Care, Health & Wellbeing",LEONARD CHESHIRE FOUNDATION,02/10/2017,310.1
Bath and North East Somerset Council,80721001,LM6,Nursing Care,P11,"Adult Care, Health & Wellbeing",LEONARD CHESHIRE FOUNDATION,02/10/2017,310.1
Bath and North East Somerset Council,80721001,LM6,Nursing Care,P11,"Adult Care, Health & Wellbeing",LEONARD CHESHIRE FOUNDATION,02/10/2017,310.1
Bath and North East Somerset Council,80721001,LM6,Nursing Care,P11,"Adult Care, Health & Wellbeing",LEONARD CHESHIRE FOUNDATION,02/10/2017,310.1
Bath and North East Somerset Council,80721001,LM6,Nursing Care,P11,"Adult Care, Health & Wellbeing",LEONARD CHESHIRE FOUNDATION,02/10/2017,310.1
Bath and North East Somerset Council,80721001,LM6,Nursing Care,P11,"Adult Care, Health & Wellbeing",LEONARD CHESHIRE FOUNDATION,02/10/2017,310.1
Bath and North East Somerset Council,80721001,LM6,Nursing Care,P11,"Adult Care, Health & Wellbeing",LEONARD CHESHIRE FOUNDATION,02/10/2017,310.1
Bath and North East Somerset Council,80721001,LM6,Nursing Care,P11,"Adult Care, Health & Wellbeing",LEONARD CHESHIRE FOUNDATION,02/10/2017,310.1
Bath and North East Somerset Council,80720995,LM6,Nursing Care,P11,"Adult Care, Health & Wellbeing",REDACTED,02/10/2017,310.1
Bath and North East Somerset Council,80720995,LM6,Nursing Care,P11,"Adult Care, Health & Wellbeing",REDACTED,02/10/2017,310.1
Bath and North East Somerset Council,80720995,LM6,Nursing Care,P11,"Adult Care, Health & Wellbeing",REDACTED,02/10/2017,310.1
Bath and North East Somerset Council,80720995,LM6,Nursing Care,P11,"Adult Care, Health & Wellbeing",REDACTED,02/10/2017,310.1
Bath and North East Somerset Council,80720995,LM6,Nursing Care,P11,"Adult Care, Health & Wellbeing",REDACTED,02/10/2017,310.1
Bath and North East Somerset Council,80720995,LM6,Nursing Care,P11,"Adult Care, Health & Wellbeing",REDACTED,02/10/2017,310.1
Bath and North East Somerset Council,80720995,LM6,Nursing Care,P11,"Adult Care, Health & Wellbeing",REDACTED,02/10/2017,310.1
Bath and North East Somerset Council,80720995,LM6,Nursing Care,P11,"Adult Care, Health & Wellbeing",REDACTED,02/10/2017,310.1
Bath and North East Somerset Council,80720995,LM6,Nursing Care,P11,"Adult Care, Health & Wellbeing",REDACTED,02/10/2017,310.1
Bath and North East Somerset Council,80720995,LM6,Nursing Care,P11,"Adult Care, Health & Wellbeing",REDACTED,02/10/2017,310.1
Bath and North East Somerset Council,80720995,LM6,Nursing Care,P11,"Adult Care, Health & Wellbeing",REDACTED,02/10/2017,310.1
Bath and North East Somerset Council,80720995,LM6,Nursing Care,P11,"Adult Care, Health & Wellbeing",REDACTED,02/10/2017,310.1
Bath and North East Somerset Council,80720995,LM6,Nursing Care,P11,"Adult Care, Health & Wellbeing",REDACTED,02/10/2017,310.1
Bath and North East Somerset Council,80720995,LM6,Nursing Care,P11,"Adult Care, Health & Wellbeing",REDACTED,02/10/2017,310.1
Bath and North East Somerset Council,80720995,LM6,Nursing Care,P11,"Adult Care, Health & Wellbeing",REDACTED,02/10/2017,310.1
Bath and North East Somerset Council,80720998,LM6,Nursing Care,P11,"Adult Care, Health & Wellbeing",RNID  (REDACTED),02/10/2017,310.1
Bath and North East Somerset Council,80720998,LM6,Nursing Care,P11,"Adult Care, Health & Wellbeing",RNID  (REDACTED),02/10/2017,310.1
Bath and North East Somerset Council,80720998,LM6,Nursing Care,P11,"Adult Care, Health & Wellbeing",RNID  (REDACTED),02/10/2017,310.1
Bath and North East Somerset Council,80720998,LM6,Nursing Care,P11,"Adult Care, Health & Wellbeing",RNID  (REDACTED),02/10/2017,310.1
Bath and North East Somerset Council,80720998,LM6,Nursing Care,P11,"Adult Care, Health & Wellbeing",RNID  (REDACTED),02/10/2017,310.1
Bath and North East Somerset Council,80720998,LM6,Nursing Care,P11,"Adult Care, Health & Wellbeing",RNID  (REDACTED),02/10/2017,310.1
Bath and North East Somerset Council,80720999,LM6,Nursing Care,P11,"Adult Care, Health & Wellbeing",SHAW HOMES HOUSING ASSOC LTD,02/10/2017,310.1
Bath and North East Somerset Council,80720999,LM6,Nursing Care,P11,"Adult Care, Health & Wellbeing",SHAW HOMES HOUSING ASSOC LTD,02/10/2017,310.1
Bath and North East Somerset Council,80720999,LM6,Nursing Care,P11,"Adult Care, Health & Wellbeing",SHAW HOMES HOUSING ASSOC LTD,02/10/2017,310.1
Bath and North East Somerset Council,80720999,LM6,Nursing Care,P11,"Adult Care, Health & Wellbeing",SHAW HOMES HOUSING ASSOC LTD,02/10/2017,310.1
Bath and North East Somerset Council,80720999,LM6,Nursing Care,P11,"Adult Care, Health & Wellbeing",SHAW HOMES HOUSING ASSOC LTD,02/10/2017,310.1
Bath and North East Somerset Council,80720999,LM6,Nursing Care,P11,"Adult Care, Health & Wellbeing",SHAW HOMES HOUSING ASSOC LTD,02/10/2017,310.1
Bath and North East Somerset Council,80720999,LM6,Nursing Care,P11,"Adult Care, Health & Wellbeing",SHAW HOMES HOUSING ASSOC LTD,02/10/2017,310.1
Bath and North East Somerset Council,80720999,LM6,Nursing Care,P11,"Adult Care, Health & Wellbeing",SHAW HOMES HOUSING ASSOC LTD,02/10/2017,310.1
Bath and North East Somerset Council,80720999,LM6,Nursing Care,P11,"Adult Care, Health & Wellbeing",SHAW HOMES HOUSING ASSOC LTD,02/10/2017,310.1
Bath and North East Somerset Council,80720999,LM6,Nursing Care,P11,"Adult Care, Health & Wellbeing",SHAW HOMES HOUSING ASSOC LTD,02/10/2017,310.1
Bath and North East Somerset Council,80720999,LM6,Nursing Care,P11,"Adult Care, Health & Wellbeing",SHAW HOMES HOUSING ASSOC LTD,02/10/2017,310.1
Bath and North East Somerset Council,80720999,LM6,Nursing Care,P11,"Adult Care, Health & Wellbeing",SHAW HOMES HOUSING ASSOC LTD,02/10/2017,310.1
Bath and North East Somerset Council,80720999,LM6,Nursing Care,P11,"Adult Care, Health & Wellbeing",SHAW HOMES HOUSING ASSOC LTD,02/10/2017,310.1
Bath and North East Somerset Council,80720999,LM6,Nursing Care,P11,"Adult Care, Health & Wellbeing",SHAW HOMES HOUSING ASSOC LTD,02/10/2017,310.1
Bath and North East Somerset Council,80720990,LM6,Nursing Care,P11,"Adult Care, Health & Wellbeing",STANTON COURT,02/10/2017,310.1
Bath and North East Somerset Council,80720990,LM6,Nursing Care,P11,"Adult Care, Health & Wellbeing",STANTON COURT,02/10/2017,310.1
Bath and North East Somerset Council,80720990,LM6,Nursing Care,P11,"Adult Care, Health & Wellbeing",STANTON COURT,02/10/2017,310.1
Bath and North East Somerset Council,80720990,LM6,Nursing Care,P11,"Adult Care, Health & Wellbeing",STANTON COURT,02/10/2017,310.1
Bath and North East Somerset Council,80720990,LM6,Nursing Care,P11,"Adult Care, Health & Wellbeing",STANTON COURT,02/10/2017,310.1
Bath and North East Somerset Council,80720990,LM6,Nursing Care,P11,"Adult Care, Health & Wellbeing",STANTON COURT,02/10/2017,310.1
Bath and North East Somerset Council,80720990,LM6,Nursing Care,P11,"Adult Care, Health & Wellbeing",STANTON COURT,02/10/2017,310.1
Bath and North East Somerset Council,80720990,LM6,Nursing Care,P11,"Adult Care, Health & Wellbeing",STANTON COURT,02/10/2017,310.1
Bath and North East Somerset Council,80720990,LM6,Nursing Care,P11,"Adult Care, Health & Wellbeing",STANTON COURT,02/10/2017,310.1
Bath and North East Somerset Council,80720990,LM6,Nursing Care,P11,"Adult Care, Health & Wellbeing",STANTON COURT,02/10/2017,310.1
Bath and North East Somerset Council,80720990,LM6,Nursing Care,P11,"Adult Care, Health & Wellbeing",STANTON COURT,02/10/2017,310.1
Bath and North East Somerset Council,80720990,LM6,Nursing Care,P11,"Adult Care, Health & Wellbeing",STANTON COURT,02/10/2017,310.1
Bath and North East Somerset Council,80720990,LM6,Nursing Care,P11,"Adult Care, Health & Wellbeing",STANTON COURT,02/10/2017,310.1
Bath and North East Somerset Council,80720990,LM6,Nursing Care,P11,"Adult Care, Health & Wellbeing",STANTON COURT,02/10/2017,310.1
Bath and North East Somerset Council,80720990,LM6,Nursing Care,P11,"Adult Care, Health & Wellbeing",STANTON COURT,02/10/2017,310.1
Bath and North East Somerset Council,80720990,LM6,Nursing Care,P11,"Adult Care, Health & Wellbeing",STANTON COURT,02/10/2017,310.1
Bath and North East Somerset Council,80721000,LM6,Nursing Care,P11,"Adult Care, Health & Wellbeing",SUNNYMEDE LTD,02/10/2017,310.1
Bath and North East Somerset Council,80721000,LM6,Nursing Care,P11,"Adult Care, Health & Wellbeing",SUNNYMEDE LTD,02/10/2017,310.1
Bath and North East Somerset Council,80721000,LM6,Nursing Care,P11,"Adult Care, Health & Wellbeing",SUNNYMEDE LTD,02/10/2017,310.1
Bath and North East Somerset Council,80721000,LM6,Nursing Care,P11,"Adult Care, Health & Wellbeing",SUNNYMEDE LTD,02/10/2017,310.1
Bath and North East Somerset Council,80721000,LM6,Nursing Care,P11,"Adult Care, Health & Wellbeing",SUNNYMEDE LTD,02/10/2017,310.1
Bath and North East Somerset Council,80721000,LM6,Nursing Care,P11,"Adult Care, Health & Wellbeing",SUNNYMEDE LTD,02/10/2017,310.1
Bath and North East Somerset Council,80721000,LM6,Nursing Care,P11,"Adult Care, Health & Wellbeing",SUNNYMEDE LTD,02/10/2017,310.1
Bath and North East Somerset Council,80721000,LM6,Nursing Care,P11,"Adult Care, Health & Wellbeing",SUNNYMEDE LTD,02/10/2017,310.1
Bath and North East Somerset Council,80721000,LM6,Nursing Care,P11,"Adult Care, Health & Wellbeing",SUNNYMEDE LTD,02/10/2017,310.1
Bath and North East Somerset Council,80721000,LM6,Nursing Care,P11,"Adult Care, Health & Wellbeing",SUNNYMEDE LTD,02/10/2017,310.1
Bath and North East Somerset Council,80721000,LM6,Nursing Care,P11,"Adult Care, Health & Wellbeing",SUNNYMEDE LTD,02/10/2017,310.1
Bath and North East Somerset Council,80721000,LM6,Nursing Care,P11,"Adult Care, Health & Wellbeing",SUNNYMEDE LTD,02/10/2017,310.1
Bath and North East Somerset Council,80721000,LM6,Nursing Care,P11,"Adult Care, Health & Wellbeing",SUNNYMEDE LTD,02/10/2017,310.1
Bath and North East Somerset Council,80721000,LM6,Nursing Care,P11,"Adult Care, Health & Wellbeing",SUNNYMEDE LTD,02/10/2017,310.1
Bath and North East Somerset Council,80721000,LM6,Nursing Care,P11,"Adult Care, Health & Wellbeing",SUNNYMEDE LTD,02/10/2017,310.1
Bath and North East Somerset Council,80721000,LM6,Nursing Care,P11,"Adult Care, Health & Wellbeing",SUNNYMEDE LTD,02/10/2017,310.1
Bath and North East Somerset Council,80721000,LM6,Nursing Care,P11,"Adult Care, Health & Wellbeing",SUNNYMEDE LTD,02/10/2017,310.1
Bath and North East Somerset Council,80721000,LM6,Nursing Care,P11,"Adult Care, Health & Wellbeing",SUNNYMEDE LTD,02/10/2017,310.1
Bath and North East Somerset Council,80721000,LM6,Nursing Care,P11,"Adult Care, Health & Wellbeing",SUNNYMEDE LTD,02/10/2017,310.1
Bath and North East Somerset Council,80721000,LM6,Nursing Care,P11,"Adult Care, Health & Wellbeing",SUNNYMEDE LTD,02/10/2017,310.1
Bath and North East Somerset Council,80721003,LM6,Nursing Care,P11,"Adult Care, Health & Wellbeing",T C CAREHOME LTD,02/10/2017,310.1
Bath and North East Somerset Council,80721003,LM6,Nursing Care,P11,"Adult Care, Health & Wellbeing",T C CAREHOME LTD,02/10/2017,310.1
Bath and North East Somerset Council,80721003,LM6,Nursing Care,P11,"Adult Care, Health & Wellbeing",T C CAREHOME LTD,02/10/2017,310.1
Bath and North East Somerset Council,80721003,LM6,Nursing Care,P11,"Adult Care, Health & Wellbeing",T C CAREHOME LTD,02/10/2017,310.1
Bath and North East Somerset Council,80721003,LM6,Nursing Care,P11,"Adult Care, Health & Wellbeing",T C CAREHOME LTD,02/10/2017,310.1
Bath and North East Somerset Council,80721003,LM6,Nursing Care,P11,"Adult Care, Health & Wellbeing",T C CAREHOME LTD,02/10/2017,310.1
Bath and North East Somerset Council,80721003,LM6,Nursing Care,P11,"Adult Care, Health & Wellbeing",T C CAREHOME LTD,02/10/2017,310.1
Bath and North East Somerset Council,80721003,LM6,Nursing Care,P11,"Adult Care, Health & Wellbeing",T C CAREHOME LTD,02/10/2017,310.1
Bath and North East Somerset Council,80721003,LM6,Nursing Care,P11,"Adult Care, Health & Wellbeing",T C CAREHOME LTD,02/10/2017,310.1
Bath and North East Somerset Council,80721003,LM6,Nursing Care,P11,"Adult Care, Health & Wellbeing",T C CAREHOME LTD,02/10/2017,310.1
Bath and North East Somerset Council,80721003,LM6,Nursing Care,P11,"Adult Care, Health & Wellbeing",T C CAREHOME LTD,02/10/2017,310.1
Bath and North East Somerset Council,80721003,LM6,Nursing Care,P11,"Adult Care, Health & Wellbeing",T C CAREHOME LTD,02/10/2017,310.1
Bath and North East Somerset Council,80721003,LM6,Nursing Care,P11,"Adult Care, Health & Wellbeing",T C CAREHOME LTD,02/10/2017,310.1
Bath and North East Somerset Council,80721003,LM6,Nursing Care,P11,"Adult Care, Health & Wellbeing",T C CAREHOME LTD,02/10/2017,310.1
Bath and North East Somerset Council,80721003,LM6,Nursing Care,P11,"Adult Care, Health & Wellbeing",T C CAREHOME LTD,02/10/2017,310.1
Bath and North East Somerset Council,80721003,LM6,Nursing Care,P11,"Adult Care, Health & Wellbeing",T C CAREHOME LTD,02/10/2017,310.1
Bath and North East Somerset Council,80721003,LM6,Nursing Care,P11,"Adult Care, Health & Wellbeing",T C CAREHOME LTD,02/10/2017,310.1
Bath and North East Somerset Council,80721003,LM6,Nursing Care,P11,"Adult Care, Health & Wellbeing",T C CAREHOME LTD,02/10/2017,310.1
Bath and North East Somerset Council,80721003,LM6,Nursing Care,P11,"Adult Care, Health & Wellbeing",T C CAREHOME LTD,02/10/2017,310.1
Bath and North East Somerset Council,80721003,LM6,Nursing Care,P11,"Adult Care, Health & Wellbeing",T C CAREHOME LTD,02/10/2017,310.1
Bath and North East Somerset Council,80721184,LM9,Day Care,P11,"Adult Care, Health & Wellbeing",OPTIONS FOR LIVING LTD,02/10/2017,319.2
Bath and North East Somerset Council,80720715,LL8,Individualised Budget,P11,"Adult Care, Health & Wellbeing",DEVELOPING HEALTH AND INDEPENDENCE,02/10/2017,321.04
Bath and North East Somerset Council,80720715,LL8,Individualised Budget,P11,"Adult Care, Health & Wellbeing",DEVELOPING HEALTH AND INDEPENDENCE,02/10/2017,322
Bath and North East Somerset Council,80720715,LL8,Individualised Budget,P11,"Adult Care, Health & Wellbeing",DEVELOPING HEALTH AND INDEPENDENCE,02/10/2017,324.72
Bath and North East Somerset Council,80720900,LL8,Individualised Budget,P11,"Adult Care, Health & Wellbeing",PHOENIX (SW) LTD,02/10/2017,325.76
Bath and North East Somerset Council,80720900,LL8,Individualised Budget,P11,"Adult Care, Health & Wellbeing",PHOENIX (SW) LTD,02/10/2017,326
Bath and North East Somerset Council,80720715,LL8,Individualised Budget,P11,"Adult Care, Health & Wellbeing",DEVELOPING HEALTH AND INDEPENDENCE,02/10/2017,330
Bath and North East Somerset Council,80720715,LL8,Individualised Budget,P11,"Adult Care, Health & Wellbeing",DEVELOPING HEALTH AND INDEPENDENCE,02/10/2017,338
Bath and North East Somerset Council,80720900,LL8,Individualised Budget,P11,"Adult Care, Health & Wellbeing",PHOENIX (SW) LTD,02/10/2017,339.84
Bath and North East Somerset Council,80720715,LL8,Individualised Budget,P11,"Adult Care, Health & Wellbeing",DEVELOPING HEALTH AND INDEPENDENCE,02/10/2017,342
Bath and North East Somerset Council,80721184,LM8,Home Care,P11,"Adult Care, Health & Wellbeing",OPTIONS FOR LIVING LTD,02/10/2017,351.96
Bath and North East Somerset Council,80721138,XD3,Client Contributions,P11,"Adult Care, Health & Wellbeing",CULVERHAY NURSING HOME,02/10/2017,355.96
Bath and North East Somerset Council,80720715,LL8,Individualised Budget,P11,"Adult Care, Health & Wellbeing",DEVELOPING HEALTH AND INDEPENDENCE,02/10/2017,356
Bath and North East Somerset Council,80720900,LL8,Individualised Budget,P11,"Adult Care, Health & Wellbeing",PHOENIX (SW) LTD,02/10/2017,356
Bath and North East Somerset Council,80720900,LL8,Individualised Budget,P11,"Adult Care, Health & Wellbeing",PHOENIX (SW) LTD,02/10/2017,356
Bath and North East Somerset Council,80720900,LL8,Individualised Budget,P11,"Adult Care, Health & Wellbeing",PHOENIX (SW) LTD,02/10/2017,358
Bath and North East Somerset Council,80721184,LL3,Supported Living,P11,"Adult Care, Health & Wellbeing",OPTIONS FOR LIVING LTD,02/10/2017,359.1
Bath and North East Somerset Council,80721184,LL3,Supported Living,P11,"Adult Care, Health & Wellbeing",OPTIONS FOR LIVING LTD,02/10/2017,359.1
Bath and North East Somerset Council,80721184,LL3,Supported Living,P11,"Adult Care, Health & Wellbeing",OPTIONS FOR LIVING LTD,02/10/2017,359.1
Bath and North East Somerset Council,80721184,LM9,Day Care,P11,"Adult Care, Health & Wellbeing",OPTIONS FOR LIVING LTD,02/10/2017,359.1
Bath and North East Somerset Council,80721184,LM8,Home Care,P11,"Adult Care, Health & Wellbeing",OPTIONS FOR LIVING LTD,02/10/2017,359.1
Bath and North East Somerset Council,80721184,LL3,Supported Living,P11,"Adult Care, Health & Wellbeing",OPTIONS FOR LIVING LTD,02/10/2017,359.1
Bath and North East Somerset Council,80721184,LM8,Home Care,P11,"Adult Care, Health & Wellbeing",OPTIONS FOR LIVING LTD,02/10/2017,359.1
Bath and North East Somerset Council,80721183,LM8,Home Care,P11,"Adult Care, Health & Wellbeing",ARCH CARE SERVICES,02/10/2017,363.6
Bath and North East Somerset Council,80720715,LL8,Individualised Budget,P11,"Adult Care, Health & Wellbeing",DEVELOPING HEALTH AND INDEPENDENCE,02/10/2017,363.6
Bath and North East Somerset Council,80720715,LL8,Individualised Budget,P11,"Adult Care, Health & Wellbeing",DEVELOPING HEALTH AND INDEPENDENCE,02/10/2017,364
Bath and North East Somerset Council,80720715,LL8,Individualised Budget,P11,"Adult Care, Health & Wellbeing",DEVELOPING HEALTH AND INDEPENDENCE,02/10/2017,364.84
Bath and North East Somerset Council,80720715,LL8,Individualised Budget,P11,"Adult Care, Health & Wellbeing",DEVELOPING HEALTH AND INDEPENDENCE,02/10/2017,366
Bath and North East Somerset Council,80721184,LM9,Day Care,P11,"Adult Care, Health & Wellbeing",OPTIONS FOR LIVING LTD,02/10/2017,368.64
Bath and North East Somerset Council,80720715,LL8,Individualised Budget,P11,"Adult Care, Health & Wellbeing",DEVELOPING HEALTH AND INDEPENDENCE,02/10/2017,369.02
Bath and North East Somerset Council,80720715,LL8,Individualised Budget,P11,"Adult Care, Health & Wellbeing",DEVELOPING HEALTH AND INDEPENDENCE,02/10/2017,370
Bath and North East Somerset Council,80720715,LL8,Individualised Budget,P11,"Adult Care, Health & Wellbeing",DEVELOPING HEALTH AND INDEPENDENCE,02/10/2017,374
Bath and North East Somerset Council,80720715,LL8,Individualised Budget,P11,"Adult Care, Health & Wellbeing",DEVELOPING HEALTH AND INDEPENDENCE,02/10/2017,374.02
Bath and North East Somerset Council,80720900,LL8,Individualised Budget,P11,"Adult Care, Health & Wellbeing",PHOENIX (SW) LTD,02/10/2017,375.3
Bath and North East Somerset Council,80720715,LL8,Individualised Budget,P11,"Adult Care, Health & Wellbeing",DEVELOPING HEALTH AND INDEPENDENCE,02/10/2017,387.08
Bath and North East Somerset Council,80721177,LL3,Supported Living,P11,"Adult Care, Health & Wellbeing",DIMENSIONS (UK) LTD,02/10/2017,396.82
Bath and North East Somerset Council,80721184,LL3,Supported Living,P11,"Adult Care, Health & Wellbeing",OPTIONS FOR LIVING LTD,02/10/2017,399
Bath and North East Somerset Council,80721184,LL3,Supported Living,P11,"Adult Care, Health & Wellbeing",OPTIONS FOR LIVING LTD,02/10/2017,399
Bath and North East Somerset Council,80720715,LL8,Individualised Budget,P11,"Adult Care, Health & Wellbeing",DEVELOPING HEALTH AND INDEPENDENCE,02/10/2017,400
Bath and North East Somerset Council,80720715,LL8,Individualised Budget,P11,"Adult Care, Health & Wellbeing",DEVELOPING HEALTH AND INDEPENDENCE,02/10/2017,402
Bath and North East Somerset Council,80720900,LL8,Individualised Budget,P11,"Adult Care, Health & Wellbeing",PHOENIX (SW) LTD,02/10/2017,402
Bath and North East Somerset Council,80720900,LL8,Individualised Budget,P11,"Adult Care, Health & Wellbeing",PHOENIX (SW) LTD,02/10/2017,404
Bath and North East Somerset Council,80720715,LL8,Individualised Budget,P11,"Adult Care, Health & Wellbeing",DEVELOPING HEALTH AND INDEPENDENCE,02/10/2017,409
Bath and North East Somerset Council,80720715,LL8,Individualised Budget,P11,"Adult Care, Health & Wellbeing",DEVELOPING HEALTH AND INDEPENDENCE,02/10/2017,414.4
Bath and North East Somerset Council,80720715,LL8,Individualised Budget,P11,"Adult Care, Health & Wellbeing",DEVELOPING HEALTH AND INDEPENDENCE,02/10/2017,417.72
Bath and North East Somerset Council,80721151,XD3,Client Contributions,P11,"Adult Care, Health & Wellbeing",SUNNYMEDE LTD,02/10/2017,418.79
Bath and North East Somerset Council,10854776,3F7,External Fees,P13,Economic Development,MDA CONSULTING LTD,02/10/2017,420
Bath and North East Somerset Council,80720900,LL8,Individualised Budget,P11,"Adult Care, Health & Wellbeing",PHOENIX (SW) LTD,02/10/2017,420
Bath and North East Somerset Council,80720715,LL8,Individualised Budget,P11,"Adult Care, Health & Wellbeing",DEVELOPING HEALTH AND INDEPENDENCE,02/10/2017,424
Bath and North East Somerset Council,80720715,LL8,Individualised Budget,P11,"Adult Care, Health & Wellbeing",DEVELOPING HEALTH AND INDEPENDENCE,02/10/2017,426.04
Bath and North East Somerset Council,80720715,LL8,Individualised Budget,P11,"Adult Care, Health & Wellbeing",DEVELOPING HEALTH AND INDEPENDENCE,02/10/2017,429
Bath and North East Somerset Council,80720715,LL8,Individualised Budget,P11,"Adult Care, Health & Wellbeing",DEVELOPING HEALTH AND INDEPENDENCE,02/10/2017,431.3
Bath and North East Somerset Council,80720715,LL8,Individualised Budget,P11,"Adult Care, Health & Wellbeing",DEVELOPING HEALTH AND INDEPENDENCE,02/10/2017,433.62
Bath and North East Somerset Council,80720900,LL8,Individualised Budget,P11,"Adult Care, Health & Wellbeing",PHOENIX (SW) LTD,02/10/2017,442.56
Bath and North East Somerset Council,80721102,LM6,Nursing Care,P11,"Adult Care, Health & Wellbeing",GROVE CARE LTD,02/10/2017,445.39
Bath and North East Somerset Council,80720715,LL8,Individualised Budget,P11,"Adult Care, Health & Wellbeing",DEVELOPING HEALTH AND INDEPENDENCE,02/10/2017,453.3
Bath and North East Somerset Council,80721151,XD3,Client Contributions,P11,"Adult Care, Health & Wellbeing",SUNNYMEDE LTD,02/10/2017,459.33
Bath and North East Somerset Council,80720715,LL8,Individualised Budget,P11,"Adult Care, Health & Wellbeing",DEVELOPING HEALTH AND INDEPENDENCE,02/10/2017,462.54
Bath and North East Somerset Council,80720900,LL8,Individualised Budget,P11,"Adult Care, Health & Wellbeing",PHOENIX (SW) LTD,02/10/2017,462.6
Bath and North East Somerset Council,80721177,LL3,Supported Living,P11,"Adult Care, Health & Wellbeing",DIMENSIONS (UK) LTD,02/10/2017,464.74
Bath and North East Somerset Council,80720715,LL8,Individualised Budget,P11,"Adult Care, Health & Wellbeing",DEVELOPING HEALTH AND INDEPENDENCE,02/10/2017,472.5
Bath and North East Somerset Council,80720900,LL8,Individualised Budget,P11,"Adult Care, Health & Wellbeing",PHOENIX (SW) LTD,02/10/2017,474
Bath and North East Somerset Council,80720715,LL8,Individualised Budget,P11,"Adult Care, Health & Wellbeing",DEVELOPING HEALTH AND INDEPENDENCE,02/10/2017,475
Bath and North East Somerset Council,80720715,LL8,Individualised Budget,P11,"Adult Care, Health & Wellbeing",DEVELOPING HEALTH AND INDEPENDENCE,02/10/2017,475
Bath and North East Somerset Council,80720715,LL8,Individualised Budget,P11,"Adult Care, Health & Wellbeing",DEVELOPING HEALTH AND INDEPENDENCE,02/10/2017,477.98
Bath and North East Somerset Council,80720715,LL8,Individualised Budget,P11,"Adult Care, Health & Wellbeing",DEVELOPING HEALTH AND INDEPENDENCE,02/10/2017,480
Bath and North East Somerset Council,80721178,LM9,Day Care,P11,"Adult Care, Health & Wellbeing",S.W.A.L.L.O.W. LTD,02/10/2017,481.86
Bath and North East Somerset Council,80720900,LL8,Individualised Budget,P11,"Adult Care, Health & Wellbeing",PHOENIX (SW) LTD,02/10/2017,486
Bath and North East Somerset Council,80721184,LL3,Supported Living,P11,"Adult Care, Health & Wellbeing",OPTIONS FOR LIVING LTD,02/10/2017,491.54
Bath and North East Somerset Council,80721162,XD3,Client Contributions,P11,"Adult Care, Health & Wellbeing",CEDAR CARE HOMES LTD,02/10/2017,502.78
Bath and North East Somerset Council,80721177,LM9,Day Care,P11,"Adult Care, Health & Wellbeing",DIMENSIONS (UK) LTD,02/10/2017,504.84
Bath and North East Somerset Council,80720715,LL8,Individualised Budget,P11,"Adult Care, Health & Wellbeing",DEVELOPING HEALTH AND INDEPENDENCE,02/10/2017,507.18
Bath and North East Somerset Council,80720977,LL4,Direct Payments,P12,Children & Young People,REDACTED,02/10/2017,508.18
Bath and North East Somerset Council,80721183,LM8,Home Care,P11,"Adult Care, Health & Wellbeing",ARCH CARE SERVICES,02/10/2017,510.06
Bath and North East Somerset Council,80720715,LL8,Individualised Budget,P11,"Adult Care, Health & Wellbeing",DEVELOPING HEALTH AND INDEPENDENCE,02/10/2017,510.7
Bath and North East Somerset Council,80721162,LM6,Nursing Care,P11,"Adult Care, Health & Wellbeing",CEDAR CARE HOMES LTD,02/10/2017,511.5
Bath and North East Somerset Council,80720715,LL8,Individualised Budget,P11,"Adult Care, Health & Wellbeing",DEVELOPING HEALTH AND INDEPENDENCE,02/10/2017,514.6
Bath and North East Somerset Council,80721184,LL3,Supported Living,P11,"Adult Care, Health & Wellbeing",OPTIONS FOR LIVING LTD,02/10/2017,518.7
Bath and North East Somerset Council,80720715,LL8,Individualised Budget,P11,"Adult Care, Health & Wellbeing",DEVELOPING HEALTH AND INDEPENDENCE,02/10/2017,520
Bath and North East Somerset Council,80720978,LL8,Individualised Budget,P11,"Adult Care, Health & Wellbeing",REDACTED,02/10/2017,520
Bath and North East Somerset Council,80720899,LL8,Individualised Budget,P11,"Adult Care, Health & Wellbeing",REDACTED,02/10/2017,523.76
Bath and North East Somerset Council,80720864,LL8,Individualised Budget,P11,"Adult Care, Health & Wellbeing",REDACTED,02/10/2017,524.36
Bath and North East Somerset Council,80720715,LL8,Individualised Budget,P11,"Adult Care, Health & Wellbeing",DEVELOPING HEALTH AND INDEPENDENCE,02/10/2017,528
Bath and North East Somerset Council,80720900,LL8,Individualised Budget,P11,"Adult Care, Health & Wellbeing",PHOENIX (SW) LTD,02/10/2017,528.33
Bath and North East Somerset Council,80720963,LL4,Direct Payments,P12,Children & Young People,REDACTED,02/10/2017,529.4
Bath and North East Somerset Council,80720715,LL8,Individualised Budget,P11,"Adult Care, Health & Wellbeing",DEVELOPING HEALTH AND INDEPENDENCE,02/10/2017,531.7
Bath and North East Somerset Council,80720954,LL8,Individualised Budget,P11,"Adult Care, Health & Wellbeing",REDACTED,02/10/2017,533.24
Bath and North East Somerset Council,80720789,LL8,Individualised Budget,P11,"Adult Care, Health & Wellbeing",REDACTED,02/10/2017,541.3
Bath and North East Somerset Council,10854822,EA1,Training,P01,Transport & Highways,DH PEOPLE PLUS LTD,02/10/2017,542.4
Bath and North East Somerset Council,80720900,LL8,Individualised Budget,P11,"Adult Care, Health & Wellbeing",PHOENIX (SW) LTD,02/10/2017,548
Bath and North East Somerset Council,10854800,LT4,Conferences,P15,Development,THE INSTITUTION OF ENVIRONMENTAL SCIENCES,02/10/2017,550
Bath and North East Somerset Council,80720900,LL8,Individualised Budget,P11,"Adult Care, Health & Wellbeing",PHOENIX (SW) LTD,02/10/2017,550
Bath and North East Somerset Council,80720715,LL8,Individualised Budget,P11,"Adult Care, Health & Wellbeing",DEVELOPING HEALTH AND INDEPENDENCE,02/10/2017,551.82
Bath and North East Somerset Council,80721124,XD3,Client Contributions,P11,"Adult Care, Health & Wellbeing",PONDSMEAD (SHEPTON MALLET) LTD,02/10/2017,551.84
Bath and North East Somerset Council,80720873,LL4,Direct Payments,P12,Children & Young People,REDACTED,02/10/2017,555.11
Bath and North East Somerset Council,80720715,LL8,Individualised Budget,P11,"Adult Care, Health & Wellbeing",DEVELOPING HEALTH AND INDEPENDENCE,02/10/2017,556.14
Bath and North East Somerset Council,80720900,LL8,Individualised Budget,P11,"Adult Care, Health & Wellbeing",PHOENIX (SW) LTD,02/10/2017,560
Bath and North East Somerset Council,10854819,LA1,Equipment Purchase (Non Medical),P01,Transport & Highways,ISYS INTERACTIVE SYSTEMS LTD,02/10/2017,561.5
Bath and North East Somerset Council,80720715,LL8,Individualised Budget,P11,"Adult Care, Health & Wellbeing",DEVELOPING HEALTH AND INDEPENDENCE,02/10/2017,562
Bath and North East Somerset Council,80720767,LL8,Individualised Budget,P11,"Adult Care, Health & Wellbeing",REDACTED,02/10/2017,568.9
Bath and North East Somerset Council,80720900,LL8,Individualised Budget,P11,"Adult Care, Health & Wellbeing",PHOENIX (SW) LTD,02/10/2017,570
Bath and North East Somerset Council,80720900,LL8,Individualised Budget,P11,"Adult Care, Health & Wellbeing",PHOENIX (SW) LTD,02/10/2017,570
Bath and North East Somerset Council,80720715,LL8,Individualised Budget,P11,"Adult Care, Health & Wellbeing",DEVELOPING HEALTH AND INDEPENDENCE,02/10/2017,571.38
Bath and North East Somerset Council,80721173,LL3,Supported Living,P11,"Adult Care, Health & Wellbeing",SWALLOW LTD,02/10/2017,572.4
Bath and North East Somerset Council,80721173,LL3,Supported Living,P11,"Adult Care, Health & Wellbeing",SWALLOW LTD,02/10/2017,572.4
Bath and North East Somerset Council,80721173,LL3,Supported Living,P11,"Adult Care, Health & Wellbeing",SWALLOW LTD,02/10/2017,572.4
Bath and North East Somerset Council,80720715,LL8,Individualised Budget,P11,"Adult Care, Health & Wellbeing",DEVELOPING HEALTH AND INDEPENDENCE,02/10/2017,574
Bath and North East Somerset Council,80720965,LL4,Direct Payments,P12,Children & Young People,REDACTED,02/10/2017,576.24
Bath and North East Somerset Council,80721177,LL3,Supported Living,P11,"Adult Care, Health & Wellbeing",DIMENSIONS (UK) LTD,02/10/2017,585.48
Bath and North East Somerset Council,80720715,LL8,Individualised Budget,P11,"Adult Care, Health & Wellbeing",DEVELOPING HEALTH AND INDEPENDENCE,02/10/2017,592.8
Bath and North East Somerset Council,80720988,LM6,Nursing Care,P11,"Adult Care, Health & Wellbeing",CHOLWELL HOUSE NURSING HOME,02/10/2017,598.05
Bath and North East Somerset Council,80721184,LL3,Supported Living,P11,"Adult Care, Health & Wellbeing",OPTIONS FOR LIVING LTD,02/10/2017,598.5
Bath and North East Somerset Council,10854784,3F7,External Fees,P10,Finance & Efficiency,BBA ARCHITECTS,02/10/2017,607.5
Bath and North East Somerset Council,80721184,LL3,Supported Living,P11,"Adult Care, Health & Wellbeing",OPTIONS FOR LIVING LTD,02/10/2017,608.22
Bath and North East Somerset Council,80720900,LL8,Individualised Budget,P11,"Adult Care, Health & Wellbeing",PHOENIX (SW) LTD,02/10/2017,610
Bath and North East Somerset Council,80721173,LL3,Supported Living,P11,"Adult Care, Health & Wellbeing",SWALLOW LTD,02/10/2017,610.56
Bath and North East Somerset Council,80721184,LL3,Supported Living,P11,"Adult Care, Health & Wellbeing",OPTIONS FOR LIVING LTD,02/10/2017,614.4
Bath and North East Somerset Council,80721185,LM8,Home Care,P11,"Adult Care, Health & Wellbeing",MAPLES COMMUNITY CARE LTD,02/10/2017,615.04
Bath and North East Somerset Council,80720715,LL8,Individualised Budget,P11,"Adult Care, Health & Wellbeing",DEVELOPING HEALTH AND INDEPENDENCE,02/10/2017,616.04
Bath and North East Somerset Council,80720996,LM6,Nursing Care,P11,"Adult Care, Health & Wellbeing",BARCHESTER HEALTHCARE HOMES LTD,02/10/2017,620.2
Bath and North East Somerset Council,80720991,LM6,Nursing Care,P11,"Adult Care, Health & Wellbeing",CRANHILL NURSING HOME LTD,02/10/2017,620.2
Bath and North East Somerset Council,80720715,LL8,Individualised Budget,P11,"Adult Care, Health & Wellbeing",DEVELOPING HEALTH AND INDEPENDENCE,02/10/2017,624.92
Bath and North East Somerset Council,80720865,LL8,Individualised Budget,P11,"Adult Care, Health & Wellbeing",REDACTED,02/10/2017,627.52
Bath and North East Somerset Council,80721177,LL3,Supported Living,P11,"Adult Care, Health & Wellbeing",DIMENSIONS (UK) LTD,02/10/2017,632.66
Bath and North East Somerset Council,80721177,LL3,Supported Living,P11,"Adult Care, Health & Wellbeing",DIMENSIONS (UK) LTD,02/10/2017,634.28
Bath and North East Somerset Council,80720900,LL8,Individualised Budget,P11,"Adult Care, Health & Wellbeing",PHOENIX (SW) LTD,02/10/2017,639
Bath and North East Somerset Council,80720900,LL8,Individualised Budget,P11,"Adult Care, Health & Wellbeing",PHOENIX (SW) LTD,02/10/2017,655.36
Bath and North East Somerset Council,80720715,LL8,Individualised Budget,P11,"Adult Care, Health & Wellbeing",DEVELOPING HEALTH AND INDEPENDENCE,02/10/2017,656
Bath and North East Somerset Council,80720718,LL8,Individualised Budget,P11,"Adult Care, Health & Wellbeing",REDACTED,02/10/2017,658.5
Bath and North East Somerset Council,80720934,LL8,Individualised Budget,P11,"Adult Care, Health & Wellbeing",REDACTED,02/10/2017,661.76
Bath and North East Somerset Council,80720715,LL8,Individualised Budget,P11,"Adult Care, Health & Wellbeing",DEVELOPING HEALTH AND INDEPENDENCE,02/10/2017,662.42
Bath and North East Somerset Council,80720715,LL8,Individualised Budget,P11,"Adult Care, Health & Wellbeing",DEVELOPING HEALTH AND INDEPENDENCE,02/10/2017,677.1
Bath and North East Somerset Council,80720837,LL8,Individualised Budget,P11,"Adult Care, Health & Wellbeing",REDACTED,02/10/2017,677.3
Bath and North East Somerset Council,80720812,LL8,Individualised Budget,P11,"Adult Care, Health & Wellbeing",REDACTED,02/10/2017,683.18
Bath and North East Somerset Council,80720715,LL8,Individualised Budget,P11,"Adult Care, Health & Wellbeing",DEVELOPING HEALTH AND INDEPENDENCE,02/10/2017,695.66
Bath and North East Somerset Council,80720948,LL8,Individualised Budget,P11,"Adult Care, Health & Wellbeing",REDACTED,02/10/2017,699.94
Bath and North East Somerset Council,80720841,LL8,Individualised Budget,P11,"Adult Care, Health & Wellbeing",REDACTED,02/10/2017,706.54
Bath and North East Somerset Council,80720994,LM6,Nursing Care,P11,"Adult Care, Health & Wellbeing",CULVERHAY NURSING HOME,02/10/2017,708.8
Bath and North East Somerset Council,80721177,LL3,Supported Living,P11,"Adult Care, Health & Wellbeing",DIMENSIONS (UK) LTD,02/10/2017,711.26
Bath and North East Somerset Council,80720715,LL8,Individualised Budget,P11,"Adult Care, Health & Wellbeing",DEVELOPING HEALTH AND INDEPENDENCE,02/10/2017,720.74
Bath and North East Somerset Council,80720715,LL8,Individualised Budget,P11,"Adult Care, Health & Wellbeing",DEVELOPING HEALTH AND INDEPENDENCE,02/10/2017,721.74
Bath and North East Somerset Council,80720900,LL8,Individualised Budget,P11,"Adult Care, Health & Wellbeing",PHOENIX (SW) LTD,02/10/2017,722
Bath and North East Somerset Council,80721177,LL3,Supported Living,P11,"Adult Care, Health & Wellbeing",DIMENSIONS (UK) LTD,02/10/2017,724.28
Bath and North East Somerset Council,80721173,LL3,Supported Living,P11,"Adult Care, Health & Wellbeing",SWALLOW LTD,02/10/2017,725.04
Bath and North East Somerset Council,80720715,LL8,Individualised Budget,P11,"Adult Care, Health & Wellbeing",DEVELOPING HEALTH AND INDEPENDENCE,02/10/2017,733.3
Bath and North East Somerset Council,80721184,LL3,Supported Living,P11,"Adult Care, Health & Wellbeing",OPTIONS FOR LIVING LTD,02/10/2017,737.3
Bath and North East Somerset Council,80720835,LL8,Individualised Budget,P11,"Adult Care, Health & Wellbeing",REDACTED,02/10/2017,742.48
Bath and North East Somerset Council,80720715,LL8,Individualised Budget,P11,"Adult Care, Health & Wellbeing",DEVELOPING HEALTH AND INDEPENDENCE,02/10/2017,744
Bath and North East Somerset Council,80720942,LL8,Individualised Budget,P11,"Adult Care, Health & Wellbeing",REDACTED,02/10/2017,744.04
Bath and North East Somerset Council,80720804,LL4,Direct Payments,P12,Children & Young People,REDACTED,02/10/2017,747.57
Bath and North East Somerset Council,80720793,LL8,Individualised Budget,P11,"Adult Care, Health & Wellbeing",REDACTED,02/10/2017,748.54
Bath and North East Somerset Council,80720900,LL8,Individualised Budget,P11,"Adult Care, Health & Wellbeing",PHOENIX (SW) LTD,02/10/2017,753
Bath and North East Somerset Council,80721149,LM3,Residential Care,P11,"Adult Care, Health & Wellbeing",CEDAR CARE HOMES LTD,02/10/2017,756.86
Bath and North East Somerset Council,80720769,LL8,Individualised Budget,P11,"Adult Care, Health & Wellbeing",REDACTED,02/10/2017,757.48
Bath and North East Somerset Council,80721168,XD3,Client Contributions,P11,"Adult Care, Health & Wellbeing",MOSTYN LODGE KEYNSHAM LTD,02/10/2017,765.47
Bath and North East Somerset Council,80720715,LL8,Individualised Budget,P11,"Adult Care, Health & Wellbeing",DEVELOPING HEALTH AND INDEPENDENCE,02/10/2017,768.8
Bath and North East Somerset Council,80721173,LL3,Supported Living,P11,"Adult Care, Health & Wellbeing",SWALLOW LTD,02/10/2017,774.68
Bath and North East Somerset Council,10854793,3F7,External Fees,P12,Children & Young People,BBA ARCHITECTS,02/10/2017,775
Bath and North East Somerset Council,80720715,LL8,Individualised Budget,P11,"Adult Care, Health & Wellbeing",DEVELOPING HEALTH AND INDEPENDENCE,02/10/2017,779.04
Bath and North East Somerset Council,80721162,LM6,Nursing Care,P11,"Adult Care, Health & Wellbeing",CEDAR CARE HOMES LTD,02/10/2017,782.76
Bath and North East Somerset Council,80721177,LL3,Supported Living,P11,"Adult Care, Health & Wellbeing",DIMENSIONS (UK) LTD,02/10/2017,787.16
Bath and North East Somerset Council,10854803,KA3,Fuel,P01,Transport & Highways,FORD FUELS LTD,02/10/2017,787.5
Bath and North East Somerset Council,80720715,LL8,Individualised Budget,P11,"Adult Care, Health & Wellbeing",DEVELOPING HEALTH AND INDEPENDENCE,02/10/2017,788.64
Bath and North East Somerset Council,80720884,LL8,Individualised Budget,P11,"Adult Care, Health & Wellbeing",REDACTED,02/10/2017,789.9
Bath and North East Somerset Council,10854818,LD1,Protective & Safety Clothing,P01,Transport & Highways,SMI GROUP,02/10/2017,790
Bath and North East Somerset Council,80720715,LL8,Individualised Budget,P11,"Adult Care, Health & Wellbeing",DEVELOPING HEALTH AND INDEPENDENCE,02/10/2017,798
Bath and North East Somerset Council,80721184,LL3,Supported Living,P11,"Adult Care, Health & Wellbeing",OPTIONS FOR LIVING LTD,02/10/2017,798
Bath and North East Somerset Council,80720844,LL8,Individualised Budget,P11,"Adult Care, Health & Wellbeing",REDACTED,02/10/2017,801
Bath and North East Somerset Council,80720791,LL8,Individualised Budget,P11,"Adult Care, Health & Wellbeing",REDACTED,02/10/2017,802.8
Bath and North East Somerset Council,80721183,LL3,Supported Living,P11,"Adult Care, Health & Wellbeing",ARCH CARE SERVICES,02/10/2017,805
Bath and North East Somerset Council,80721183,LL3,Supported Living,P11,"Adult Care, Health & Wellbeing",ARCH CARE SERVICES,02/10/2017,805
Bath and North East Somerset Council,80721183,LM8,Home Care,P11,"Adult Care, Health & Wellbeing",ARCH CARE SERVICES,02/10/2017,808
Bath and North East Somerset Council,80721183,LL3,Supported Living,P11,"Adult Care, Health & Wellbeing",ARCH CARE SERVICES,02/10/2017,821.28
Bath and North East Somerset Council,80721183,LL3,Supported Living,P11,"Adult Care, Health & Wellbeing",ARCH CARE SERVICES,02/10/2017,821.28
Bath and North East Somerset Council,80721183,LL3,Supported Living,P11,"Adult Care, Health & Wellbeing",ARCH CARE SERVICES,02/10/2017,821.28
Bath and North East Somerset Council,80721148,LM3,Residential Care,P11,"Adult Care, Health & Wellbeing",DIMENSIONS (UK) LTD,02/10/2017,821.8
Bath and North East Somerset Council,80721148,LM3,Residential Care,P11,"Adult Care, Health & Wellbeing",DIMENSIONS (UK) LTD,02/10/2017,821.8
Bath and North East Somerset Council,80721148,LM3,Residential Care,P11,"Adult Care, Health & Wellbeing",DIMENSIONS (UK) LTD,02/10/2017,821.8
Bath and North East Somerset Council,80721148,LM3,Residential Care,P11,"Adult Care, Health & Wellbeing",DIMENSIONS (UK) LTD,02/10/2017,821.8
Bath and North East Somerset Council,80721183,LL3,Supported Living,P11,"Adult Care, Health & Wellbeing",ARCH CARE SERVICES,02/10/2017,835
Bath and North East Somerset Council,80720715,LL8,Individualised Budget,P11,"Adult Care, Health & Wellbeing",DEVELOPING HEALTH AND INDEPENDENCE,02/10/2017,839.24
Bath and North East Somerset Council,80720807,LL8,Individualised Budget,P11,"Adult Care, Health & Wellbeing",REDACTED,02/10/2017,840
Bath and North East Somerset Council,80720715,LL8,Individualised Budget,P11,"Adult Care, Health & Wellbeing",DEVELOPING HEALTH AND INDEPENDENCE,02/10/2017,843.6
Bath and North East Somerset Council,80720715,LL8,Individualised Budget,P11,"Adult Care, Health & Wellbeing",DEVELOPING HEALTH AND INDEPENDENCE,02/10/2017,843.8
Bath and North East Somerset Council,10854840,3F7,External Fees,P10,Finance & Efficiency,WESSEX WATER SERVICES LIMITED,02/10/2017,844.5
Bath and North East Somerset Council,80720715,LL8,Individualised Budget,P11,"Adult Care, Health & Wellbeing",DEVELOPING HEALTH AND INDEPENDENCE,02/10/2017,845.32
Bath and North East Somerset Council,80721010,LM3,Residential Care,P11,"Adult Care, Health & Wellbeing",FOXES ACADEMY LTD,02/10/2017,847.46
Bath and North East Somerset Council,80720715,LL8,Individualised Budget,P11,"Adult Care, Health & Wellbeing",DEVELOPING HEALTH AND INDEPENDENCE,02/10/2017,847.52
Bath and North East Somerset Council,80720730,LL8,Individualised Budget,P11,"Adult Care, Health & Wellbeing",REDACTED,02/10/2017,848.4
Bath and North East Somerset Council,80721177,LL3,Supported Living,P11,"Adult Care, Health & Wellbeing",DIMENSIONS (UK) LTD,02/10/2017,850.04
Bath and North East Somerset Council,80720654,LL8,Individualised Budget,P11,"Adult Care, Health & Wellbeing",REDACTED,02/10/2017,850.2
Bath and North East Somerset Council,10854732,PB4,Payments to Private Contractors,P01,Transport & Highways,TRADEBE HEALTHCARE LTD,02/10/2017,853.65
Bath and North East Somerset Council,10853321,LL6,Needs & Services,P12,Children & Young People,ROMAN CITY GUEST HOUSE,02/10/2017,855
Bath and North East Somerset Council,80721173,LL3,Supported Living,P11,"Adult Care, Health & Wellbeing",SWALLOW LTD,02/10/2017,858.6
Bath and North East Somerset Council,80720797,LL8,Individualised Budget,P11,"Adult Care, Health & Wellbeing",REDACTED,02/10/2017,859.38
Bath and North East Somerset Council,80720928,LL8,Individualised Budget,P11,"Adult Care, Health & Wellbeing",REDACTED,02/10/2017,861.4
Bath and North East Somerset Council,80720852,LL8,Individualised Budget,P11,"Adult Care, Health & Wellbeing",REDACTED,02/10/2017,865.44
Bath and North East Somerset Council,80721177,LL3,Supported Living,P11,"Adult Care, Health & Wellbeing",DIMENSIONS (UK) LTD,02/10/2017,865.76
Bath and North East Somerset Council,80721183,LM8,Home Care,P11,"Adult Care, Health & Wellbeing",ARCH CARE SERVICES,02/10/2017,868.6
Bath and North East Somerset Council,80721183,LM8,Home Care,P11,"Adult Care, Health & Wellbeing",ARCH CARE SERVICES,02/10/2017,868.6
Bath and North East Somerset Council,80721177,LL3,Supported Living,P11,"Adult Care, Health & Wellbeing",DIMENSIONS (UK) LTD,02/10/2017,873.74
Bath and North East Somerset Council,80721181,LL3,Supported Living,P11,"Adult Care, Health & Wellbeing",DEVON SHELTERED HOMES TRUST - REDACTED,02/10/2017,875.06
Bath and North East Somerset Council,80721173,LL3,Supported Living,P11,"Adult Care, Health & Wellbeing",SWALLOW LTD,02/10/2017,877.68
Bath and North East Somerset Council,80720900,LL8,Individualised Budget,P11,"Adult Care, Health & Wellbeing",PHOENIX (SW) LTD,02/10/2017,877.8
Bath and North East Somerset Council,80720900,LL8,Individualised Budget,P11,"Adult Care, Health & Wellbeing",PHOENIX (SW) LTD,02/10/2017,881.72
Bath and North East Somerset Council,10854832,3F7,External Fees,P13,Economic Development,H MEALING & SONS LTD,02/10/2017,883.96
Bath and North East Somerset Council,80720975,LL8,Individualised Budget,P11,"Adult Care, Health & Wellbeing",REDACTED,02/10/2017,887.18
Bath and North East Somerset Council,80720715,LL8,Individualised Budget,P11,"Adult Care, Health & Wellbeing",DEVELOPING HEALTH AND INDEPENDENCE,02/10/2017,887.34
Bath and North East Somerset Council,80721173,LL3,Supported Living,P11,"Adult Care, Health & Wellbeing",SWALLOW LTD,02/10/2017,896.76
Bath and North East Somerset Council,80720715,LL8,Individualised Budget,P11,"Adult Care, Health & Wellbeing",DEVELOPING HEALTH AND INDEPENDENCE,02/10/2017,898
Bath and North East Somerset Council,80721104,LM3,Residential Care,P11,"Adult Care, Health & Wellbeing",THE CEDARS [WESTON SUPERCARE] LTD,02/10/2017,902
Bath and North East Somerset Council,80721145,LM3,Residential Care,P11,"Adult Care, Health & Wellbeing",ANCHOR TRUST,02/10/2017,904
Bath and North East Somerset Council,80721167,LM3,Residential Care,P11,"Adult Care, Health & Wellbeing",ARTI CARE HOMES (SOUTHWEST) LTD,02/10/2017,904
Bath and North East Somerset Council,80721167,LM3,Residential Care,P11,"Adult Care, Health & Wellbeing",ARTI CARE HOMES (SOUTHWEST) LTD,02/10/2017,904
Bath and North East Somerset Council,80721167,LM3,Residential Care,P11,"Adult Care, Health & Wellbeing",ARTI CARE HOMES (SOUTHWEST) LTD,02/10/2017,904
Bath and North East Somerset Council,80721167,LM3,Residential Care,P11,"Adult Care, Health & Wellbeing",ARTI CARE HOMES (SOUTHWEST) LTD,02/10/2017,904
Bath and North East Somerset Council,80721155,LM3,Residential Care,P11,"Adult Care, Health & Wellbeing",ARTI SERVICES LTD T/A THE MANOR FARM HOUSE,02/10/2017,904
Bath and North East Somerset Council,80721155,LM3,Residential Care,P11,"Adult Care, Health & Wellbeing",ARTI SERVICES LTD T/A THE MANOR FARM HOUSE,02/10/2017,904
Bath and North East Somerset Council,80721155,LM3,Residential Care,P11,"Adult Care, Health & Wellbeing",ARTI SERVICES LTD T/A THE MANOR FARM HOUSE,02/10/2017,904
Bath and North East Somerset Council,80721155,LM3,Residential Care,P11,"Adult Care, Health & Wellbeing",ARTI SERVICES LTD T/A THE MANOR FARM HOUSE,02/10/2017,904
Bath and North East Somerset Council,80721119,LM3,Residential Care,P11,"Adult Care, Health & Wellbeing",BROUGHTON LODGE CARE HOME LTD,02/10/2017,904
Bath and North East Somerset Council,80721159,LM3,Residential Care,P11,"Adult Care, Health & Wellbeing",FSHC NEWCO 2 LTD:REDACTED,02/10/2017,904
Bath and North East Somerset Council,80721159,LM3,Residential Care,P11,"Adult Care, Health & Wellbeing",FSHC NEWCO 2 LTD:REDACTED,02/10/2017,904
Bath and North East Somerset Council,80721159,LM3,Residential Care,P11,"Adult Care, Health & Wellbeing",FSHC NEWCO 2 LTD:REDACTED,02/10/2017,904
Bath and North East Somerset Council,80721159,LM3,Residential Care,P11,"Adult Care, Health & Wellbeing",FSHC NEWCO 2 LTD:REDACTED,02/10/2017,904
Bath and North East Somerset Council,80721159,LM3,Residential Care,P11,"Adult Care, Health & Wellbeing",FSHC NEWCO 2 LTD:REDACTED,02/10/2017,904
Bath and North East Somerset Council,80721147,LM3,Residential Care,P11,"Adult Care, Health & Wellbeing",METHODIST HOMES FOR THE AGED,02/10/2017,904
Bath and North East Somerset Council,80721147,LM3,Residential Care,P11,"Adult Care, Health & Wellbeing",METHODIST HOMES FOR THE AGED,02/10/2017,904
Bath and North East Somerset Council,80721168,LM3,Residential Care,P11,"Adult Care, Health & Wellbeing",MOSTYN LODGE KEYNSHAM LTD,02/10/2017,904
Bath and North East Somerset Council,80721164,LM3,Residential Care,P11,"Adult Care, Health & Wellbeing",NEWBRIDGE TOWERS RESIDENTIAL CARE HOME,02/10/2017,904
Bath and North East Somerset Council,80721164,LM3,Residential Care,P11,"Adult Care, Health & Wellbeing",NEWBRIDGE TOWERS RESIDENTIAL CARE HOME,02/10/2017,904
Bath and North East Somerset Council,80721164,LM3,Residential Care,P11,"Adult Care, Health & Wellbeing",NEWBRIDGE TOWERS RESIDENTIAL CARE HOME,02/10/2017,904
Bath and North East Somerset Council,80721124,LM3,Residential Care,P11,"Adult Care, Health & Wellbeing",PONDSMEAD (SHEPTON MALLET) LTD,02/10/2017,904
Bath and North East Somerset Council,80721124,LM3,Residential Care,P11,"Adult Care, Health & Wellbeing",PONDSMEAD (SHEPTON MALLET) LTD,02/10/2017,904
Bath and North East Somerset Council,80721152,LM3,Residential Care,P11,"Adult Care, Health & Wellbeing",SALVATION ARMY,02/10/2017,904
Bath and North East Somerset Council,80721152,LM3,Residential Care,P11,"Adult Care, Health & Wellbeing",SALVATION ARMY,02/10/2017,904
Bath and North East Somerset Council,80721151,LM3,Residential Care,P11,"Adult Care, Health & Wellbeing",SUNNYMEDE LTD,02/10/2017,904
Bath and North East Somerset Council,80721184,LL3,Supported Living,P11,"Adult Care, Health & Wellbeing",OPTIONS FOR LIVING LTD,02/10/2017,904.7
Bath and North East Somerset Council,80720900,LL8,Individualised Budget,P11,"Adult Care, Health & Wellbeing",PHOENIX (SW) LTD,02/10/2017,907.8
Bath and North East Somerset Council,80720811,LL8,Individualised Budget,P11,"Adult Care, Health & Wellbeing",REDACTED,02/10/2017,916.72
Bath and North East Somerset Council,80720900,LL8,Individualised Budget,P11,"Adult Care, Health & Wellbeing",PHOENIX (SW) LTD,02/10/2017,916.9
Bath and North East Somerset Council,80721162,LM6,Nursing Care,P11,"Adult Care, Health & Wellbeing",CEDAR CARE HOMES LTD,02/10/2017,918.4
Bath and North East Somerset Council,80721157,LM6,Nursing Care,P11,"Adult Care, Health & Wellbeing",T C CAREHOME LTD,02/10/2017,918.4
Bath and North East Somerset Council,80721157,LM6,Nursing Care,P11,"Adult Care, Health & Wellbeing",T C CAREHOME LTD,02/10/2017,918.4
Bath and North East Somerset Council,80720715,LL8,Individualised Budget,P11,"Adult Care, Health & Wellbeing",DEVELOPING HEALTH AND INDEPENDENCE,02/10/2017,928.74
Bath and North East Somerset Council,80721140,LM6,Nursing Care,P11,"Adult Care, Health & Wellbeing",BARCHESTER HEALTHCARE HOMES LTD,02/10/2017,930.4
Bath and North East Somerset Council,80721158,LM6,Nursing Care,P11,"Adult Care, Health & Wellbeing",BARKER CHEMICALS LTD T/A ST TERESA'S NH,02/10/2017,930.4
Bath and North East Somerset Council,80721137,LM6,Nursing Care,P11,"Adult Care, Health & Wellbeing",CEDAR PARK NURSING HOME,02/10/2017,930.4
Bath and North East Somerset Council,80721137,LM6,Nursing Care,P11,"Adult Care, Health & Wellbeing",CEDAR PARK NURSING HOME,02/10/2017,930.4
Bath and North East Somerset Council,80721137,LM6,Nursing Care,P11,"Adult Care, Health & Wellbeing",CEDAR PARK NURSING HOME,02/10/2017,930.4
Bath and North East Somerset Council,80721137,LM6,Nursing Care,P11,"Adult Care, Health & Wellbeing",CEDAR PARK NURSING HOME,02/10/2017,930.4
Bath and North East Somerset Council,80721137,LM6,Nursing Care,P11,"Adult Care, Health & Wellbeing",CEDAR PARK NURSING HOME,02/10/2017,930.4
Bath and North East Somerset Council,80721137,LM6,Nursing Care,P11,"Adult Care, Health & Wellbeing",CEDAR PARK NURSING HOME,02/10/2017,930.4
Bath and North East Somerset Council,80721137,LM6,Nursing Care,P11,"Adult Care, Health & Wellbeing",CEDAR PARK NURSING HOME,02/10/2017,930.4
Bath and North East Somerset Council,80721137,LM6,Nursing Care,P11,"Adult Care, Health & Wellbeing",CEDAR PARK NURSING HOME,02/10/2017,930.4
Bath and North East Somerset Council,80721151,LM6,Nursing Care,P11,"Adult Care, Health & Wellbeing",SUNNYMEDE LTD,02/10/2017,930.4
Bath and North East Somerset Council,80721151,LM6,Nursing Care,P11,"Adult Care, Health & Wellbeing",SUNNYMEDE LTD,02/10/2017,930.4
Bath and North East Somerset Council,80721151,LM6,Nursing Care,P11,"Adult Care, Health & Wellbeing",SUNNYMEDE LTD,02/10/2017,930.4
Bath and North East Somerset Council,80721151,LM6,Nursing Care,P11,"Adult Care, Health & Wellbeing",SUNNYMEDE LTD,02/10/2017,930.4
Bath and North East Somerset Council,80721151,LM6,Nursing Care,P11,"Adult Care, Health & Wellbeing",SUNNYMEDE LTD,02/10/2017,930.4
Bath and North East Somerset Council,80721151,LM6,Nursing Care,P11,"Adult Care, Health & Wellbeing",SUNNYMEDE LTD,02/10/2017,930.4
Bath and North East Somerset Council,80721151,LM6,Nursing Care,P11,"Adult Care, Health & Wellbeing",SUNNYMEDE LTD,02/10/2017,930.4
Bath and North East Somerset Council,80721151,LM6,Nursing Care,P11,"Adult Care, Health & Wellbeing",SUNNYMEDE LTD,02/10/2017,930.4
Bath and North East Somerset Council,80721157,LM6,Nursing Care,P11,"Adult Care, Health & Wellbeing",T C CAREHOME LTD,02/10/2017,930.4
Bath and North East Somerset Council,80721157,LM6,Nursing Care,P11,"Adult Care, Health & Wellbeing",T C CAREHOME LTD,02/10/2017,930.4
Bath and North East Somerset Council,80721157,LM6,Nursing Care,P11,"Adult Care, Health & Wellbeing",T C CAREHOME LTD,02/10/2017,930.4
Bath and North East Somerset Council,80720715,LL8,Individualised Budget,P11,"Adult Care, Health & Wellbeing",DEVELOPING HEALTH AND INDEPENDENCE,02/10/2017,936
Bath and North East Somerset Council,80720715,LL8,Individualised Budget,P11,"Adult Care, Health & Wellbeing",DEVELOPING HEALTH AND INDEPENDENCE,02/10/2017,949.42
Bath and North East Somerset Council,80720882,LL8,Individualised Budget,P11,"Adult Care, Health & Wellbeing",REDACTED,02/10/2017,949.48
Bath and North East Somerset Council,80720715,LL8,Individualised Budget,P11,"Adult Care, Health & Wellbeing",DEVELOPING HEALTH AND INDEPENDENCE,02/10/2017,952
Bath and North East Somerset Council,80721175,LM8,Home Care,P11,"Adult Care, Health & Wellbeing",BRIGHTBOW LODGE,02/10/2017,960.9
Bath and North East Somerset Council,80720875,LL8,Individualised Budget,P11,"Adult Care, Health & Wellbeing",REDACTED,02/10/2017,962.58
Bath and North East Somerset Council,80721178,LM9,Day Care,P11,"Adult Care, Health & Wellbeing",S.W.A.L.L.O.W. LTD,02/10/2017,968.42
Bath and North East Somerset Council,80720900,LL8,Individualised Budget,P11,"Adult Care, Health & Wellbeing",PHOENIX (SW) LTD,02/10/2017,969.52
Bath and North East Somerset Council,80720715,LL8,Individualised Budget,P11,"Adult Care, Health & Wellbeing",DEVELOPING HEALTH AND INDEPENDENCE,02/10/2017,972
Bath and North East Somerset Council,80720715,LL8,Individualised Budget,P11,"Adult Care, Health & Wellbeing",DEVELOPING HEALTH AND INDEPENDENCE,02/10/2017,974.36
Bath and North East Somerset Council,80721158,LM6,Nursing Care,P11,"Adult Care, Health & Wellbeing",BARKER CHEMICALS LTD T/A ST TERESA'S NH,02/10/2017,974.4
Bath and North East Somerset Council,80721154,LM6,Nursing Care,P11,"Adult Care, Health & Wellbeing",CEDAR CARE HOMES LTD,02/10/2017,974.4
Bath and North East Somerset Council,80721184,LM8,Home Care,P11,"Adult Care, Health & Wellbeing",OPTIONS FOR LIVING LTD,02/10/2017,977.68
Bath and North East Somerset Council,80721132,LM6,Nursing Care,P11,"Adult Care, Health & Wellbeing",CHOLWELL HOUSE NURSING HOME,02/10/2017,984.5
Bath and North East Somerset Council,80721151,LM6,Nursing Care,P11,"Adult Care, Health & Wellbeing",SUNNYMEDE LTD,02/10/2017,986.4
Bath and North East Somerset Council,80721137,LM6,Nursing Care,P11,"Adult Care, Health & Wellbeing",CEDAR PARK NURSING HOME,02/10/2017,990.4
Bath and North East Somerset Council,80721167,LM3,Residential Care,P11,"Adult Care, Health & Wellbeing",ARTI CARE HOMES (SOUTHWEST) LTD,02/10/2017,992
Bath and North East Somerset Council,80721155,LM3,Residential Care,P11,"Adult Care, Health & Wellbeing",ARTI SERVICES LTD T/A THE MANOR FARM HOUSE,02/10/2017,992
Bath and North East Somerset Council,80721155,LM3,Residential Care,P11,"Adult Care, Health & Wellbeing",ARTI SERVICES LTD T/A THE MANOR FARM HOUSE,02/10/2017,992
Bath and North East Somerset Council,80721155,LM3,Residential Care,P11,"Adult Care, Health & Wellbeing",ARTI SERVICES LTD T/A THE MANOR FARM HOUSE,02/10/2017,992
Bath and North East Somerset Council,80721137,LM3,Residential Care,P11,"Adult Care, Health & Wellbeing",CEDAR PARK NURSING HOME,02/10/2017,992
Bath and North East Somerset Council,80721159,LM3,Residential Care,P11,"Adult Care, Health & Wellbeing",FSHC NEWCO 2 LTD:REDACTED,02/10/2017,992
Bath and North East Somerset Council,80721073,LM3,Residential Care,P11,"Adult Care, Health & Wellbeing",REDACTED,02/10/2017,992
Bath and North East Somerset Council,80721164,LM3,Residential Care,P11,"Adult Care, Health & Wellbeing",NEWBRIDGE TOWERS RESIDENTIAL CARE HOME,02/10/2017,992
Bath and North East Somerset Council,80721164,LM3,Residential Care,P11,"Adult Care, Health & Wellbeing",NEWBRIDGE TOWERS RESIDENTIAL CARE HOME,02/10/2017,992
Bath and North East Somerset Council,80720659,LL8,Individualised Budget,P11,"Adult Care, Health & Wellbeing",REDACTED,02/10/2017,994.1
Bath and North East Somerset Council,80720715,LL8,Individualised Budget,P11,"Adult Care, Health & Wellbeing",DEVELOPING HEALTH AND INDEPENDENCE,02/10/2017,994.48
Bath and North East Somerset Council,80721174,LM8,Home Care,P11,"Adult Care, Health & Wellbeing",THE BRANDON TRUST,02/10/2017,996.34
Bath and North East Somerset Council,80720715,LL8,Individualised Budget,P11,"Adult Care, Health & Wellbeing",DEVELOPING HEALTH AND INDEPENDENCE,02/10/2017,998.6
Bath and North East Somerset Council,80721127,LM3,Residential Care,P11,"Adult Care, Health & Wellbeing",ELMWOOD RESIDENTIAL HOME LTD,02/10/2017,1000
Bath and North East Somerset Council,80721110,LM3,Residential Care,P11,"Adult Care, Health & Wellbeing",REGENCY CARE LTD T/A THE RISE,02/10/2017,1000
Bath and North East Somerset Council,80721152,LM3,Residential Care,P11,"Adult Care, Health & Wellbeing",SALVATION ARMY,02/10/2017,1000
Bath and North East Somerset Council,80721141,LM6,Nursing Care,P11,"Adult Care, Health & Wellbeing",LARKHALL SPRINGS NURSING HOME,02/10/2017,1002.4
Bath and North East Somerset Council,80717348,LL8,Individualised Budget,P11,"Adult Care, Health & Wellbeing",DEVELOPING HEALTH AND INDEPENDENCE,02/10/2017,1003.08
Bath and North East Somerset Council,80721158,LM6,Nursing Care,P11,"Adult Care, Health & Wellbeing",BARKER CHEMICALS LTD T/A ST TERESA'S NH,02/10/2017,1004.4
Bath and North East Somerset Council,80721141,LM6,Nursing Care,P11,"Adult Care, Health & Wellbeing",LARKHALL SPRINGS NURSING HOME,02/10/2017,1004.4
Bath and North East Somerset Council,80721183,LL3,Supported Living,P11,"Adult Care, Health & Wellbeing",ARCH CARE SERVICES,02/10/2017,1006.06
Bath and North East Somerset Council,80721183,LL3,Supported Living,P11,"Adult Care, Health & Wellbeing",ARCH CARE SERVICES,02/10/2017,1006.06
Bath and North East Somerset Council,80721177,LL3,Supported Living,P11,"Adult Care, Health & Wellbeing",DIMENSIONS (UK) LTD,02/10/2017,1007.26
Bath and North East Somerset Council,80721137,LM6,Nursing Care,P11,"Adult Care, Health & Wellbeing",CEDAR PARK NURSING HOME,02/10/2017,1008.4
Bath and North East Somerset Council,80721184,LL3,Supported Living,P11,"Adult Care, Health & Wellbeing",OPTIONS FOR LIVING LTD,02/10/2017,1009.22
Bath and North East Somerset Council,80721106,LM3,Residential Care,P11,"Adult Care, Health & Wellbeing",SANCTUARY CARE PROPERTY 1,02/10/2017,1010
Bath and North East Somerset Council,80721183,LL3,Supported Living,P11,"Adult Care, Health & Wellbeing",ARCH CARE SERVICES,02/10/2017,1016.34
Bath and North East Somerset Council,80721164,LM3,Residential Care,P11,"Adult Care, Health & Wellbeing",NEWBRIDGE TOWERS RESIDENTIAL CARE HOME,02/10/2017,1020
Bath and North East Somerset Council,80720764,LL8,Individualised Budget,P11,"Adult Care, Health & Wellbeing",REDACTED,02/10/2017,1025.16
Bath and North East Somerset Council,80721177,LL3,Supported Living,P11,"Adult Care, Health & Wellbeing",DIMENSIONS (UK) LTD,02/10/2017,1030.02
Bath and North East Somerset Council,80721140,LM3,Residential Care,P11,"Adult Care, Health & Wellbeing",BARCHESTER HEALTHCARE HOMES LTD,02/10/2017,1032
Bath and North East Somerset Council,80720949,LL8,Individualised Budget,P11,"Adult Care, Health & Wellbeing",REDACTED,02/10/2017,1036.12
Bath and North East Somerset Council,80720715,LL8,Individualised Budget,P11,"Adult Care, Health & Wellbeing",DEVELOPING HEALTH AND INDEPENDENCE,02/10/2017,1036.42
Bath and North East Somerset Council,80720826,LL8,Individualised Budget,P11,"Adult Care, Health & Wellbeing",REDACTED,02/10/2017,1040
Bath and North East Somerset Council,80720824,LL8,Individualised Budget,P11,"Adult Care, Health & Wellbeing",REDACTED,02/10/2017,1040
Bath and North East Somerset Council,80721105,LM3,Residential Care,P11,"Adult Care, Health & Wellbeing",NUTLEY LODGE,02/10/2017,1050
Bath and North East Somerset Council,80721123,LM3,Residential Care,P11,"Adult Care, Health & Wellbeing",THE GRANVILLE CARE HOME LIMITED,02/10/2017,1050
Bath and North East Somerset Council,80721145,LM3,Residential Care,P11,"Adult Care, Health & Wellbeing",ANCHOR TRUST,02/10/2017,1052
Bath and North East Somerset Council,80721167,LM3,Residential Care,P11,"Adult Care, Health & Wellbeing",ARTI CARE HOMES (SOUTHWEST) LTD,02/10/2017,1052
Bath and North East Somerset Council,80721006,LM6,Nursing Care,P11,"Adult Care, Health & Wellbeing",CEDAR CARE HOMES LTD,02/10/2017,1071.43
Bath and North East Somerset Council,80721164,LM3,Residential Care,P11,"Adult Care, Health & Wellbeing",NEWBRIDGE TOWERS RESIDENTIAL CARE HOME,02/10/2017,1072
Bath and North East Somerset Council,80721184,LL3,Supported Living,P11,"Adult Care, Health & Wellbeing",OPTIONS FOR LIVING LTD,02/10/2017,1078.9
Bath and North East Somerset Council,80721184,LM8,Home Care,P11,"Adult Care, Health & Wellbeing",OPTIONS FOR LIVING LTD,02/10/2017,1078.9
Bath and North East Somerset Council,80721112,LM3,Residential Care,P11,"Adult Care, Health & Wellbeing",WINASH LTD,02/10/2017,1082.1
Bath and North East Somerset Council,80721177,LL3,Supported Living,P11,"Adult Care, Health & Wellbeing",DIMENSIONS (UK) LTD,02/10/2017,1086
Bath and North East Somerset Council,80721184,LM8,Home Care,P11,"Adult Care, Health & Wellbeing",OPTIONS FOR LIVING LTD,02/10/2017,1089.58
Bath and North East Somerset Council,80721137,LM6,Nursing Care,P11,"Adult Care, Health & Wellbeing",CEDAR PARK NURSING HOME,02/10/2017,1089.9
Bath and North East Somerset Council,80720715,LL8,Individualised Budget,P11,"Adult Care, Health & Wellbeing",DEVELOPING HEALTH AND INDEPENDENCE,02/10/2017,1096.88
Bath and North East Somerset Council,80721152,LM3,Residential Care,P11,"Adult Care, Health & Wellbeing",SALVATION ARMY,02/10/2017,1098
Bath and North East Somerset Council,80721168,LM3,Residential Care,P11,"Adult Care, Health & Wellbeing",MOSTYN LODGE KEYNSHAM LTD,02/10/2017,1098.22
Bath and North East Somerset Council,80721155,LM3,Residential Care,P11,"Adult Care, Health & Wellbeing",ARTI SERVICES LTD T/A THE MANOR FARM HOUSE,02/10/2017,1100
Bath and North East Somerset Council,80721124,LM3,Residential Care,P11,"Adult Care, Health & Wellbeing",PONDSMEAD (SHEPTON MALLET) LTD,02/10/2017,1100
Bath and North East Somerset Council,80720715,LL8,Individualised Budget,P11,"Adult Care, Health & Wellbeing",DEVELOPING HEALTH AND INDEPENDENCE,02/10/2017,1104.1
Bath and North East Somerset Council,80721140,LM6,Nursing Care,P11,"Adult Care, Health & Wellbeing",BARCHESTER HEALTHCARE HOMES LTD,02/10/2017,1104.4
Bath and North East Somerset Council,80721151,LM6,Nursing Care,P11,"Adult Care, Health & Wellbeing",SUNNYMEDE LTD,02/10/2017,1105.27
Bath and North East Somerset Council,80721124,LM3,Residential Care,P11,"Adult Care, Health & Wellbeing",PONDSMEAD (SHEPTON MALLET) LTD,02/10/2017,1105.78
Bath and North East Somerset Council,80721124,LM3,Residential Care,P11,"Adult Care, Health & Wellbeing",PONDSMEAD (SHEPTON MALLET) LTD,02/10/2017,1105.78
Bath and North East Somerset Council,80721152,LM3,Residential Care,P11,"Adult Care, Health & Wellbeing",SALVATION ARMY,02/10/2017,1105.78
Bath and North East Somerset Council,80721133,LM3,Residential Care,P11,"Adult Care, Health & Wellbeing",BRIDGE CARE LTD,02/10/2017,1106
Bath and North East Somerset Council,80721133,LM3,Residential Care,P11,"Adult Care, Health & Wellbeing",BRIDGE CARE LTD,02/10/2017,1106
Bath and North East Somerset Council,80721133,LM3,Residential Care,P11,"Adult Care, Health & Wellbeing",BRIDGE CARE LTD,02/10/2017,1106
Bath and North East Somerset Council,80721139,LM3,Residential Care,P11,"Adult Care, Health & Wellbeing",REDACTED,02/10/2017,1106
Bath and North East Somerset Council,80721139,LM3,Residential Care,P11,"Adult Care, Health & Wellbeing",REDACTED,02/10/2017,1106
Bath and North East Somerset Council,80721152,LM3,Residential Care,P11,"Adult Care, Health & Wellbeing",SALVATION ARMY,02/10/2017,1106
Bath and North East Somerset Council,80721152,LM3,Residential Care,P11,"Adult Care, Health & Wellbeing",SALVATION ARMY,02/10/2017,1106
Bath and North East Somerset Council,80721158,LM6,Nursing Care,P11,"Adult Care, Health & Wellbeing",BARKER CHEMICALS LTD T/A ST TERESA'S NH,02/10/2017,1106.4
Bath and North East Somerset Council,80721158,LM6,Nursing Care,P11,"Adult Care, Health & Wellbeing",BARKER CHEMICALS LTD T/A ST TERESA'S NH,02/10/2017,1106.4
Bath and North East Somerset Council,80721154,LM6,Nursing Care,P11,"Adult Care, Health & Wellbeing",CEDAR CARE HOMES LTD,02/10/2017,1106.4
Bath and North East Somerset Council,80721137,LM6,Nursing Care,P11,"Adult Care, Health & Wellbeing",CEDAR PARK NURSING HOME,02/10/2017,1106.4
Bath and North East Somerset Council,80721141,LM6,Nursing Care,P11,"Adult Care, Health & Wellbeing",LARKHALL SPRINGS NURSING HOME,02/10/2017,1106.4
Bath and North East Somerset Council,80721133,LM6,Nursing Care,P11,"Adult Care, Health & Wellbeing",BRIDGE CARE LTD,02/10/2017,1111.9
Bath and North East Somerset Council,80721133,LM6,Nursing Care,P11,"Adult Care, Health & Wellbeing",BRIDGE CARE LTD,02/10/2017,1111.9
Bath and North East Somerset Council,80721133,LM6,Nursing Care,P11,"Adult Care, Health & Wellbeing",BRIDGE CARE LTD,02/10/2017,1111.9
Bath and North East Somerset Council,80721161,LM6,Nursing Care,P11,"Adult Care, Health & Wellbeing",CARE FIRST CARE HOMES LTD,02/10/2017,1111.9
Bath and North East Somerset Council,80721161,LM6,Nursing Care,P11,"Adult Care, Health & Wellbeing",CARE FIRST CARE HOMES LTD,02/10/2017,1111.9
Bath and North East Somerset Council,80721165,LM6,Nursing Care,P11,"Adult Care, Health & Wellbeing",CHERRY GARDEN PROPERTIES LTD,02/10/2017,1111.9
Bath and North East Somerset Council,80721165,LM6,Nursing Care,P11,"Adult Care, Health & Wellbeing",CHERRY GARDEN PROPERTIES LTD,02/10/2017,1111.9
Bath and North East Somerset Council,80721165,LM6,Nursing Care,P11,"Adult Care, Health & Wellbeing",CHERRY GARDEN PROPERTIES LTD,02/10/2017,1111.9
Bath and North East Somerset Council,80721165,LM6,Nursing Care,P11,"Adult Care, Health & Wellbeing",CHERRY GARDEN PROPERTIES LTD,02/10/2017,1111.9
Bath and North East Somerset Council,80721165,LM6,Nursing Care,P11,"Adult Care, Health & Wellbeing",CHERRY GARDEN PROPERTIES LTD,02/10/2017,1111.9
Bath and North East Somerset Council,80721139,LM6,Nursing Care,P11,"Adult Care, Health & Wellbeing",REDACTED,02/10/2017,1111.9
Bath and North East Somerset Council,80721151,LM6,Nursing Care,P11,"Adult Care, Health & Wellbeing",SUNNYMEDE LTD,02/10/2017,1111.9
Bath and North East Somerset Council,80721152,LM3,Residential Care,P11,"Adult Care, Health & Wellbeing",SALVATION ARMY,02/10/2017,1112
Bath and North East Somerset Council,80721037,LM3,Residential Care,P11,"Adult Care, Health & Wellbeing",SOMERSET CARE LTD,02/10/2017,1112
Bath and North East Somerset Council,80721158,LM6,Nursing Care,P11,"Adult Care, Health & Wellbeing",BARKER CHEMICALS LTD T/A ST TERESA'S NH,02/10/2017,1112.1
Bath and North East Somerset Council,80720717,LL8,Individualised Budget,P11,"Adult Care, Health & Wellbeing",REDACTED,02/10/2017,1113.1
Bath and North East Somerset Council,80720707,LM6,Nursing Care,P11,"Adult Care, Health & Wellbeing",PRIORY HEALTH CARE LTD,02/10/2017,1113.43
Bath and North East Somerset Council,80721177,LL3,Supported Living,P11,"Adult Care, Health & Wellbeing",DIMENSIONS (UK) LTD,02/10/2017,1117.3
Bath and North East Somerset Council,80721152,LM3,Residential Care,P11,"Adult Care, Health & Wellbeing",SALVATION ARMY,02/10/2017,1120
Bath and North East Somerset Council,80721152,LM3,Residential Care,P11,"Adult Care, Health & Wellbeing",SALVATION ARMY,02/10/2017,1120
Bath and North East Somerset Council,80721152,LM3,Residential Care,P11,"Adult Care, Health & Wellbeing",SALVATION ARMY,02/10/2017,1120
Bath and North East Somerset Council,80721145,LM3,Residential Care,P11,"Adult Care, Health & Wellbeing",ANCHOR TRUST,02/10/2017,1124
Bath and North East Somerset Council,80721149,LM3,Residential Care,P11,"Adult Care, Health & Wellbeing",CEDAR CARE HOMES LTD,02/10/2017,1124
Bath and North East Somerset Council,80720715,LL8,Individualised Budget,P11,"Adult Care, Health & Wellbeing",DEVELOPING HEALTH AND INDEPENDENCE,02/10/2017,1125.7
Bath and North East Somerset Council,80720825,LL8,Individualised Budget,P11,"Adult Care, Health & Wellbeing",REDACTED,02/10/2017,1129.3
Bath and North East Somerset Council,80721155,LM3,Residential Care,P11,"Adult Care, Health & Wellbeing",ARTI SERVICES LTD T/A THE MANOR FARM HOUSE,02/10/2017,1138
Bath and North East Somerset Council,80721018,LM3,Residential Care,P11,"Adult Care, Health & Wellbeing",MANOR HOUSE,02/10/2017,1145.68
Bath and North East Somerset Council,80721163,LM3,Residential Care,P11,"Adult Care, Health & Wellbeing",SPRINGFIELD BATH LTD,02/10/2017,1146
Bath and North East Somerset Council,80721167,LM3,Residential Care,P11,"Adult Care, Health & Wellbeing",ARTI CARE HOMES (SOUTHWEST) LTD,02/10/2017,1146.66
Bath and North East Somerset Council,80721174,LL3,Supported Living,P11,"Adult Care, Health & Wellbeing",THE BRANDON TRUST,02/10/2017,1147.5
Bath and North East Somerset Council,80721167,LM6,Nursing Care,P11,"Adult Care, Health & Wellbeing",ARTI CARE HOMES (SOUTHWEST) LTD,02/10/2017,1148.66
Bath and North East Somerset Council,80720715,LL8,Individualised Budget,P11,"Adult Care, Health & Wellbeing",DEVELOPING HEALTH AND INDEPENDENCE,02/10/2017,1153.66
Bath and North East Somerset Council,80721143,LM3,Residential Care,P11,"Adult Care, Health & Wellbeing",BCVS HOMES,02/10/2017,1154
Bath and North East Somerset Council,80721158,LM6,Nursing Care,P11,"Adult Care, Health & Wellbeing",BARKER CHEMICALS LTD T/A ST TERESA'S NH,02/10/2017,1156.4
Bath and North East Somerset Council,80721137,LM6,Nursing Care,P11,"Adult Care, Health & Wellbeing",CEDAR PARK NURSING HOME,02/10/2017,1156.4
Bath and North East Somerset Council,80721154,LM3,Residential Care,P11,"Adult Care, Health & Wellbeing",CEDAR CARE HOMES LTD,02/10/2017,1162
Bath and North East Somerset Council,80721174,LM8,Home Care,P11,"Adult Care, Health & Wellbeing",THE BRANDON TRUST,02/10/2017,1162.64
Bath and North East Somerset Council,80721143,LM3,Residential Care,P11,"Adult Care, Health & Wellbeing",BCVS HOMES,02/10/2017,1164
Bath and North East Somerset Council,80721135,LM3,Residential Care,P11,"Adult Care, Health & Wellbeing",SS PHILP & JAMES RETIREMENT HOME LTD,02/10/2017,1168
Bath and North East Somerset Council,80721154,LM6,Nursing Care,P11,"Adult Care, Health & Wellbeing",CEDAR CARE HOMES LTD,02/10/2017,1169.8
Bath and North East Somerset Council,10854787,LN5,Data Lines,P10,Finance & Efficiency,BRITISH TELECOMMUNICATIONS PLC,02/10/2017,1170.48
Bath and North East Somerset Council,80721134,LM3,Residential Care,P11,"Adult Care, Health & Wellbeing",STANTON COURT,02/10/2017,1172.62
Bath and North East Somerset Council,80721158,LM6,Nursing Care,P11,"Adult Care, Health & Wellbeing",BARKER CHEMICALS LTD T/A ST TERESA'S NH,02/10/2017,1178.4
Bath and North East Somerset Council,80721143,LM3,Residential Care,P11,"Adult Care, Health & Wellbeing",BCVS HOMES,02/10/2017,1180
Bath and North East Somerset Council,80721148,LM3,Residential Care,P11,"Adult Care, Health & Wellbeing",DIMENSIONS (UK) LTD,02/10/2017,1180
Bath and North East Somerset Council,80721152,LM3,Residential Care,P11,"Adult Care, Health & Wellbeing",SALVATION ARMY,02/10/2017,1180
Bath and North East Somerset Council,80721173,LL3,Supported Living,P11,"Adult Care, Health & Wellbeing",SWALLOW LTD,02/10/2017,1180.04
Bath and North East Somerset Council,80721158,LM6,Nursing Care,P11,"Adult Care, Health & Wellbeing",BARKER CHEMICALS LTD T/A ST TERESA'S NH,02/10/2017,1184.4
Bath and North East Somerset Council,80720715,LL8,Individualised Budget,P11,"Adult Care, Health & Wellbeing",DEVELOPING HEALTH AND INDEPENDENCE,02/10/2017,1185.6
Bath and North East Somerset Council,80721174,LM8,Home Care,P11,"Adult Care, Health & Wellbeing",THE BRANDON TRUST,02/10/2017,1186.7
Bath and North East Somerset Council,80721077,LM3,Residential Care,P11,"Adult Care, Health & Wellbeing",KINGFISHER HEALTHCARE LIMITED,02/10/2017,1192
Bath and North East Somerset Council,80721158,LM6,Nursing Care,P11,"Adult Care, Health & Wellbeing",BARKER CHEMICALS LTD T/A ST TERESA'S NH,02/10/2017,1192.4
Bath and North East Somerset Council,80721158,LM6,Nursing Care,P11,"Adult Care, Health & Wellbeing",BARKER CHEMICALS LTD T/A ST TERESA'S NH,02/10/2017,1198.2
Bath and North East Somerset Council,80720715,LL8,Individualised Budget,P11,"Adult Care, Health & Wellbeing",DEVELOPING HEALTH AND INDEPENDENCE,02/10/2017,1199.04
Bath and North East Somerset Council,80721167,LM3,Residential Care,P11,"Adult Care, Health & Wellbeing",ARTI CARE HOMES (SOUTHWEST) LTD,02/10/2017,1200
Bath and North East Somerset Council,80721168,LM3,Residential Care,P11,"Adult Care, Health & Wellbeing",MOSTYN LODGE KEYNSHAM LTD,02/10/2017,1200
Bath and North East Somerset Council,80721168,LM3,Residential Care,P11,"Adult Care, Health & Wellbeing",MOSTYN LODGE KEYNSHAM LTD,02/10/2017,1200
Bath and North East Somerset Council,80721140,LM6,Nursing Care,P11,"Adult Care, Health & Wellbeing",BARCHESTER HEALTHCARE HOMES LTD,02/10/2017,1207.03
Bath and North East Somerset Council,80721158,LM6,Nursing Care,P11,"Adult Care, Health & Wellbeing",BARKER CHEMICALS LTD T/A ST TERESA'S NH,02/10/2017,1208.4
Bath and North East Somerset Council,80721137,LM6,Nursing Care,P11,"Adult Care, Health & Wellbeing",CEDAR PARK NURSING HOME,02/10/2017,1208.4
Bath and North East Somerset Council,80720715,LL8,Individualised Budget,P11,"Adult Care, Health & Wellbeing",DEVELOPING HEALTH AND INDEPENDENCE,02/10/2017,1208.6
Bath and North East Somerset Council,80721143,LM3,Residential Care,P11,"Adult Care, Health & Wellbeing",BCVS HOMES,02/10/2017,1209.99
Bath and North East Somerset Council,80721143,LM3,Residential Care,P11,"Adult Care, Health & Wellbeing",BCVS HOMES,02/10/2017,1212
Bath and North East Somerset Council,80721143,LM3,Residential Care,P11,"Adult Care, Health & Wellbeing",BCVS HOMES,02/10/2017,1212
Bath and North East Somerset Council,80721133,LM3,Residential Care,P11,"Adult Care, Health & Wellbeing",BRIDGE CARE LTD,02/10/2017,1212
Bath and North East Somerset Council,80721147,LM3,Residential Care,P11,"Adult Care, Health & Wellbeing",METHODIST HOMES FOR THE AGED,02/10/2017,1212
Bath and North East Somerset Council,80720900,LL8,Individualised Budget,P11,"Adult Care, Health & Wellbeing",PHOENIX (SW) LTD,02/10/2017,1218
Bath and North East Somerset Council,80721148,LM3,Residential Care,P11,"Adult Care, Health & Wellbeing",DIMENSIONS (UK) LTD,02/10/2017,1221.3
Bath and North East Somerset Council,80721148,LM3,Residential Care,P11,"Adult Care, Health & Wellbeing",DIMENSIONS (UK) LTD,02/10/2017,1221.3
Bath and North East Somerset Council,80721148,LM3,Residential Care,P11,"Adult Care, Health & Wellbeing",DIMENSIONS (UK) LTD,02/10/2017,1221.3
Bath and North East Somerset Council,80721093,LM3,Residential Care,P11,"Adult Care, Health & Wellbeing",KAHANAH CARE LTD,02/10/2017,1226
Bath and North East Somerset Council,80721135,LM3,Residential Care,P11,"Adult Care, Health & Wellbeing",SS PHILP & JAMES RETIREMENT HOME LTD,02/10/2017,1230
Bath and North East Somerset Council,10854774,3F7,External Fees,P12,Children & Young People,MDA CONSULTING LTD,02/10/2017,1237.5
Bath and North East Somerset Council,80720914,LL8,Individualised Budget,P11,"Adult Care, Health & Wellbeing",REDACTED,02/10/2017,1239.22
Bath and North East Somerset Council,80721044,LM6,Nursing Care,P11,"Adult Care, Health & Wellbeing",BUPA CARE SERVICES,02/10/2017,1240.5
Bath and North East Somerset Council,80721078,LM6,Nursing Care,P11,"Adult Care, Health & Wellbeing",FOUR SEASONS EVEDALE LTD WHITCHURCH,02/10/2017,1240.5
Bath and North East Somerset Council,80721078,LM6,Nursing Care,P11,"Adult Care, Health & Wellbeing",FOUR SEASONS EVEDALE LTD WHITCHURCH,02/10/2017,1240.5
Bath and North East Somerset Council,80721078,LM6,Nursing Care,P11,"Adult Care, Health & Wellbeing",FOUR SEASONS EVEDALE LTD WHITCHURCH,02/10/2017,1240.5
Bath and North East Somerset Council,80721124,LM6,Nursing Care,P11,"Adult Care, Health & Wellbeing",PONDSMEAD (SHEPTON MALLET) LTD,02/10/2017,1240.5
Bath and North East Somerset Council,80721124,LM6,Nursing Care,P11,"Adult Care, Health & Wellbeing",PONDSMEAD (SHEPTON MALLET) LTD,02/10/2017,1240.5
Bath and North East Somerset Council,80721124,LM6,Nursing Care,P11,"Adult Care, Health & Wellbeing",PONDSMEAD (SHEPTON MALLET) LTD,02/10/2017,1240.5
Bath and North East Somerset Council,80721124,LM6,Nursing Care,P11,"Adult Care, Health & Wellbeing",PONDSMEAD (SHEPTON MALLET) LTD,02/10/2017,1240.5
Bath and North East Somerset Council,80721027,LM6,Nursing Care,P11,"Adult Care, Health & Wellbeing",WELLS NURSING HOME,02/10/2017,1240.5
Bath and North East Somerset Council,80720715,LL8,Individualised Budget,P11,"Adult Care, Health & Wellbeing",DEVELOPING HEALTH AND INDEPENDENCE,02/10/2017,1242.1
Bath and North East Somerset Council,80721177,LL3,Supported Living,P11,"Adult Care, Health & Wellbeing",DIMENSIONS (UK) LTD,02/10/2017,1243.22
Bath and North East Somerset Council,80721158,LM6,Nursing Care,P11,"Adult Care, Health & Wellbeing",BARKER CHEMICALS LTD T/A ST TERESA'S NH,02/10/2017,1252.4
Bath and North East Somerset Council,80721166,LM6,Nursing Care,P11,"Adult Care, Health & Wellbeing",BARCHESTER HEALTH CARE,02/10/2017,1256
Bath and North East Somerset Council,10854782,3F7,External Fees,P13,Economic Development,H MEALING & SONS LTD,02/10/2017,1256.25
Bath and North East Somerset Council,80721132,LM6,Nursing Care,P11,"Adult Care, Health & Wellbeing",CHOLWELL HOUSE NURSING HOME,02/10/2017,1258.4
Bath and North East Somerset Council,80721177,LL3,Supported Living,P11,"Adult Care, Health & Wellbeing",DIMENSIONS (UK) LTD,02/10/2017,1258.8
Bath and North East Somerset Council,80721152,LM3,Residential Care,P11,"Adult Care, Health & Wellbeing",SALVATION ARMY,02/10/2017,1260
Bath and North East Somerset Council,80721135,LM3,Residential Care,P11,"Adult Care, Health & Wellbeing",SS PHILP & JAMES RETIREMENT HOME LTD,02/10/2017,1260
Bath and North East Somerset Council,80720814,LL8,Individualised Budget,P11,"Adult Care, Health & Wellbeing",REDACTED,02/10/2017,1262.6
Bath and North East Somerset Council,80720788,LL8,Individualised Budget,P11,"Adult Care, Health & Wellbeing",REDACTED,02/10/2017,1262.6
Bath and North East Somerset Council,80720900,LL8,Individualised Budget,P11,"Adult Care, Health & Wellbeing",PHOENIX (SW) LTD,02/10/2017,1273.6
Bath and North East Somerset Council,80721085,LM6,Nursing Care,P11,"Adult Care, Health & Wellbeing",LAUDCARE LTD T/A OAKTREE CARE HOME,02/10/2017,1276.5
Bath and North East Somerset Council,80721140,LM6,Nursing Care,P11,"Adult Care, Health & Wellbeing",BARCHESTER HEALTHCARE HOMES LTD,02/10/2017,1278.4
Bath and North East Somerset Council,80721141,LM6,Nursing Care,P11,"Adult Care, Health & Wellbeing",LARKHALL SPRINGS NURSING HOME,02/10/2017,1279.9
Bath and North East Somerset Council,80721050,LM6,Nursing Care,P11,"Adult Care, Health & Wellbeing",BUPA CARE SERVICES BACS RECEIPTS,02/10/2017,1284.5
Bath and North East Somerset Council,80721023,LM6,Nursing Care,P11,"Adult Care, Health & Wellbeing",HC1 LTD RE CATHERINE HOUSE,02/10/2017,1284.5
Bath and North East Somerset Council,80721124,LM6,Nursing Care,P11,"Adult Care, Health & Wellbeing",PONDSMEAD (SHEPTON MALLET) LTD,02/10/2017,1284.5
Bath and North East Somerset Council,80721184,LL3,Supported Living,P11,"Adult Care, Health & Wellbeing",OPTIONS FOR LIVING LTD,02/10/2017,1286.44
Bath and North East Somerset Council,80721143,LM3,Residential Care,P11,"Adult Care, Health & Wellbeing",BCVS HOMES,02/10/2017,1288
Bath and North East Somerset Council,80721140,LM6,Nursing Care,P11,"Adult Care, Health & Wellbeing",BARCHESTER HEALTHCARE HOMES LTD,02/10/2017,1294.4
Bath and North East Somerset Council,80721140,LM6,Nursing Care,P11,"Adult Care, Health & Wellbeing",BARCHESTER HEALTHCARE HOMES LTD,02/10/2017,1294.4
Bath and North East Somerset Council,80721036,LM6,Nursing Care,P11,"Adult Care, Health & Wellbeing",METHODIST HOMES FOR THE AGED,02/10/2017,1296.82
Bath and North East Somerset Council,80721083,LM3,Residential Care,P11,"Adult Care, Health & Wellbeing",ALMONDSBURY CARE LTD,02/10/2017,1300
Bath and North East Somerset Council,80721143,LM3,Residential Care,P11,"Adult Care, Health & Wellbeing",BCVS HOMES,02/10/2017,1300
Bath and North East Somerset Council,80717348,LL8,Individualised Budget,P11,"Adult Care, Health & Wellbeing",DEVELOPING HEALTH AND INDEPENDENCE,02/10/2017,1300
Bath and North East Somerset Council,80721168,LM3,Residential Care,P11,"Adult Care, Health & Wellbeing",MOSTYN LODGE KEYNSHAM LTD,02/10/2017,1300
Bath and North East Somerset Council,80721129,LM6,Nursing Care,P11,"Adult Care, Health & Wellbeing",NAZARETH CHARITABLE TRUST,02/10/2017,1300
Bath and North East Somerset Council,80721164,LM3,Residential Care,P11,"Adult Care, Health & Wellbeing",NEWBRIDGE TOWERS RESIDENTIAL CARE HOME,02/10/2017,1300
Bath and North East Somerset Council,80721139,LM3,Residential Care,P11,"Adult Care, Health & Wellbeing",REDACTED,02/10/2017,1300
Bath and North East Somerset Council,80721113,LM3,Residential Care,P11,"Adult Care, Health & Wellbeing",THE ROYAL LEICESTERSHIRE RUTLAND & WYCLIFFE SOCIETY FOR THE BLIND,02/10/2017,1300
Bath and North East Somerset Council,80721141,LM6,Nursing Care,P11,"Adult Care, Health & Wellbeing",LARKHALL SPRINGS NURSING HOME,02/10/2017,1306.4
Bath and North East Somerset Council,80721074,LM6,Nursing Care,P11,"Adult Care, Health & Wellbeing",CEDARS CARE (WINSCOMBE HALL) LTD,02/10/2017,1306.5
Bath and North East Somerset Council,80721167,LM3,Residential Care,P11,"Adult Care, Health & Wellbeing",ARTI CARE HOMES (SOUTHWEST) LTD,02/10/2017,1310
Bath and North East Somerset Council,80721155,LM3,Residential Care,P11,"Adult Care, Health & Wellbeing",ARTI SERVICES LTD T/A THE MANOR FARM HOUSE,02/10/2017,1310
Bath and North East Somerset Council,80721140,LM6,Nursing Care,P11,"Adult Care, Health & Wellbeing",BARCHESTER HEALTHCARE HOMES LTD,02/10/2017,1310.4
Bath and North East Somerset Council,80721162,LM6,Nursing Care,P11,"Adult Care, Health & Wellbeing",CEDAR CARE HOMES LTD,02/10/2017,1310.4
Bath and North East Somerset Council,80721141,LM6,Nursing Care,P11,"Adult Care, Health & Wellbeing",LARKHALL SPRINGS NURSING HOME,02/10/2017,1310.4
Bath and North East Somerset Council,80721162,LM6,Nursing Care,P11,"Adult Care, Health & Wellbeing",CEDAR CARE HOMES LTD,02/10/2017,1312
Bath and North East Somerset Council,80720756,LL8,Individualised Budget,P11,"Adult Care, Health & Wellbeing",REDACTED,02/10/2017,1313
Bath and North East Somerset Council,80721164,LM3,Residential Care,P11,"Adult Care, Health & Wellbeing",NEWBRIDGE TOWERS RESIDENTIAL CARE HOME,02/10/2017,1314
Bath and North East Somerset Council,80721164,LM3,Residential Care,P11,"Adult Care, Health & Wellbeing",NEWBRIDGE TOWERS RESIDENTIAL CARE HOME,02/10/2017,1314
Bath and North East Somerset Council,80721163,LM3,Residential Care,P11,"Adult Care, Health & Wellbeing",SPRINGFIELD BATH LTD,02/10/2017,1314
Bath and North East Somerset Council,80721163,LM3,Residential Care,P11,"Adult Care, Health & Wellbeing",SPRINGFIELD BATH LTD,02/10/2017,1314
Bath and North East Somerset Council,80721158,LM6,Nursing Care,P11,"Adult Care, Health & Wellbeing",BARKER CHEMICALS LTD T/A ST TERESA'S NH,02/10/2017,1320.4
Bath and North East Somerset Council,80721134,LM6,Nursing Care,P11,"Adult Care, Health & Wellbeing",STANTON COURT,02/10/2017,1326.4
Bath and North East Somerset Council,80721140,LM3,Residential Care,P11,"Adult Care, Health & Wellbeing",BARCHESTER HEALTHCARE HOMES LTD,02/10/2017,1328
Bath and North East Somerset Council,80721161,LM3,Residential Care,P11,"Adult Care, Health & Wellbeing",CARE FIRST CARE HOMES LTD,02/10/2017,1328
Bath and North East Somerset Council,80721185,LL3,Supported Living,P11,"Adult Care, Health & Wellbeing",MAPLES COMMUNITY CARE LTD,02/10/2017,1333.04
Bath and North East Somerset Council,80721185,LM8,Home Care,P11,"Adult Care, Health & Wellbeing",MAPLES COMMUNITY CARE LTD,02/10/2017,1333.04
Bath and North East Somerset Council,80721177,LL3,Supported Living,P11,"Adult Care, Health & Wellbeing",DIMENSIONS (UK) LTD,02/10/2017,1337.62
Bath and North East Somerset Council,80721147,LM3,Residential Care,P11,"Adult Care, Health & Wellbeing",METHODIST HOMES FOR THE AGED,02/10/2017,1340
Bath and North East Somerset Council,80720900,LL8,Individualised Budget,P11,"Adult Care, Health & Wellbeing",PHOENIX (SW) LTD,02/10/2017,1340
Bath and North East Somerset Council,80721137,LM6,Nursing Care,P11,"Adult Care, Health & Wellbeing",CEDAR PARK NURSING HOME,02/10/2017,1344.4
Bath and North East Somerset Council,80721137,LM6,Nursing Care,P11,"Adult Care, Health & Wellbeing",CEDAR PARK NURSING HOME,02/10/2017,1344.4
Bath and North East Somerset Council,80721163,LM3,Residential Care,P11,"Adult Care, Health & Wellbeing",SPRINGFIELD BATH LTD,02/10/2017,1350
Bath and North East Somerset Council,80721163,LM3,Residential Care,P11,"Adult Care, Health & Wellbeing",SPRINGFIELD BATH LTD,02/10/2017,1350
Bath and North East Somerset Council,80721163,LM3,Residential Care,P11,"Adult Care, Health & Wellbeing",SPRINGFIELD BATH LTD,02/10/2017,1350
Bath and North East Somerset Council,80720715,LL8,Individualised Budget,P11,"Adult Care, Health & Wellbeing",DEVELOPING HEALTH AND INDEPENDENCE,02/10/2017,1350.8
Bath and North East Somerset Council,80721141,LM6,Nursing Care,P11,"Adult Care, Health & Wellbeing",LARKHALL SPRINGS NURSING HOME,02/10/2017,1352.4
Bath and North East Somerset Council,80720774,LL8,Individualised Budget,P11,"Adult Care, Health & Wellbeing",REDACTED,02/10/2017,1356
Bath and North East Somerset Council,80720715,LL8,Individualised Budget,P11,"Adult Care, Health & Wellbeing",DEVELOPING HEALTH AND INDEPENDENCE,02/10/2017,1360
Bath and North East Somerset Council,80721177,LL3,Supported Living,P11,"Adult Care, Health & Wellbeing",DIMENSIONS (UK) LTD,02/10/2017,1368.84
Bath and North East Somerset Council,80721179,LM8,Home Care,P11,"Adult Care, Health & Wellbeing",MANOR COMMUNITY CARE HOME,02/10/2017,1369.4
Bath and North East Somerset Council,80721134,LM6,Nursing Care,P11,"Adult Care, Health & Wellbeing",STANTON COURT,02/10/2017,1374.4
Bath and North East Somerset Council,80721158,LM6,Nursing Care,P11,"Adult Care, Health & Wellbeing",BARKER CHEMICALS LTD T/A ST TERESA'S NH,02/10/2017,1378.4
Bath and North East Somerset Council,80721158,LM6,Nursing Care,P11,"Adult Care, Health & Wellbeing",BARKER CHEMICALS LTD T/A ST TERESA'S NH,02/10/2017,1378.4
Bath and North East Somerset Council,80721158,LM6,Nursing Care,P11,"Adult Care, Health & Wellbeing",BARKER CHEMICALS LTD T/A ST TERESA'S NH,02/10/2017,1378.4
Bath and North East Somerset Council,80721137,LM6,Nursing Care,P11,"Adult Care, Health & Wellbeing",CEDAR PARK NURSING HOME,02/10/2017,1378.4
Bath and North East Somerset Council,80721014,LM3,Residential Care,P11,"Adult Care, Health & Wellbeing",SOUTH GLOUCESTERSHIRE COUNCIL,02/10/2017,1378.84
Bath and North East Somerset Council,80721158,LM6,Nursing Care,P11,"Adult Care, Health & Wellbeing",BARKER CHEMICALS LTD T/A ST TERESA'S NH,02/10/2017,1379.9
Bath and North East Somerset Council,80721158,LM6,Nursing Care,P11,"Adult Care, Health & Wellbeing",BARKER CHEMICALS LTD T/A ST TERESA'S NH,02/10/2017,1379.9
Bath and North East Somerset Council,80721022,LM6,Nursing Care,P11,"Adult Care, Health & Wellbeing",BYBROOK HOUSE,02/10/2017,1382.5
Bath and North East Somerset Council,80721145,LM3,Residential Care,P11,"Adult Care, Health & Wellbeing",ANCHOR TRUST,02/10/2017,1386
Bath and North East Somerset Council,80721145,LM3,Residential Care,P11,"Adult Care, Health & Wellbeing",ANCHOR TRUST,02/10/2017,1388
Bath and North East Somerset Council,80721145,LM3,Residential Care,P11,"Adult Care, Health & Wellbeing",ANCHOR TRUST,02/10/2017,1388
Bath and North East Somerset Council,80721066,LM3,Residential Care,P11,"Adult Care, Health & Wellbeing",WOODLANDS & HILL BROW LTD,02/10/2017,1388
Bath and North East Somerset Council,80721124,LM6,Nursing Care,P11,"Adult Care, Health & Wellbeing",PONDSMEAD (SHEPTON MALLET) LTD,02/10/2017,1388.5
Bath and North East Somerset Council,80721134,LM6,Nursing Care,P11,"Adult Care, Health & Wellbeing",STANTON COURT,02/10/2017,1389.9
Bath and North East Somerset Council,80721158,LM6,Nursing Care,P11,"Adult Care, Health & Wellbeing",BARKER CHEMICALS LTD T/A ST TERESA'S NH,02/10/2017,1390.4
Bath and North East Somerset Council,80721158,LM6,Nursing Care,P11,"Adult Care, Health & Wellbeing",BARKER CHEMICALS LTD T/A ST TERESA'S NH,02/10/2017,1394.4
Bath and North East Somerset Council,80721158,LM6,Nursing Care,P11,"Adult Care, Health & Wellbeing",BARKER CHEMICALS LTD T/A ST TERESA'S NH,02/10/2017,1394.4
Bath and North East Somerset Council,80721137,LM6,Nursing Care,P11,"Adult Care, Health & Wellbeing",CEDAR PARK NURSING HOME,02/10/2017,1394.4
Bath and North East Somerset Council,80721008,LM6,Nursing Care,P11,"Adult Care, Health & Wellbeing",BARCHESTER HEALTH CARE,02/10/2017,1395.45
Bath and North East Somerset Council,80721018,LM3,Residential Care,P11,"Adult Care, Health & Wellbeing",MANOR HOUSE,02/10/2017,1397.26
Bath and North East Somerset Council,80721174,LL3,Supported Living,P11,"Adult Care, Health & Wellbeing",THE BRANDON TRUST,02/10/2017,1399.64
Bath and North East Somerset Council,80721165,LM3,Residential Care,P11,"Adult Care, Health & Wellbeing",CHERRY GARDEN PROPERTIES LTD,02/10/2017,1400
Bath and North East Somerset Council,80721159,LM3,Residential Care,P11,"Adult Care, Health & Wellbeing",FSHC NEWCO 2 LTD:REDACTED,02/10/2017,1400
Bath and North East Somerset Council,80721159,LM3,Residential Care,P11,"Adult Care, Health & Wellbeing",FSHC NEWCO 2 LTD:REDACTED,02/10/2017,1400
Bath and North East Somerset Council,80721147,LM3,Residential Care,P11,"Adult Care, Health & Wellbeing",METHODIST HOMES FOR THE AGED,02/10/2017,1400
Bath and North East Somerset Council,80721163,LM3,Residential Care,P11,"Adult Care, Health & Wellbeing",SPRINGFIELD BATH LTD,02/10/2017,1400
Bath and North East Somerset Council,80721158,LM6,Nursing Care,P11,"Adult Care, Health & Wellbeing",BARKER CHEMICALS LTD T/A ST TERESA'S NH,02/10/2017,1404.4
Bath and North East Somerset Council,80721158,LM6,Nursing Care,P11,"Adult Care, Health & Wellbeing",BARKER CHEMICALS LTD T/A ST TERESA'S NH,02/10/2017,1412.4
Bath and North East Somerset Council,80721133,LM6,Nursing Care,P11,"Adult Care, Health & Wellbeing",BRIDGE CARE LTD,02/10/2017,1412.4
Bath and North East Somerset Council,80721162,LM6,Nursing Care,P11,"Adult Care, Health & Wellbeing",CEDAR CARE HOMES LTD,02/10/2017,1412.4
Bath and North East Somerset Council,80721148,LM3,Residential Care,P11,"Adult Care, Health & Wellbeing",DIMENSIONS (UK) LTD,02/10/2017,1413.82
Bath and North East Somerset Council,80721164,LM3,Residential Care,P11,"Adult Care, Health & Wellbeing",NEWBRIDGE TOWERS RESIDENTIAL CARE HOME,02/10/2017,1414
Bath and North East Somerset Council,80720900,LL8,Individualised Budget,P11,"Adult Care, Health & Wellbeing",PHOENIX (SW) LTD,02/10/2017,1414
Bath and North East Somerset Council,80721158,LM6,Nursing Care,P11,"Adult Care, Health & Wellbeing",BARKER CHEMICALS LTD T/A ST TERESA'S NH,02/10/2017,1416.4
Bath and North East Somerset Council,80721154,LM6,Nursing Care,P11,"Adult Care, Health & Wellbeing",CEDAR CARE HOMES LTD,02/10/2017,1416.4
Bath and North East Somerset Council,80720969,LL8,Individualised Budget,P11,"Adult Care, Health & Wellbeing",REDACTED,02/10/2017,1416.74
Bath and North East Somerset Council,80721154,LM6,Nursing Care,P11,"Adult Care, Health & Wellbeing",CEDAR CARE HOMES LTD,02/10/2017,1419.9
Bath and North East Somerset Council,80721161,LM3,Residential Care,P11,"Adult Care, Health & Wellbeing",CARE FIRST CARE HOMES LTD,02/10/2017,1422
Bath and North East Somerset Council,80721151,LM3,Residential Care,P11,"Adult Care, Health & Wellbeing",SUNNYMEDE LTD,02/10/2017,1422
Bath and North East Somerset Council,80721024,LM6,Nursing Care,P11,"Adult Care, Health & Wellbeing",WARMLEY HOUSE,02/10/2017,1424.1
Bath and North East Somerset Council,80721173,LL3,Supported Living,P11,"Adult Care, Health & Wellbeing",SWALLOW LTD,02/10/2017,1427.6
Bath and North East Somerset Council,80721158,LM6,Nursing Care,P11,"Adult Care, Health & Wellbeing",BARKER CHEMICALS LTD T/A ST TERESA'S NH,02/10/2017,1428.4
Bath and North East Somerset Council,80721162,LM6,Nursing Care,P11,"Adult Care, Health & Wellbeing",CEDAR CARE HOMES LTD,02/10/2017,1429.9
Bath and North East Somerset Council,80721145,LM3,Residential Care,P11,"Adult Care, Health & Wellbeing",ANCHOR TRUST,02/10/2017,1430
Bath and North East Somerset Council,80721163,LM3,Residential Care,P11,"Adult Care, Health & Wellbeing",SPRINGFIELD BATH LTD,02/10/2017,1430
Bath and North East Somerset Council,80721154,LM6,Nursing Care,P11,"Adult Care, Health & Wellbeing",CEDAR CARE HOMES LTD,02/10/2017,1432.4
Bath and North East Somerset Council,80721154,LM6,Nursing Care,P11,"Adult Care, Health & Wellbeing",CEDAR CARE HOMES LTD,02/10/2017,1432.4
Bath and North East Somerset Council,80721154,LM6,Nursing Care,P11,"Adult Care, Health & Wellbeing",CEDAR CARE HOMES LTD,02/10/2017,1432.4
Bath and North East Somerset Council,80721158,LM3,Residential Care,P11,"Adult Care, Health & Wellbeing",BARKER CHEMICALS LTD T/A ST TERESA'S NH,02/10/2017,1437.5
Bath and North East Somerset Council,80721025,LM6,Nursing Care,P11,"Adult Care, Health & Wellbeing",GRAND CROSS LTD RE KINGSWOOD COURT,02/10/2017,1438.5
Bath and North East Somerset Council,80721025,LM6,Nursing Care,P11,"Adult Care, Health & Wellbeing",GRAND CROSS LTD RE KINGSWOOD COURT,02/10/2017,1438.5
Bath and North East Somerset Council,80721137,LM6,Nursing Care,P11,"Adult Care, Health & Wellbeing",CEDAR PARK NURSING HOME,02/10/2017,1439.9
Bath and North East Somerset Council,80721137,LM6,Nursing Care,P11,"Adult Care, Health & Wellbeing",CEDAR PARK NURSING HOME,02/10/2017,1439.9
Bath and North East Somerset Council,80721137,LM6,Nursing Care,P11,"Adult Care, Health & Wellbeing",CEDAR PARK NURSING HOME,02/10/2017,1439.9
Bath and North East Somerset Council,80721137,LM6,Nursing Care,P11,"Adult Care, Health & Wellbeing",CEDAR PARK NURSING HOME,02/10/2017,1439.9
Bath and North East Somerset Council,80721137,LM6,Nursing Care,P11,"Adult Care, Health & Wellbeing",CEDAR PARK NURSING HOME,02/10/2017,1439.9
Bath and North East Somerset Council,80720794,LL8,Individualised Budget,P11,"Adult Care, Health & Wellbeing",REDACTED,02/10/2017,1440
Bath and North East Somerset Council,80721132,LM6,Nursing Care,P11,"Adult Care, Health & Wellbeing",CHOLWELL HOUSE NURSING HOME,02/10/2017,1442.4
Bath and North East Somerset Council,80721107,LM3,Residential Care,P11,"Adult Care, Health & Wellbeing",CHASE LODGE CARE HOME,02/10/2017,1446
Bath and North East Somerset Council,80721141,LM6,Nursing Care,P11,"Adult Care, Health & Wellbeing",LARKHALL SPRINGS NURSING HOME,02/10/2017,1449.9
Bath and North East Somerset Council,80721163,LM3,Residential Care,P11,"Adult Care, Health & Wellbeing",SPRINGFIELD BATH LTD,02/10/2017,1450
Bath and North East Somerset Council,80721165,LM6,Nursing Care,P11,"Adult Care, Health & Wellbeing",CHERRY GARDEN PROPERTIES LTD,02/10/2017,1459.9
Bath and North East Somerset Council,80720682,LM6,Nursing Care,P11,"Adult Care, Health & Wellbeing",BARCHESTER HEALTHCARE HOMES LTD,02/10/2017,1461.43
Bath and North East Somerset Council,80721075,LM6,Nursing Care,P11,"Adult Care, Health & Wellbeing",REDACTED,02/10/2017,1461.96
Bath and North East Somerset Council,80721019,LM6,Nursing Care,P11,"Adult Care, Health & Wellbeing",BRIGHTBOW LODGE,02/10/2017,1462.5
Bath and North East Somerset Council,80721019,LM6,Nursing Care,P11,"Adult Care, Health & Wellbeing",BRIGHTBOW LODGE,02/10/2017,1462.5
Bath and North East Somerset Council,80721158,LM6,Nursing Care,P11,"Adult Care, Health & Wellbeing",BARKER CHEMICALS LTD T/A ST TERESA'S NH,02/10/2017,1468.4
Bath and North East Somerset Council,80721137,LM6,Nursing Care,P11,"Adult Care, Health & Wellbeing",CEDAR PARK NURSING HOME,02/10/2017,1468.4
Bath and North East Somerset Council,80721019,LM3,Residential Care,P11,"Adult Care, Health & Wellbeing",BRIGHTBOW LODGE,02/10/2017,1470
Bath and North East Somerset Council,80721165,LM6,Nursing Care,P11,"Adult Care, Health & Wellbeing",CHERRY GARDEN PROPERTIES LTD,02/10/2017,1478
Bath and North East Somerset Council,80721166,LM6,Nursing Care,P11,"Adult Care, Health & Wellbeing",BARCHESTER HEALTH CARE,02/10/2017,1478.4
Bath and North East Somerset Council,80721166,LM6,Nursing Care,P11,"Adult Care, Health & Wellbeing",BARCHESTER HEALTH CARE,02/10/2017,1478.4
Bath and North East Somerset Council,80721158,LM6,Nursing Care,P11,"Adult Care, Health & Wellbeing",BARKER CHEMICALS LTD T/A ST TERESA'S NH,02/10/2017,1478.4
Bath and North East Somerset Council,80721158,LM6,Nursing Care,P11,"Adult Care, Health & Wellbeing",BARKER CHEMICALS LTD T/A ST TERESA'S NH,02/10/2017,1478.4
Bath and North East Somerset Council,80721158,LM6,Nursing Care,P11,"Adult Care, Health & Wellbeing",BARKER CHEMICALS LTD T/A ST TERESA'S NH,02/10/2017,1478.4
Bath and North East Somerset Council,80721154,LM6,Nursing Care,P11,"Adult Care, Health & Wellbeing",CEDAR CARE HOMES LTD,02/10/2017,1478.4
Bath and North East Somerset Council,80721132,LM6,Nursing Care,P11,"Adult Care, Health & Wellbeing",CHOLWELL HOUSE NURSING HOME,02/10/2017,1478.4
Bath and North East Somerset Council,80720889,LL8,Individualised Budget,P11,"Adult Care, Health & Wellbeing",REDACTED,02/10/2017,1479.06
Bath and North East Somerset Council,80721158,LM6,Nursing Care,P11,"Adult Care, Health & Wellbeing",BARKER CHEMICALS LTD T/A ST TERESA'S NH,02/10/2017,1479.9
Bath and North East Somerset Council,80721158,LM6,Nursing Care,P11,"Adult Care, Health & Wellbeing",BARKER CHEMICALS LTD T/A ST TERESA'S NH,02/10/2017,1479.9
Bath and North East Somerset Council,80721158,LM6,Nursing Care,P11,"Adult Care, Health & Wellbeing",BARKER CHEMICALS LTD T/A ST TERESA'S NH,02/10/2017,1479.9
Bath and North East Somerset Council,80721158,LM6,Nursing Care,P11,"Adult Care, Health & Wellbeing",BARKER CHEMICALS LTD T/A ST TERESA'S NH,02/10/2017,1479.9
Bath and North East Somerset Council,80721154,LM6,Nursing Care,P11,"Adult Care, Health & Wellbeing",CEDAR CARE HOMES LTD,02/10/2017,1479.9
Bath and North East Somerset Council,80721162,LM6,Nursing Care,P11,"Adult Care, Health & Wellbeing",CEDAR CARE HOMES LTD,02/10/2017,1479.9
Bath and North East Somerset Council,80720891,LL8,Individualised Budget,P11,"Adult Care, Health & Wellbeing",REDACTED,02/10/2017,1483.5
Bath and North East Somerset Council,80721141,LM6,Nursing Care,P11,"Adult Care, Health & Wellbeing",LARKHALL SPRINGS NURSING HOME,02/10/2017,1492.4
Bath and North East Somerset Council,80720682,LM6,Nursing Care,P11,"Adult Care, Health & Wellbeing",BARCHESTER HEALTHCARE HOMES LTD,02/10/2017,1494
Bath and North East Somerset Council,80720688,LM6,Nursing Care,P11,"Adult Care, Health & Wellbeing",CEDAR CARE HOMES LTD,02/10/2017,1494
Bath and North East Somerset Council,80720693,LM6,Nursing Care,P11,"Adult Care, Health & Wellbeing",T C CAREHOME LTD,02/10/2017,1494
Bath and North East Somerset Council,80720693,LM6,Nursing Care,P11,"Adult Care, Health & Wellbeing",T C CAREHOME LTD,02/10/2017,1494
Bath and North East Somerset Council,80721177,LL3,Supported Living,P11,"Adult Care, Health & Wellbeing",DIMENSIONS (UK) LTD,02/10/2017,1495.36
Bath and North East Somerset Council,80721154,LM6,Nursing Care,P11,"Adult Care, Health & Wellbeing",CEDAR CARE HOMES LTD,02/10/2017,1496.4
Bath and North East Somerset Council,80721154,LM6,Nursing Care,P11,"Adult Care, Health & Wellbeing",CEDAR CARE HOMES LTD,02/10/2017,1496.4
Bath and North East Somerset Council,80721154,LM6,Nursing Care,P11,"Adult Care, Health & Wellbeing",CEDAR CARE HOMES LTD,02/10/2017,1496.4
Bath and North East Somerset Council,80721162,LM6,Nursing Care,P11,"Adult Care, Health & Wellbeing",CEDAR CARE HOMES LTD,02/10/2017,1496.4
Bath and North East Somerset Council,80721162,LM6,Nursing Care,P11,"Adult Care, Health & Wellbeing",CEDAR CARE HOMES LTD,02/10/2017,1496.4
Bath and North East Somerset Council,80720832,LL8,Individualised Budget,P11,"Adult Care, Health & Wellbeing",REDACTED,02/10/2017,1496.84
Bath and North East Somerset Council,80721064,LM3,Residential Care,P11,"Adult Care, Health & Wellbeing",BELMONT VILLA RESIDENTIAL NURSING HOME LTD,02/10/2017,1500
Bath and North East Somerset Council,80721132,LM3,Residential Care,P11,"Adult Care, Health & Wellbeing",CHOLWELL HOUSE NURSING HOME,02/10/2017,1500
Bath and North East Somerset Council,80721124,LM6,Nursing Care,P11,"Adult Care, Health & Wellbeing",PONDSMEAD (SHEPTON MALLET) LTD,02/10/2017,1500
Bath and North East Somerset Council,80721163,LM3,Residential Care,P11,"Adult Care, Health & Wellbeing",SPRINGFIELD BATH LTD,02/10/2017,1500
Bath and North East Somerset Council,80721163,LM3,Residential Care,P11,"Adult Care, Health & Wellbeing",SPRINGFIELD BATH LTD,02/10/2017,1500
Bath and North East Somerset Council,80721163,LM3,Residential Care,P11,"Adult Care, Health & Wellbeing",SPRINGFIELD BATH LTD,02/10/2017,1500
Bath and North East Somerset Council,80720721,LL8,Individualised Budget,P11,"Adult Care, Health & Wellbeing",REDACTED,02/10/2017,1500.9
Bath and North East Somerset Council,80721132,LM6,Nursing Care,P11,"Adult Care, Health & Wellbeing",CHOLWELL HOUSE NURSING HOME,02/10/2017,1502.4
Bath and North East Somerset Council,10854722,LL1,Services to/for Clients,P12,Children & Young People,CHILDREN'S CONTACT SERVICES LTD,02/10/2017,1503.8
Bath and North East Somerset Council,80721147,LM3,Residential Care,P11,"Adult Care, Health & Wellbeing",METHODIST HOMES FOR THE AGED,02/10/2017,1506
Bath and North East Somerset Council,80721140,LM6,Nursing Care,P11,"Adult Care, Health & Wellbeing",BARCHESTER HEALTHCARE HOMES LTD,02/10/2017,1514.4
Bath and North East Somerset Council,80721139,LM6,Nursing Care,P11,"Adult Care, Health & Wellbeing",REDACTED,02/10/2017,1520.4
Bath and North East Somerset Council,80720900,LL8,Individualised Budget,P11,"Adult Care, Health & Wellbeing",PHOENIX (SW) LTD,02/10/2017,1521.36
Bath and North East Somerset Council,80721177,LL3,Supported Living,P11,"Adult Care, Health & Wellbeing",DIMENSIONS (UK) LTD,02/10/2017,1522
Bath and North East Somerset Council,80721137,LM6,Nursing Care,P11,"Adult Care, Health & Wellbeing",CEDAR PARK NURSING HOME,02/10/2017,1528.4
Bath and North East Somerset Council,80720950,LL8,Individualised Budget,P11,"Adult Care, Health & Wellbeing",REDACTED,02/10/2017,1531.18
Bath and North East Somerset Council,80720763,LL8,Individualised Budget,P11,"Adult Care, Health & Wellbeing",REDACTED,02/10/2017,1533.2
Bath and North East Somerset Council,80721141,LM6,Nursing Care,P11,"Adult Care, Health & Wellbeing",LARKHALL SPRINGS NURSING HOME,02/10/2017,1538.4
Bath and North East Somerset Council,80721072,LM3,Residential Care,P11,"Adult Care, Health & Wellbeing",CAMPANIA CARE HOME,02/10/2017,1540
Bath and North East Somerset Council,80721116,LM3,Residential Care,P11,"Adult Care, Health & Wellbeing",ST RONAN'S CARE HOME,02/10/2017,1540
Bath and North East Somerset Council,80721140,LM6,Nursing Care,P11,"Adult Care, Health & Wellbeing",BARCHESTER HEALTHCARE HOMES LTD,02/10/2017,1546.4
Bath and North East Somerset Council,80721141,LM6,Nursing Care,P11,"Adult Care, Health & Wellbeing",LARKHALL SPRINGS NURSING HOME,02/10/2017,1546.4
Bath and North East Somerset Council,80721115,LM6,Nursing Care,P11,"Adult Care, Health & Wellbeing",BARCHESTER HEALTHCARE HOMES LTD,02/10/2017,1550
Bath and North East Somerset Council,80720678,LM6,Nursing Care,P11,"Adult Care, Health & Wellbeing",CEDAR PARK NURSING HOME,02/10/2017,1550
Bath and North East Somerset Council,80720683,LM6,Nursing Care,P11,"Adult Care, Health & Wellbeing",LARKHALL SPRINGS NURSING HOME,02/10/2017,1550
Bath and North East Somerset Council,80721162,LM6,Nursing Care,P11,"Adult Care, Health & Wellbeing",CEDAR CARE HOMES LTD,02/10/2017,1556.4
Bath and North East Somerset Council,80721139,LM6,Nursing Care,P11,"Adult Care, Health & Wellbeing",REDACTED,02/10/2017,1556.4
Bath and North East Somerset Council,80721032,LM3,Residential Care,P11,"Adult Care, Health & Wellbeing",CORNERSTONES UK LTD,02/10/2017,1556.64
Bath and North East Somerset Council,80721146,LM3,Residential Care,P11,"Adult Care, Health & Wellbeing",BATH MIND,02/10/2017,1558.78
Bath and North East Somerset Council,80721146,LM3,Residential Care,P11,"Adult Care, Health & Wellbeing",BATH MIND,02/10/2017,1558.78
Bath and North East Somerset Council,80721146,LM3,Residential Care,P11,"Adult Care, Health & Wellbeing",BATH MIND,02/10/2017,1558.78
Bath and North East Somerset Council,80721146,LM3,Residential Care,P11,"Adult Care, Health & Wellbeing",BATH MIND,02/10/2017,1558.78
Bath and North East Somerset Council,80721146,LM3,Residential Care,P11,"Adult Care, Health & Wellbeing",BATH MIND,02/10/2017,1558.78
Bath and North East Somerset Council,80721146,LM3,Residential Care,P11,"Adult Care, Health & Wellbeing",BATH MIND,02/10/2017,1558.84
Bath and North East Somerset Council,80721138,LM6,Nursing Care,P11,"Adult Care, Health & Wellbeing",CULVERHAY NURSING HOME,02/10/2017,1559.9
Bath and North East Somerset Council,80721138,LM6,Nursing Care,P11,"Adult Care, Health & Wellbeing",CULVERHAY NURSING HOME,02/10/2017,1559.9
Bath and North East Somerset Council,80721138,LM6,Nursing Care,P11,"Adult Care, Health & Wellbeing",CULVERHAY NURSING HOME,02/10/2017,1559.9
Bath and North East Somerset Council,80721138,LM6,Nursing Care,P11,"Adult Care, Health & Wellbeing",CULVERHAY NURSING HOME,02/10/2017,1559.9
Bath and North East Somerset Council,80721162,LM6,Nursing Care,P11,"Adult Care, Health & Wellbeing",CEDAR CARE HOMES LTD,02/10/2017,1568.4
Bath and North East Somerset Council,80721141,LM6,Nursing Care,P11,"Adult Care, Health & Wellbeing",LARKHALL SPRINGS NURSING HOME,02/10/2017,1578.4
Bath and North East Somerset Council,80721147,LM3,Residential Care,P11,"Adult Care, Health & Wellbeing",METHODIST HOMES FOR THE AGED,02/10/2017,1582
Bath and North East Somerset Council,80720790,LL8,Individualised Budget,P11,"Adult Care, Health & Wellbeing",REDACTED,02/10/2017,1582.4
Bath and North East Somerset Council,80721014,LM3,Residential Care,P11,"Adult Care, Health & Wellbeing",SOUTH GLOUCESTERSHIRE COUNCIL,02/10/2017,1584.46
Bath and North East Somerset Council,80721142,LM3,Residential Care,P11,"Adult Care, Health & Wellbeing",FREEWAYS TRUST LTD,02/10/2017,1585.62
Bath and North East Somerset Council,80721059,LM6,Nursing Care,P11,"Adult Care, Health & Wellbeing",ROSEVILLE CARE HOMES MELKSHAM,02/10/2017,1588.5
Bath and North East Somerset Council,80721166,LM6,Nursing Care,P11,"Adult Care, Health & Wellbeing",BARCHESTER HEALTH CARE,02/10/2017,1589.9
Bath and North East Somerset Council,80721140,LM6,Nursing Care,P11,"Adult Care, Health & Wellbeing",BARCHESTER HEALTHCARE HOMES LTD,02/10/2017,1589.9
Bath and North East Somerset Council,80721140,LM6,Nursing Care,P11,"Adult Care, Health & Wellbeing",BARCHESTER HEALTHCARE HOMES LTD,02/10/2017,1589.9
Bath and North East Somerset Council,80721140,LM6,Nursing Care,P11,"Adult Care, Health & Wellbeing",BARCHESTER HEALTHCARE HOMES LTD,02/10/2017,1589.9
Bath and North East Somerset Council,80721145,LM3,Residential Care,P11,"Adult Care, Health & Wellbeing",ANCHOR TRUST,02/10/2017,1590
Bath and North East Somerset Council,80721097,LM3,Residential Care,P11,"Adult Care, Health & Wellbeing",REDACTED,02/10/2017,1590
Bath and North East Somerset Council,80721140,LM6,Nursing Care,P11,"Adult Care, Health & Wellbeing",BARCHESTER HEALTHCARE HOMES LTD,02/10/2017,1596.4
Bath and North East Somerset Council,80721140,LM6,Nursing Care,P11,"Adult Care, Health & Wellbeing",BARCHESTER HEALTHCARE HOMES LTD,02/10/2017,1600
Bath and North East Somerset Council,80721165,LM6,Nursing Care,P11,"Adult Care, Health & Wellbeing",CHERRY GARDEN PROPERTIES LTD,02/10/2017,1600
Bath and North East Somerset Council,80721159,LM3,Residential Care,P11,"Adult Care, Health & Wellbeing",FSHC NEWCO 2 LTD:REDACTED,02/10/2017,1600
Bath and North East Somerset Council,80720831,LL8,Individualised Budget,P11,"Adult Care, Health & Wellbeing",REDACTED - ILSA ACCOUNT,02/10/2017,1607.34
Bath and North East Somerset Council,80721140,LM6,Nursing Care,P11,"Adult Care, Health & Wellbeing",BARCHESTER HEALTHCARE HOMES LTD,02/10/2017,1616.4
Bath and North East Somerset Council,80721034,LM3,Residential Care,P11,"Adult Care, Health & Wellbeing",ORCHARD VALE TRUST,02/10/2017,1616.68
Bath and North East Somerset Council,80720989,LM6,Nursing Care,P11,"Adult Care, Health & Wellbeing",BRIDGE CARE LTD,02/10/2017,1616.95
Bath and North East Somerset Council,80720688,LM6,Nursing Care,P11,"Adult Care, Health & Wellbeing",CEDAR CARE HOMES LTD,02/10/2017,1620
Bath and North East Somerset Council,80721177,LL3,Supported Living,P11,"Adult Care, Health & Wellbeing",DIMENSIONS (UK) LTD,02/10/2017,1626.46
Bath and North East Somerset Council,80720772,LL8,Individualised Budget,P11,"Adult Care, Health & Wellbeing",REDACTED,02/10/2017,1626.56
Bath and North East Somerset Council,80721166,LM6,Nursing Care,P11,"Adult Care, Health & Wellbeing",BARCHESTER HEALTH CARE,02/10/2017,1628.4
Bath and North East Somerset Council,80721166,LM6,Nursing Care,P11,"Adult Care, Health & Wellbeing",BARCHESTER HEALTH CARE,02/10/2017,1628.4
Bath and North East Somerset Council,80721166,LM6,Nursing Care,P11,"Adult Care, Health & Wellbeing",BARCHESTER HEALTH CARE,02/10/2017,1628.4
Bath and North East Somerset Council,80721140,LM6,Nursing Care,P11,"Adult Care, Health & Wellbeing",BARCHESTER HEALTHCARE HOMES LTD,02/10/2017,1628.4
Bath and North East Somerset Council,80721140,LM6,Nursing Care,P11,"Adult Care, Health & Wellbeing",BARCHESTER HEALTHCARE HOMES LTD,02/10/2017,1628.4
Bath and North East Somerset Council,80721140,LM6,Nursing Care,P11,"Adult Care, Health & Wellbeing",BARCHESTER HEALTHCARE HOMES LTD,02/10/2017,1628.4
Bath and North East Somerset Council,80721140,LM6,Nursing Care,P11,"Adult Care, Health & Wellbeing",BARCHESTER HEALTHCARE HOMES LTD,02/10/2017,1628.4
Bath and North East Somerset Council,80721155,LM3,Residential Care,P11,"Adult Care, Health & Wellbeing",ARTI SERVICES LTD T/A THE MANOR FARM HOUSE,02/10/2017,1628.57
